{"text_format":"1","workbook":"xlsx","n_sheets":5,"sheets":["Table","Certification","Value","certificatnew","Sheet1"],"not_rendered":{"charts":0,"images":8,"macros":1,"external_links":0,"defined_names":9,"comments":0,"pivot_tables":0},"unopened":[],"bounds":{"document_bytes":16777216,"sheet_cells":100000,"rows_first":2000,"rows_last":500,"rows_between":2000,"halvings":0,"cell_chars":16384,"cell_head_chars":4096},"cells_cut":0,"cells_raw":0,"read":"whole","date_system":"1900"}

{"sheet":"Table","index":0,"n_rows":70,"n_cols":100,"rows_kept":70,"cut":false,"hidden":false,"merged":[[68,48,68,53],[6,53,9,53],[7,47,9,47],[69,45,69,47],[65,43,65,46],[66,39,66,44],[69,39,69,44],[68,45,68,47],[66,29,69,38],[69,48,69,53],[66,45,66,47],[67,45,67,47],[67,48,67,53],[66,48,66,53],[5,28,6,30],[7,30,8,30],[7,42,8,42],[7,31,8,31],[7,33,8,33],[7,38,8,38],[69,26,69,28],[69,19,69,22],[69,17,69,18],[69,23,69,25],[69,14,69,16],[5,44,8,44],[67,39,67,44],[68,39,68,44],[5,37,6,39],[7,32,8,32],[66,19,66,22],[7,17,8,17],[66,23,66,25],[5,40,6,42],[7,40,8,40],[7,41,8,41],[7,35,8,35],[7,36,8,36],[7,34,8,34],[68,26,68,28],[7,26,8,26],[7,27,8,27],[66,17,66,18],[7,18,8,18],[66,26,66,28],[67,26,67,28],[68,23,68,25],[68,17,68,18],[68,19,68,22],[7,20,8,20],[7,14,8,14],[7,9,8,9],[67,11,67,13],[68,11,68,13],[67,23,67,25],[67,19,67,22],[7,19,8,19],[67,14,67,16],[67,17,67,18],[7,16,8,16],[7,21,8,21],[7,24,8,24],[7,25,8,25],[69,0,69,4],[69,7,69,10],[67,7,67,10],[65,0,65,6],[67,0,67,4],[68,5,68,6],[68,0,68,4],[69,11,69,13],[69,5,69,6],[66,7,66,10],[5,13,6,15],[3,5,4,9],[4,0,4,4],[68,7,68,10],[67,5,67,6],[66,5,66,6],[5,16,6,18],[3,0,3,4],[5,0,9,0],[7,15,8,15],[7,7,8,7],[7,10,8,10],[7,5,9,5],[5,10,6,12],[7,6,9,6],[66,14,66,16],[66,11,66,13],[68,14,68,16],[0,55,0,58],[5,34,6,36],[5,46,5,54],[6,54,9,54],[7,46,9,46],[8,55,8,58],[0,0,2,54],[3,10,4,13],[5,25,6,27],[5,43,9,43],[7,1,8,1],[7,4,9,4],[5,1,6,1],[7,13,8,13],[5,19,6,21],[7,12,8,12],[7,11,8,11],[5,2,9,2],[5,7,6,9],[5,4,6,6],[5,3,9,3],[7,8,8,8],[3,14,4,17],[3,18,4,20],[3,21,4,23],[3,24,4,32],[5,22,6,24],[3,33,4,44],[7,23,8,23],[7,28,8,28],[7,37,8,37],[7,22,8,22],[5,31,6,33],[7,39,8,39],[9,88,9,89],[9,72,9,73],[9,74,9,75],[9,76,9,77],[9,78,9,79],[7,29,8,29],[9,86,9,87],[9,61,9,63],[9,66,9,68],[9,84,9,85],[7,49,9,49],[7,48,9,48],[9,80,9,81],[9,82,9,83],[3,48,4,53],[7,50,9,50],[3,54,4,54],[6,52,9,52],[7,51,9,51],[6,46,6,51],[3,45,4,47],[5,45,9,45]]}
[" جدول العلامات المدرسية للصفوف من الأول الى السابع الأساسي للعام الدراسي2020/2019",null,null,null,null,null,null,null,null,null,null,null,null,null,null,null,null,null,null,null,null,null,null,null,null,null,null,null,null,null,null,null,null,null,null,null,null,null,null,null,null,null,null,null,null,null,null,null,null,null,null,null,null,null,null,"مربوا الصفوف"]
[null,null,null,null,null,null,null,null,null,null,null,null,null,null,null,null,null,null,null,null,null,null,null,null,null,null,null,null,null,null,null,null,null,null,null,null,null,null,null,null,null,null,null,null,null,null,null,null,null,null,null,null,null,null,null,"اياد عبد الحليم ابو حميدان","عاصم ابو سلطان","احمد طه اسماعيل","احمد سليمان الزاملي"]
[null,null,null,null,null,null,null,null,null,null,null,null,null,null,null,null,null,null,null,null,null,null,null,null,null,null,null,null,null,null,null,null,null,null,null,null,null,null,null,null,null,null,null,null,null,null,null,null,null,null,null,null,null,null,null,"عادل اسماعيل ابو حميدان","مجاهد الشريدة","عمر عبد الحميد حسين"]
["وكالة الامم المتحدة لإغاثة وتشغيل اللاجئين الفلسطينيين في الشرق الادنى",null,null,null,null,"المنطقــة التعليمية :",null,null,null,null,"شمال عمان",null,null,null,"البلـدة/المـخيـم:",null,null,null,"البقعة",null,null,"المـدرسـة:",null,null,"ذكور البقعة الاعدادية الرابعة",null,null,null,null,null,null,null,null,"  الصــف :",null,null,null,null,null,null,null,null,null,null,null,"(  السادس  ) ",null,null,"الـشعـبـة :",null,null,null,null,null," (  أ  ) ","علاء اسماعيل العزة","صهيب خليل بنات","غسان احمد سبيتان"]
["دائرة التربية والتعليم",null,null,null,null,null,null,null,null,null,null,null,null,null,null,null,null,null,null,null,null,null,null,null,null,null,null,null,null,null,null,null,null,null,null,null,null,null,null,null,null,null,null,null,null,null,null,null,null,null,null,null,null,null,null,"رائد حسين ابو عوض","زهير يوسف ابو جخيدب","مروان عودة ابو جويعد"]
["الرقم  المتسلسل","إســم الطـالــب","الجنـسيـة"," مكـان الـولادة","تاريخ الولادة",null,null,"التربية الاسلامية",null,null,"اللغة العربية",null,null,"اللغة الانجليزية",null,null,"الرياضيات",null,null,"التربية الاجتماعية والوطنية",null,null,"العلـــوم",null,null,"التربية الفنية",null,null,"التربية الرياضية",null,null,"الموسيقا والاناشيد",null,null,"التربية المهنية",null,null,"الحاسوب",null,null,"الثقافة المالية",null,null,"إحترام النظام","عدد أيام الغياب من","الصف/الصفوف التي اعادها الطالب","( تعبأ المعلومات المطلوبة الواردة في هذه الحقول في نهاية العام الدراسي )",null,null,null,null,null,null,null,null,"سالم سليمان ابو رجل","عودة مفلح العمرو","سليم محمد ابو رفيع"]
[null,null,null,null,null,null,null,null,null,null,null,null,null,null,null,null,null,null,null,null,null,null,null,null,null,null,null,null,null,null,null,null,null,null,null,null,null,null,null,null,null,null,null,null,null,null,"النتيجة بعد تأدية اختبارات الاكمال",null,null,null,null,null,"المجموع العام","المعدل العام المئوي"," النتيجة السنوية","جمال محمد غنيم","محمد عبد الفتاح ابو الخيل","مصطفى حمدو عليان"]
[null,"من اربع مقاطع",null,null,"الـيـوم","الـشـهـر","الــسـنـة","الفصل الاول","الفصل الثاني","المـعـدل","الفصل الاول","الفصل الثاني","المـعـدل","الفصل الاول","الفصل الثاني","المـعـدل","الفصل الاول","الفصل الثاني","المـعـدل","الفصل الاول","الفصل الثاني","المـعـدل","الفصل الاول","الفصل الثاني","المـعـدل","الفصل الاول","الفصل الثاني","المـعـدل","الفصل الاول","الفصل الثاني","المـعـدل","الفصل الاول","الفصل الثاني","المـعـدل","الفصل الاول","الفصل الثاني","المـعـدل","الفصل الاول","الفصل الثاني","المـعـدل","الفصل الاول","الفصل الثاني","المـعـدل",null,null,null,"المادة الدراسية","العلامة","المادة الدراسية","العلامة","المادة الدراسية","العلامة"]
[null,null,null,null,null,null,null,null,null,null,null,null,null,null,null,null,null,null,null,null,null,null,null,null,null,null,null,null,null,null,null,null,null,null,null,null,null,null,null,null,null,null,null,null,null,null,null,null,null,null,null,null,null,null,null,"بيانات اضافية لشهادات الكرتون"]
[null,"\"حسب شهادة الميلاد\"",null,null,null,null,null,100,100,100,100,100,100,100,100,100,100,100,100,100,100,100,100,100,100,100,100,100,100,100,100,100,100,100,100,100,100,100,100,100,100,100,100,null,199,null,null,null,null,null,null,null,null,null,null,"الرقم الوطني للطالب","العنوان","غياب الفصل الاول","البريد الالكتروني","النتيجة السنوية","نتيجة سنوية ف1","الصفوف المعاده",null,null,"ملاحظات ذكور","ملاحظات اناث","ترتيب الاوائل",null,null,"ترك/انتقل","المعدل","مكان وتاريخ الميلاد","التربية الاسلامية",null,"اللعة العربية",null,"اللغة الانجليزية",null,"الرياضيات",null,"التربية الاجتماعية",null,"العلوم",null,"التربية المهنية",null,"الحاسوب",null,"الثقافة المالية",null,null,"عدد الاكمالاات","مواد الاكمال","نتيجة فصل 1 ذكور","نتيجة فصل 1 اناث",null,"النتيجة السنوية","ملاحظات مربي الصف",null,"غياب الفصل الثاني"]
[{"$f":"IF(B11<>\"\",1,\"\")","v":1}," ابراهيم انور ابراهيم حميدان","الأردنية","عمان",8,5,2008,35,65,50,42,58,50,45,58,52,42,57,50,84,60,72,50,61,56,90,88,89,87,87,87,null,null,null,90,92,91,null,null,null,null,null,null,"ممتاز","-","-",null,null,null,null,null,null,421,60.139999389648438,"ناجح و يرفع  لـ الصف السابع",null,null,null,null,"ناجح و يرفع  لـ الصف السابع",{"$f":"IF(Value!$F$31=\"1\",CP11,CQ11)","v":"مكمل في  : التربية الاسلامية  اللعة العربية  اللغة الانجليزية  الرياضيات          "},"-",null,null,{"$f":"IF(BS11=\"\",\"\",IF(BS11=0,\"\",IF(BS11>90,\"مؤدب وخلوق ومجتهد ، هنيئاً لوالديك هذا التفوق المميز\",IF(BS11>=80,\"خلوق ومتعاون وفعّال ، أجمل التهاني لك ولوالديك\",IF(BS11>=70,\"جيد في دروسه ، أتمنى له مزيدا من التقدم والنجاح\",IF(BS11>=60,\"يرجى من الوالدين مزيداً من المتابعة\",IF(BS11>=50,\"عليه مضاعفة جهوده والاهتمام أكثر\",IF(BS11<50,\"ضعيف في دروسه , يحتاج الى بذل مزيد من الجهد\",\"\"))))))))","v":"عليه مضاعفة جهوده والاهتمام أكثر"},{"$f":"IF(BS11=\"\",\"\",IF(BS11=0,\"\",IF(BS11>90,\"مؤدبة وخلوقة ومجتهدة ، هنيئاً لوالديك هذا التفوق المميز\",IF(BS11>=80,\"خلوقة ومتعاونة وفعّالة ، أجمل التهاني لك ولوالديك\",IF(BS11>=70,\"جيدة في دروسها ، أتمنى لها مزيدا من التقدم والنجاح\",IF(BS11>=60,\"يرجى من الوالدين مزيداً من المتابعة\",IF(BS11>=50,\"عليها مضاعفة جهودها والاهتمام أكثر\",IF(BS11<50,\"ضعيفة في دروسها , تحتاج الى بذل مزيد من الجهد\",\"\"))))))))","v":"عليها مضاعفة جهودها والاهتمام أكثر"}," ابراهيم انور ابراهيم حميدان",60.139999389648438,421,null,57.3,{"$f":"Table!$D11&\"    \"&Table!$E11&\" / \"&Table!$F11&\" \"&\"/ \" & Table!$G11","v":"عمان    8 / 5 / 2008"},{"$f":"IF(H11=0,\"\",IF(H11>=($H$10/2),0,1))","v":1},{"$f":"IF(BU11=1,$BU$10,\"\")","v":"التربية الاسلامية"},{"$f":"IF(K11=0,\"\",IF(K11>=($K$10/2),0,1))","v":1},{"$f":"IF(BW11=1,$BW$10,\"\")","v":"اللعة العربية"},{"$f":"IF(N11=0,\"\",IF(N11>=($N$10/2),0,1))","v":1},{"$f":"IF(BY11=1,$BY$10,\"\")","v":"اللغة الانجليزية"},{"$f":"IF(Q11=0,\"\",IF(Q11>=($Q$10/2),0,1))","v":1},{"$f":"IF(CA11=1,$CA$10,\"\")","v":"الرياضيات"},{"$f":"IF(T11=0,\"\",IF(T11>=($T$10/2),0,1))","v":0},{"$f":"IF(CC11=1,$CC$10,\"\")","v":""},{"$f":"IF(W11=0,\"\",IF(W11>=($W$10/2),0,1))","v":0},{"$f":"IF(CE11=1,$CE$10,\"\")","v":""},{"$f":"IF(AI11=0,\"\",IF(AI11>=($AI$10/2),0,1))","v":0},{"$f":"IF(CG11=1,$CG$10,\"\")","v":""},{"$f":"IF(AL11=0,\"\",IF(AL11>=($AL$10/2),0,1))","v":""},{"$f":"IF(CI11=1,$CI$10,\"\")","v":""},{"$f":"IF(AO11=0,\"\",IF(AO11>=($AO$10/2),0,1))","v":""},{"$f":"IF(CK11=1,$CK$10,\"\")","v":""},null,{"$f":"COUNTIF(BU11:CL11,1)","v":4},{"$f":"CONCATENATE(BV11,\"  \",BX11,\"  \",BZ11,\"  \",CB11,\"  \",CD11,\"  \",CF11,\"  \",CH11,\"  \",CJ11,\"  \",CL11)","v":"التربية الاسلامية  اللعة العربية  اللغة الانجليزية  الرياضيات          "},{"$f":"IF(CN11=0,\"ناجح في مواد الفصل الاول\",\"مكمل في  : \"&CO11)","v":"مكمل في  : التربية الاسلامية  اللعة العربية  اللغة الانجليزية  الرياضيات          "},{"$f":"IF(CN11=0,\"ناجحة في مواد الفصل الاول\",\"مكملـة في  : \"&CO11)","v":"مكملـة في  : التربية الاسلامية  اللعة العربية  اللغة الانجليزية  الرياضيات          "},null,{"$f":"IF(Value!$F$33=\"1\",Table!BI11,Table!BH11)","v":"ناجح و يرفع  لـ الصف السابع"},{"$f":"IF(Value!$F$31=\"1\",Table!BM11,Table!BN11)","v":"عليه مضاعفة جهوده والاهتمام أكثر"},null,{"$f":"IF(AS11=\"-\",\"-\",AS11-BF11)","v":"-"}]
[{"$f":"IF(AND(B12<>\"\",A11<>\"\"),A11+1,\"\")","v":2}," احمد باسل فيصل العاصي","الأردنية","السلط",22,5,2009,98,99,99,99,98,99,98,98,98,96,100,98,95,95,95,97,95,96,97,96,97,96,95,96,null,null,null,97,95,96,null,null,null,null,null,null,"ممتاز","-","-",null,null,null,null,null,null,681,97.290000915527344,"ناجح و يرفع  لـ الصف السابع",null,null,null,null,"ناجح و يرفع  لـ الصف السابع",{"$f":"IF(Value!$F$31=\"1\",CP12,CQ12)","v":"ناجح في مواد الفصل الاول"},"-",null,null,{"$f":"IF(BS12=\"\",\"\",IF(BS12=0,\"\",IF(BS12>90,\"مؤدب وخلوق ومجتهد ، هنيئاً لوالديك هذا التفوق المميز\",IF(BS12>=80,\"خلوق ومتعاون وفعّال ، أجمل التهاني لك ولوالديك\",IF(BS12>=70,\"جيد في دروسه ، أتمنى له مزيدا من التقدم والنجاح\",IF(BS12>=60,\"يرجى من الوالدين مزيداً من المتابعة\",IF(BS12>=50,\"عليه مضاعفة جهوده والاهتمام أكثر\",IF(BS12<50,\"ضعيف في دروسه , يحتاج الى بذل مزيد من الجهد\",\"\"))))))))","v":"عليه مضاعفة جهوده والاهتمام أكثر"},{"$f":"IF(BS12=\"\",\"\",IF(BS12=0,\"\",IF(BS12>90,\"مؤدبة وخلوقة ومجتهدة ، هنيئاً لوالديك هذا التفوق المميز\",IF(BS12>=80,\"خلوقة ومتعاونة وفعّالة ، أجمل التهاني لك ولوالديك\",IF(BS12>=70,\"جيدة في دروسها ، أتمنى لها مزيدا من التقدم والنجاح\",IF(BS12>=60,\"يرجى من الوالدين مزيداً من المتابعة\",IF(BS12>=50,\"عليها مضاعفة جهودها والاهتمام أكثر\",IF(BS12<50,\"ضعيفة في دروسها , تحتاج الى بذل مزيد من الجهد\",\"\"))))))))","v":"عليها مضاعفة جهودها والاهتمام أكثر"}," احمد باسل فيصل العاصي",97.290000915527344,681,null,55.6,{"$f":"Table!$D12&\"    \"&Table!$E12&\" / \"&Table!$F12&\" \"&\"/ \" & Table!$G12","v":"السلط    22 / 5 / 2009"},0,{"$f":"IF(BU12=1,$BU$10,\"\")","v":""},0,{"$f":"IF(BW12=1,$BW$10,\"\")","v":""},0,{"$f":"IF(BY12=1,$BY$10,\"\")","v":""},0,{"$f":"IF(CA12=1,$CA$10,\"\")","v":""},0,{"$f":"IF(CC12=1,$CC$10,\"\")","v":""},0,{"$f":"IF(CE12=1,$CE$10,\"\")","v":""},0,{"$f":"IF(CG12=1,$CG$10,\"\")","v":""},"",{"$f":"IF(CI12=1,$CI$10,\"\")","v":""},"",{"$f":"IF(CK12=1,$CK$10,\"\")","v":""},null,{"$f":"COUNTIF(BU12:CL12,1)","v":0},{"$f":"CONCATENATE(BV12,\"  \",BX12,\"  \",BZ12,\"  \",CB12,\"  \",CD12,\"  \",CF12,\"  \",CH12,\"  \",CJ12,\"  \",CL12)","v":"                "},{"$f":"IF(CN12=0,\"ناجح في مواد الفصل الاول\",\"مكمل في  : \"&CO12)","v":"ناجح في مواد الفصل الاول"},{"$f":"IF(CN12=0,\"ناجحة في مواد الفصل الاول\",\"مكملـة في  : \"&CO12)","v":"ناجحة في مواد الفصل الاول"},null,{"$f":"IF(Value!$F$33=\"1\",Table!BI12,Table!BH12)","v":"ناجح و يرفع  لـ الصف السابع"},{"$f":"IF(Value!$F$31=\"1\",Table!BM12,Table!BN12)","v":"عليه مضاعفة جهوده والاهتمام أكثر"},null,"-"]
[{"$f":"IF(AND(B13<>\"\",A12<>\"\"),A12+1,\"\")","v":3}," احمد جمال محمود عثمان","الأردنية","عمان",19,2,2009,85,77,81,89,85,87,86,91,89,99,99,99,94,86,90,86,91,89,92,84,88,90,89,90,null,null,null,93,92,93,null,null,null,null,null,null,"ممتاز","-","-",null,null,null,null,null,null,628,89.709999084472656,"ناجح و يرفع  لـ الصف السابع",null,null,null,null,"ناجح و يرفع  لـ الصف السابع",{"$f":"IF(Value!$F$31=\"1\",CP13,CQ13)","v":"ناجح في مواد الفصل الاول"},"الرابع",null,null,"عليه مضاعفة جهوده والاهتمام أكثر","عليها مضاعفة جهودها والاهتمام أكثر"," احمد جمال محمود عثمان",89.709999084472656,628,null,57.4,{"$f":"Table!$D13&\"    \"&Table!$E13&\" / \"&Table!$F13&\" \"&\"/ \" & Table!$G13","v":"عمان    19 / 2 / 2009"},0,"",0,"",0,"",0,"",0,"",0,"",0,"","","","","",null,0,"                ","ناجح في مواد الفصل الاول","ناجحة في مواد الفصل الاول",null,{"$f":"IF(Value!$F$33=\"1\",Table!BI13,Table!BH13)","v":"ناجح و يرفع  لـ الصف السابع"},{"$f":"IF(Value!$F$31=\"1\",Table!BM13,Table!BN13)","v":"عليه مضاعفة جهوده والاهتمام أكثر"},null,"-"]
[4," احمد حسين عبد الفتاح عكاشه","الأردنية","السلط",6,6,2009,80,70,75,48,69,59,65,70,68,61,70,66,92,75,84,82,79,81,89,86,88,87,89,88,null,null,null,90,90,90,null,null,null,null,null,null,"ممتاز","-","-",null,null,null,null,null,null,523,74.709999084472656,"ناجح و يرفع  لـ الصف السابع",null,null,null,null,"ناجح و يرفع  لـ الصف السابع",{"$f":"IF(Value!$F$31=\"1\",CP14,CQ14)","v":"مكمل في  :   اللعة العربية              "},"-",null,null,"جيد في دروسه ، أتمنى له مزيدا من التقدم والنجاح","جيدة في دروسها ، أتمنى لها مزيدا من التقدم والنجاح"," احمد حسين عبد الفتاح عكاشه",74.709999084472656,523,null,79.7,{"$f":"Table!$D14&\"    \"&Table!$E14&\" / \"&Table!$F14&\" \"&\"/ \" & Table!$G14","v":"السلط    6 / 6 / 2009"},0,"",1,"اللعة العربية",0,"",0,"",0,"",0,"",0,"","","","","",null,1,"  اللعة العربية              ","مكمل في  :   اللعة العربية              ","مكملـة في  :   اللعة العربية              ",null,{"$f":"IF(Value!$F$33=\"1\",Table!BI14,Table!BH14)","v":"ناجح و يرفع  لـ الصف السابع"},{"$f":"IF(Value!$F$31=\"1\",Table!BM14,Table!BN14)","v":"جيد في دروسه ، أتمنى له مزيدا من التقدم والنجاح"},null,"-"]
[5," احمد خالد سعيد شعبان ابوشعيب","الأردنية","عمان",18,1,2009,50,83,67,48,65,57,80,83,82,63,72,68,86,76,81,81,80,81,89,88,89,87,88,88,null,null,null,88,92,90,null,null,null,null,null,null,"ممتاز","-","-",null,null,null,null,null,null,526,75.139999389648438,"ناجح و يرفع  لـ الصف السابع",null,null,null,null,"ناجح و يرفع  لـ الصف السابع",{"$f":"IF(Value!$F$31=\"1\",CP15,CQ15)","v":"مكمل في  :   اللعة العربية              "},"-",null,null,"عليه مضاعفة جهوده والاهتمام أكثر","عليها مضاعفة جهودها والاهتمام أكثر"," احمد خالد سعيد شعبان ابوشعيب",75.139999389648438,526,null,54.1,{"$f":"Table!$D15&\"    \"&Table!$E15&\" / \"&Table!$F15&\" \"&\"/ \" & Table!$G15","v":"عمان    18 / 1 / 2009"},0,"",1,"اللعة العربية",0,"",0,"",0,"",0,"",0,"","","","","",null,1,"  اللعة العربية              ","مكمل في  :   اللعة العربية              ","مكملـة في  :   اللعة العربية              ",null,{"$f":"IF(Value!$F$33=\"1\",Table!BI15,Table!BH15)","v":"ناجح و يرفع  لـ الصف السابع"},{"$f":"IF(Value!$F$31=\"1\",Table!BM15,Table!BN15)","v":"عليه مضاعفة جهوده والاهتمام أكثر"},null,"-"]
[6," احمد رشيد محمد الطموني","الأردنية","السلط",13,9,2009,53,55,54,58,59,59,48,54,51,50,50,50,84,76,80,53,83,68,88,89,89,88,87,88,null,null,null,91,95,93,null,null,null,null,null,null,"ممتاز","-","-",null,null,null,null,null,null,455,65,"ناجح و يرفع  لـ الصف السابع",null,null,null,null,"ناجح و يرفع  لـ الصف السابع",{"$f":"IF(Value!$F$31=\"1\",CP16,CQ16)","v":"مكمل في  :     اللغة الانجليزية            "},"الخامس",null,null,"ضعيف في دروسه , يحتاج الى بذل مزيد من الجهد","ضعيفة في دروسها , تحتاج الى بذل مزيد من الجهد"," احمد رشيد محمد الطموني",65,455,null,44.1,{"$f":"Table!$D16&\"    \"&Table!$E16&\" / \"&Table!$F16&\" \"&\"/ \" & Table!$G16","v":"السلط    13 / 9 / 2009"},0,"",0,"",1,"اللغة الانجليزية",0,"",0,"",0,"",0,"","","","","",null,1,"    اللغة الانجليزية            ","مكمل في  :     اللغة الانجليزية            ","مكملـة في  :     اللغة الانجليزية            ",null,{"$f":"IF(Value!$F$33=\"1\",Table!BI16,Table!BH16)","v":"ناجح و يرفع  لـ الصف السابع"},{"$f":"IF(Value!$F$31=\"1\",Table!BM16,Table!BN16)","v":"ضعيف في دروسه , يحتاج الى بذل مزيد من الجهد"},null,"-"]
[7," احمد عبد العزيز محمد عويضه","الأردنية","السلط",9,9,2009,92,83,88,73,83,78,92,94,93,76,70,73,91,85,88,85,83,84,90,91,91,87,89,88,null,null,null,92,96,94,null,null,null,null,null,null,"ممتاز","-","-",null,null,null,null,null,null,598,85.430000305175781,"ناجح و يرفع  لـ الصف السابع",null,null,null,null,"ناجح و يرفع  لـ الصف السابع",{"$f":"IF(Value!$F$31=\"1\",CP17,CQ17)","v":"ناجح في مواد الفصل الاول"},"-",null,null,"يرجى من الوالدين مزيداً من المتابعة","يرجى من الوالدين مزيداً من المتابعة"," احمد عبد العزيز محمد عويضه",85.430000305175781,598,null,69,{"$f":"Table!$D17&\"    \"&Table!$E17&\" / \"&Table!$F17&\" \"&\"/ \" & Table!$G17","v":"السلط    9 / 9 / 2009"},0,"",0,"",0,"",0,"",0,"",0,"",0,"","","","","",null,0,"                ","ناجح في مواد الفصل الاول","ناجحة في مواد الفصل الاول",null,{"$f":"IF(Value!$F$33=\"1\",Table!BI17,Table!BH17)","v":"ناجح و يرفع  لـ الصف السابع"},{"$f":"IF(Value!$F$31=\"1\",Table!BM17,Table!BN17)","v":"يرجى من الوالدين مزيداً من المتابعة"},null,"-"]
[8," احمد علاء مصطفى غرايبه","الأردنية","السلط",5,12,2009,35,70,53,43,64,54,45,58,52,42,67,55,85,68,77,50,67,59,87,88,88,88,87,88,null,null,null,89,96,93,null,null,null,null,null,null,"ممتاز","-","-",null,null,null,null,null,null,443,63.290000915527344,"ناجح و يرفع  لـ الصف السابع",null,null,null,null,"ناجح و يرفع  لـ الصف السابع",{"$f":"IF(Value!$F$31=\"1\",CP18,CQ18)","v":"مكمل في  : التربية الاسلامية  اللعة العربية  اللغة الانجليزية  الرياضيات          "},"-",null,null,"جيد في دروسه ، أتمنى له مزيدا من التقدم والنجاح","جيدة في دروسها ، أتمنى لها مزيدا من التقدم والنجاح"," احمد علاء مصطفى غرايبه",63.290000915527344,443,null,77.3,{"$f":"Table!$D18&\"    \"&Table!$E18&\" / \"&Table!$F18&\" \"&\"/ \" & Table!$G18","v":"السلط    5 / 12 / 2009"},1,"التربية الاسلامية",1,"اللعة العربية",1,"اللغة الانجليزية",1,"الرياضيات",0,"",0,"",0,"","","","","",null,4,"التربية الاسلامية  اللعة العربية  اللغة الانجليزية  الرياضيات          ","مكمل في  : التربية الاسلامية  اللعة العربية  اللغة الانجليزية  الرياضيات          ","مكملـة في  : التربية الاسلامية  اللعة العربية  اللغة الانجليزية  الرياضيات          ",null,{"$f":"IF(Value!$F$33=\"1\",Table!BI18,Table!BH18)","v":"ناجح و يرفع  لـ الصف السابع"},{"$f":"IF(Value!$F$31=\"1\",Table!BM18,Table!BN18)","v":"جيد في دروسه ، أتمنى له مزيدا من التقدم والنجاح"},null,"-"]
[9," احمد فوزي محمود حميدان","الأردنية","السلط",16,10,2009,73,63,68,84,83,84,86,89,88,82,81,82,95,79,87,85,80,83,91,86,89,87,88,88,null,null,null,92,91,92,null,null,null,null,null,null,"ممتاز","-","-",null,null,null,null,null,null,584,83.430000305175781,"ناجح و يرفع  لـ الصف السابع",null,null,null,null,"ناجح و يرفع  لـ الصف السابع",{"$f":"IF(Value!$F$31=\"1\",CP19,CQ19)","v":"ناجح في مواد الفصل الاول"},"-",null,null,"جيد في دروسه ، أتمنى له مزيدا من التقدم والنجاح","جيدة في دروسها ، أتمنى لها مزيدا من التقدم والنجاح"," احمد فوزي محمود حميدان",83.430000305175781,584,null,72.3,{"$f":"Table!$D19&\"    \"&Table!$E19&\" / \"&Table!$F19&\" \"&\"/ \" & Table!$G19","v":"السلط    16 / 10 / 2009"},0,"",0,"",0,"",0,"",0,"",0,"",0,"","","","","",null,0,"                ","ناجح في مواد الفصل الاول","ناجحة في مواد الفصل الاول",null,{"$f":"IF(Value!$F$33=\"1\",Table!BI19,Table!BH19)","v":"ناجح و يرفع  لـ الصف السابع"},{"$f":"IF(Value!$F$31=\"1\",Table!BM19,Table!BN19)","v":"جيد في دروسه ، أتمنى له مزيدا من التقدم والنجاح"},null,"-"]
[10," احمد محمد احمد الخوره","الأردنية","السلط",28,6,2009,96,99,98,98,98,98,95,97,96,94,97,96,94,93,94,94,93,94,97,94,96,93,94,94,null,null,null,97,98,98,null,null,null,null,null,null,"ممتاز","-","-",null,null,null,null,null,null,674,96.290000915527344,"ناجح و يرفع  لـ الصف السابع",null,null,null,null,"ناجح و يرفع  لـ الصف السابع",{"$f":"IF(Value!$F$31=\"1\",CP20,CQ20)","v":"ناجح في مواد الفصل الاول"},"-",null,null,"يرجى من الوالدين مزيداً من المتابعة","يرجى من الوالدين مزيداً من المتابعة"," احمد محمد احمد الخوره",96.290000915527344,674,null,67.3,{"$f":"Table!$D20&\"    \"&Table!$E20&\" / \"&Table!$F20&\" \"&\"/ \" & Table!$G20","v":"السلط    28 / 6 / 2009"},0,"",0,"",0,"",0,"",0,"",0,"",0,"","","","","",null,0,"                ","ناجح في مواد الفصل الاول","ناجحة في مواد الفصل الاول",null,{"$f":"IF(Value!$F$33=\"1\",Table!BI20,Table!BH20)","v":"ناجح و يرفع  لـ الصف السابع"},{"$f":"IF(Value!$F$31=\"1\",Table!BM20,Table!BN20)","v":"يرجى من الوالدين مزيداً من المتابعة"},null,"-"]
[11," المعتز بالله ابراهيم سليمان ابو رياش","الأردنية","السلط",28,3,2009,71,89,80,74,88,81,79,83,81,74,95,85,90,88,89,80,87,84,96,86,91,88,88,88,null,null,null,96,97,97,null,null,null,null,null,null,"ممتاز","-","-",null,null,null,null,null,null,597,85.290000915527344,"ناجح و يرفع  لـ الصف السابع",null,null,null,null,"ناجح و يرفع  لـ الصف السابع",{"$f":"IF(Value!$F$31=\"1\",CP21,CQ21)","v":"ناجح في مواد الفصل الاول"},"-",null,null,"يرجى من الوالدين مزيداً من المتابعة","يرجى من الوالدين مزيداً من المتابعة"," المعتز بالله ابراهيم سليمان ابو رياش",85.290000915527344,597,null,68.7,{"$f":"Table!$D21&\"    \"&Table!$E21&\" / \"&Table!$F21&\" \"&\"/ \" & Table!$G21","v":"السلط    28 / 3 / 2009"},0,"",0,"",0,"",0,"",0,"",0,"",0,"","","","","",null,0,"                ","ناجح في مواد الفصل الاول","ناجحة في مواد الفصل الاول",null,{"$f":"IF(Value!$F$33=\"1\",Table!BI21,Table!BH21)","v":"ناجح و يرفع  لـ الصف السابع"},{"$f":"IF(Value!$F$31=\"1\",Table!BM21,Table!BN21)","v":"يرجى من الوالدين مزيداً من المتابعة"},null,"-"]
[12," امير محمد عبد الكريم رضوان","الأردنية","عمان",29,8,2009,96,99,98,92,96,94,97,98,98,97,99,98,95,98,97,90,94,92,97,87,92,93,94,94,null,null,null,97,92,95,null,null,null,null,null,null,"ممتاز","-","-",null,null,null,null,null,null,672,96,"ناجح و يرفع  لـ الصف السابع",null,null,null,null,"ناجح و يرفع  لـ الصف السابع",{"$f":"IF(Value!$F$31=\"1\",CP22,CQ22)","v":"ناجح في مواد الفصل الاول"},"-",null,null,"ضعيف في دروسه , يحتاج الى بذل مزيد من الجهد","ضعيفة في دروسها , تحتاج الى بذل مزيد من الجهد"," امير محمد عبد الكريم رضوان",96,672,null,48,{"$f":"Table!$D22&\"    \"&Table!$E22&\" / \"&Table!$F22&\" \"&\"/ \" & Table!$G22","v":"عمان    29 / 8 / 2009"},0,"",0,"",0,"",0,"",0,"",0,"",0,"","","","","",null,0,"                ","ناجح في مواد الفصل الاول","ناجحة في مواد الفصل الاول",null,{"$f":"IF(Value!$F$33=\"1\",Table!BI22,Table!BH22)","v":"ناجح و يرفع  لـ الصف السابع"},{"$f":"IF(Value!$F$31=\"1\",Table!BM22,Table!BN22)","v":"ضعيف في دروسه , يحتاج الى بذل مزيد من الجهد"},null,"-"]
[13," بهاء الدين محمد خليل رمضان","الأردنية","السلط",12,9,2009,80,84,82,75,76,76,70,74,72,50,88,69,80,77,79,83,87,85,93,90,92,86,85,86,null,null,null,93,90,92,null,null,null,null,null,null,"ممتاز","-","-",null,null,null,null,null,null,555,79.290000915527344,"ناجح و يرفع  لـ الصف السابع",null,null,null,null,"ناجح و يرفع  لـ الصف السابع",{"$f":"IF(Value!$F$31=\"1\",CP23,CQ23)","v":"ناجح في مواد الفصل الاول"},"-",null,null,"يرجى من الوالدين مزيداً من المتابعة","يرجى من الوالدين مزيداً من المتابعة"," بهاء الدين محمد خليل رمضان",79.290000915527344,555,null,60.3,{"$f":"Table!$D23&\"    \"&Table!$E23&\" / \"&Table!$F23&\" \"&\"/ \" & Table!$G23","v":"السلط    12 / 9 / 2009"},0,"",0,"",0,"",0,"",0,"",0,"",0,"","","","","",null,0,"                ","ناجح في مواد الفصل الاول","ناجحة في مواد الفصل الاول",null,{"$f":"IF(Value!$F$33=\"1\",Table!BI23,Table!BH23)","v":"ناجح و يرفع  لـ الصف السابع"},{"$f":"IF(Value!$F$31=\"1\",Table!BM23,Table!BN23)","v":"يرجى من الوالدين مزيداً من المتابعة"},null,"-"]
[14," حسين زياد حسين احمد","الأردنية","السلط",17,1,2009,82,79,81,63,81,72,77,80,79,53,62,58,87,78,83,73,68,71,92,88,90,88,89,89,null,null,null,92,90,91,null,null,null,null,null,null,"ممتاز","-","-",null,null,null,null,null,null,535,76.430000305175781,"ناجح و يرفع  لـ الصف السابع",null,null,null,null,"ناجح و يرفع  لـ الصف السابع",{"$f":"IF(Value!$F$31=\"1\",CP24,CQ24)","v":"ناجح في مواد الفصل الاول"},"الخامس",null,null,"ضعيف في دروسه , يحتاج الى بذل مزيد من الجهد","ضعيفة في دروسها , تحتاج الى بذل مزيد من الجهد"," حسين زياد حسين احمد",76.430000305175781,535,null,45.9,{"$f":"Table!$D24&\"    \"&Table!$E24&\" / \"&Table!$F24&\" \"&\"/ \" & Table!$G24","v":"السلط    17 / 1 / 2009"},0,"",0,"",0,"",0,"",0,"",0,"",0,"","","","","",null,0,"                ","ناجح في مواد الفصل الاول","ناجحة في مواد الفصل الاول",null,{"$f":"IF(Value!$F$33=\"1\",Table!BI24,Table!BH24)","v":"ناجح و يرفع  لـ الصف السابع"},{"$f":"IF(Value!$F$31=\"1\",Table!BM24,Table!BN24)","v":"ضعيف في دروسه , يحتاج الى بذل مزيد من الجهد"},null,"-"]
[15," حمزه عزات حسين يامين","الأردنية","السلط",30,9,2009,81,95,88,80,96,88,98,98,98,96,92,94,88,93,91,96,97,97,91,94,93,95,95,95,null,null,null,96,90,93,null,null,null,null,null,null,"ممتاز","-","-",null,null,null,null,null,null,649,92.709999084472656,"ناجح و يرفع  لـ الصف السابع",null,null,null,null,"ناجح و يرفع  لـ الصف السابع",{"$f":"IF(Value!$F$31=\"1\",CP25,CQ25)","v":"ناجح في مواد الفصل الاول"},"-",null,null,"مؤدب وخلوق ومجتهد ، هنيئاً لوالديك هذا التفوق المميز","مؤدبة وخلوقة ومجتهدة ، هنيئاً لوالديك هذا التفوق المميز"," حمزه عزات حسين يامين",92.709999084472656,649,null,91.6,{"$f":"Table!$D25&\"    \"&Table!$E25&\" / \"&Table!$F25&\" \"&\"/ \" & Table!$G25","v":"السلط    30 / 9 / 2009"},0,"",0,"",0,"",0,"",0,"",0,"",0,"","","","","",null,0,"                ","ناجح في مواد الفصل الاول","ناجحة في مواد الفصل الاول",null,{"$f":"IF(Value!$F$33=\"1\",Table!BI25,Table!BH25)","v":"ناجح و يرفع  لـ الصف السابع"},{"$f":"IF(Value!$F$31=\"1\",Table!BM25,Table!BN25)","v":"مؤدب وخلوق ومجتهد ، هنيئاً لوالديك هذا التفوق المميز"},null,"-"]
[16," خالد توفيق خليل ياسوري","الأردنية","سحاب",21,12,2009,86,89,88,84,89,87,95,96,96,86,98,92,90,87,89,89,88,89,94,92,93,89,91,90,null,null,null,96,91,94,null,null,null,null,null,null,"ممتاز","-","-",null,null,null,null,null,null,635,90.709999084472656,"ناجح و يرفع  لـ الصف السابع",null,null,null,null,"ناجح و يرفع  لـ الصف السابع",{"$f":"IF(Value!$F$31=\"1\",CP26,CQ26)","v":"ناجح في مواد الفصل الاول"},"-",null,null,"يرجى من الوالدين مزيداً من المتابعة","يرجى من الوالدين مزيداً من المتابعة"," خالد توفيق خليل ياسوري",90.709999084472656,635,null,66.7,{"$f":"Table!$D26&\"    \"&Table!$E26&\" / \"&Table!$F26&\" \"&\"/ \" & Table!$G26","v":"سحاب    21 / 12 / 2009"},0,"",0,"",0,"",0,"",0,"",0,"",0,"","","","","",null,0,"                ","ناجح في مواد الفصل الاول","ناجحة في مواد الفصل الاول",null,{"$f":"IF(Value!$F$33=\"1\",Table!BI26,Table!BH26)","v":"ناجح و يرفع  لـ الصف السابع"},{"$f":"IF(Value!$F$31=\"1\",Table!BM26,Table!BN26)","v":"يرجى من الوالدين مزيداً من المتابعة"},null,"-"]
[17," خليل احمد موسى الرحايله","الأردنية","عمان",6,2,2009,81,98,90,68,84,76,84,88,86,75,83,79,92,93,93,78,94,86,88,87,88,88,87,88,null,null,null,92,92,92,null,null,null,null,null,null,"ممتاز","-","-",null,null,null,null,null,null,602,86,"ناجح و يرفع  لـ الصف السابع",null,null,null,null,"ناجح و يرفع  لـ الصف السابع",{"$f":"IF(Value!$F$31=\"1\",CP27,CQ27)","v":"ناجح في مواد الفصل الاول"},"-",null,null,"خلوق ومتعاون وفعّال ، أجمل التهاني لك ولوالديك","خلوقة ومتعاونة وفعّالة ، أجمل التهاني لك ولوالديك"," خليل احمد موسى الرحايله",86,602,null,85.6,{"$f":"Table!$D27&\"    \"&Table!$E27&\" / \"&Table!$F27&\" \"&\"/ \" & Table!$G27","v":"عمان    6 / 2 / 2009"},0,"",0,"",0,"",0,"",0,"",0,"",0,"","","","","",null,0,"                ","ناجح في مواد الفصل الاول","ناجحة في مواد الفصل الاول",null,{"$f":"IF(Value!$F$33=\"1\",Table!BI27,Table!BH27)","v":"ناجح و يرفع  لـ الصف السابع"},{"$f":"IF(Value!$F$31=\"1\",Table!BM27,Table!BN27)","v":"خلوق ومتعاون وفعّال ، أجمل التهاني لك ولوالديك"},null,"-"]
[18," راشد وائل عواد عامر","الأردنية","عمان",23,8,2009,86,97,92,77,92,85,79,83,81,77,91,84,95,92,94,92,94,93,91,91,91,92,91,92,null,null,null,92,95,94,null,null,null,null,null,null,"ممتاز","-","-",null,null,null,null,null,null,623,89,"ناجح و يرفع  لـ الصف السابع",null,null,null,null,"ناجح و يرفع  لـ الصف السابع",{"$f":"IF(Value!$F$31=\"1\",CP28,CQ28)","v":"ناجح في مواد الفصل الاول"},"-",null,null,"جيد في دروسه ، أتمنى له مزيدا من التقدم والنجاح","جيدة في دروسها ، أتمنى لها مزيدا من التقدم والنجاح"," راشد وائل عواد عامر",89,623,null,77.099999999999994,{"$f":"Table!$D28&\"    \"&Table!$E28&\" / \"&Table!$F28&\" \"&\"/ \" & Table!$G28","v":"عمان    23 / 8 / 2009"},0,"",0,"",0,"",0,"",0,"",0,"",0,"","","","","",null,0,"                ","ناجح في مواد الفصل الاول","ناجحة في مواد الفصل الاول",null,{"$f":"IF(Value!$F$33=\"1\",Table!BI28,Table!BH28)","v":"ناجح و يرفع  لـ الصف السابع"},{"$f":"IF(Value!$F$31=\"1\",Table!BM28,Table!BN28)","v":"جيد في دروسه ، أتمنى له مزيدا من التقدم والنجاح"},null,"-"]
[19," ريان داود حسين العواجنه","الأردنية","عمان",29,3,2009,35,65,50,43,57,50,45,57,51,42,58,50,82,62,72,50,63,57,87,88,88,88,88,88,null,null,null,88,92,90,null,null,null,null,null,null,"ممتاز","-","-",null,null,null,null,null,null,420,60,"ناجح و يرفع  لـ الصف السابع",null,null,null,null,"ناجح و يرفع  لـ الصف السابع",{"$f":"IF(Value!$F$31=\"1\",CP29,CQ29)","v":"مكمل في  : التربية الاسلامية  اللعة العربية  اللغة الانجليزية  الرياضيات          "},"-",null,null,"جيد في دروسه ، أتمنى له مزيدا من التقدم والنجاح","جيدة في دروسها ، أتمنى لها مزيدا من التقدم والنجاح"," ريان داود حسين العواجنه",60,420,null,71.900000000000006,{"$f":"Table!$D29&\"    \"&Table!$E29&\" / \"&Table!$F29&\" \"&\"/ \" & Table!$G29","v":"عمان    29 / 3 / 2009"},1,"التربية الاسلامية",1,"اللعة العربية",1,"اللغة الانجليزية",1,"الرياضيات",0,"",0,"",0,"","","","","",null,4,"التربية الاسلامية  اللعة العربية  اللغة الانجليزية  الرياضيات          ","مكمل في  : التربية الاسلامية  اللعة العربية  اللغة الانجليزية  الرياضيات          ","مكملـة في  : التربية الاسلامية  اللعة العربية  اللغة الانجليزية  الرياضيات          ",null,{"$f":"IF(Value!$F$33=\"1\",Table!BI29,Table!BH29)","v":"ناجح و يرفع  لـ الصف السابع"},{"$f":"IF(Value!$F$31=\"1\",Table!BM29,Table!BN29)","v":"جيد في دروسه ، أتمنى له مزيدا من التقدم والنجاح"},null,"-"]
[20," زيد محمود احمد علي","الأردنية","فلسطين",19,9,2009,62,85,74,65,86,76,84,88,86,83,55,69,93,87,90,83,85,84,91,87,89,88,87,88,null,null,null,92,91,92,null,null,null,null,null,null,"ممتاز","-","-",null,null,null,null,null,null,571,81.569999694824219,"ناجح و يرفع  لـ الصف السابع",null,null,null,null,"ناجح و يرفع  لـ الصف السابع",{"$f":"IF(Value!$F$31=\"1\",CP30,CQ30)","v":"ناجح في مواد الفصل الاول"},"-",null,null,"عليه مضاعفة جهوده والاهتمام أكثر","عليها مضاعفة جهودها والاهتمام أكثر"," زيد محمود احمد علي",81.569999694824219,571,null,50.9,{"$f":"Table!$D30&\"    \"&Table!$E30&\" / \"&Table!$F30&\" \"&\"/ \" & Table!$G30","v":"فلسطين    19 / 9 / 2009"},0,"",0,"",0,"",0,"",0,"",0,"",0,"","","","","",null,0,"                ","ناجح في مواد الفصل الاول","ناجحة في مواد الفصل الاول",null,{"$f":"IF(Value!$F$33=\"1\",Table!BI30,Table!BH30)","v":"ناجح و يرفع  لـ الصف السابع"},{"$f":"IF(Value!$F$31=\"1\",Table!BM30,Table!BN30)","v":"عليه مضاعفة جهوده والاهتمام أكثر"},null,"-"]
[21," سيف الدين سفيان سمير الدكروك","الأردنية","عمان",17,6,2009,81,87,84,79,78,79,79,82,81,64,86,75,84,89,87,88,87,88,93,90,92,86,87,87,null,null,null,92,96,94,null,null,null,null,null,null,"ممتاز","-","-",null,null,null,null,null,null,588,84,"ناجح و يرفع  لـ الصف السابع",null,null,null,null,"ناجح و يرفع  لـ الصف السابع",{"$f":"IF(Value!$F$31=\"1\",CP31,CQ31)","v":"ناجح في مواد الفصل الاول"},"-",null,null,"خلوق ومتعاون وفعّال ، أجمل التهاني لك ولوالديك","خلوقة ومتعاونة وفعّالة ، أجمل التهاني لك ولوالديك"," سيف الدين سفيان سمير الدكروك",84,588,null,82.4,{"$f":"Table!$D31&\"    \"&Table!$E31&\" / \"&Table!$F31&\" \"&\"/ \" & Table!$G31","v":"عمان    17 / 6 / 2009"},0,"",0,"",0,"",0,"",0,"",0,"",0,"","","","","",null,0,"                ","ناجح في مواد الفصل الاول","ناجحة في مواد الفصل الاول",null,{"$f":"IF(Value!$F$33=\"1\",Table!BI31,Table!BH31)","v":"ناجح و يرفع  لـ الصف السابع"},{"$f":"IF(Value!$F$31=\"1\",Table!BM31,Table!BN31)","v":"خلوق ومتعاون وفعّال ، أجمل التهاني لك ولوالديك"},null,"-"]
[22," صالح رأفت صالح منتصر","الأردنية","عمان",1,8,2009,69,95,82,78,88,83,79,83,81,62,98,80,93,94,94,86,97,92,93,88,91,87,89,88,null,null,null,92,91,92,null,null,null,null,null,null,"ممتاز","-","-",null,null,null,null,null,null,604,86.290000915527344,"ناجح و يرفع  لـ الصف السابع",null,null,null,null,"ناجح و يرفع  لـ الصف السابع",{"$f":"IF(Value!$F$31=\"1\",CP32,CQ32)","v":"ناجح في مواد الفصل الاول"},"-",null,null,"عليه مضاعفة جهوده والاهتمام أكثر","عليها مضاعفة جهودها والاهتمام أكثر"," صالح رأفت صالح منتصر",86.290000915527344,604,null,51.4,{"$f":"Table!$D32&\"    \"&Table!$E32&\" / \"&Table!$F32&\" \"&\"/ \" & Table!$G32","v":"عمان    1 / 8 / 2009"},0,"",0,"",0,"",0,"",0,"",0,"",0,"","","","","",null,0,"                ","ناجح في مواد الفصل الاول","ناجحة في مواد الفصل الاول",null,{"$f":"IF(Value!$F$33=\"1\",Table!BI32,Table!BH32)","v":"ناجح و يرفع  لـ الصف السابع"},{"$f":"IF(Value!$F$31=\"1\",Table!BM32,Table!BN32)","v":"عليه مضاعفة جهوده والاهتمام أكثر"},null,"-"]
[23," عاصم عماد عبد الرحمن غانم","الأردنية","عمان",2,12,2009,73,64,69,75,71,73,89,92,91,84,80,82,97,91,94,90,81,86,93,94,94,91,94,93,null,null,null,93,92,93,null,null,null,null,null,null,"ممتاز","-","-",null,null,null,null,null,null,588,84,"ناجح و يرفع  لـ الصف السابع",null,null,null,null,"ناجح و يرفع  لـ الصف السابع",{"$f":"IF(Value!$F$31=\"1\",CP33,CQ33)","v":"ناجح في مواد الفصل الاول"},"-",null,null,"يرجى من الوالدين مزيداً من المتابعة","يرجى من الوالدين مزيداً من المتابعة"," عاصم عماد عبد الرحمن غانم",84,588,null,61.4,{"$f":"Table!$D33&\"    \"&Table!$E33&\" / \"&Table!$F33&\" \"&\"/ \" & Table!$G33","v":"عمان    2 / 12 / 2009"},0,"",0,"",0,"",0,"",0,"",0,"",0,"","","","","",null,0,"                ","ناجح في مواد الفصل الاول","ناجحة في مواد الفصل الاول",null,{"$f":"IF(Value!$F$33=\"1\",Table!BI33,Table!BH33)","v":"ناجح و يرفع  لـ الصف السابع"},{"$f":"IF(Value!$F$31=\"1\",Table!BM33,Table!BN33)","v":"يرجى من الوالدين مزيداً من المتابعة"},null,"-"]
[24," عبد الكريم اكرم محمود الناطور","الأردنية","عمان",6,8,2009,92,75,84,73,73,73,80,84,82,69,73,71,91,89,90,84,90,87,91,88,90,87,88,88,null,null,null,92,91,92,null,null,null,null,null,null,"ممتاز","-","-",null,null,null,null,null,null,579,82.709999084472656,"ناجح و يرفع  لـ الصف السابع",null,null,null,null,"ناجح و يرفع  لـ الصف السابع",{"$f":"IF(Value!$F$31=\"1\",CP34,CQ34)","v":"ناجح في مواد الفصل الاول"},"-",null,null,"جيد في دروسه ، أتمنى له مزيدا من التقدم والنجاح","جيدة في دروسها ، أتمنى لها مزيدا من التقدم والنجاح"," عبد الكريم اكرم محمود الناطور",82.709999084472656,579,null,71.3,{"$f":"Table!$D34&\"    \"&Table!$E34&\" / \"&Table!$F34&\" \"&\"/ \" & Table!$G34","v":"عمان    6 / 8 / 2009"},0,"",0,"",0,"",0,"",0,"",0,"",0,"","","","","",null,0,"                ","ناجح في مواد الفصل الاول","ناجحة في مواد الفصل الاول",null,{"$f":"IF(Value!$F$33=\"1\",Table!BI34,Table!BH34)","v":"ناجح و يرفع  لـ الصف السابع"},{"$f":"IF(Value!$F$31=\"1\",Table!BM34,Table!BN34)","v":"جيد في دروسه ، أتمنى له مزيدا من التقدم والنجاح"},null,"-"]
[25," عبد الله الشيخ علي احمد الحويطات","الأردنية","السلط",16,2,2009,60,65,63,58,63,61,55,57,56,55,49,52,83,61,72,50,62,56,88,88,88,87,88,88,null,null,null,88,91,90,null,null,null,null,null,null,"ممتاز","-","-",null,null,null,null,null,null,450,64.290000915527344,"ناجح و يرفع  لـ الصف السابع",null,null,null,null,"ناجح و يرفع  لـ الصف السابع",{"$f":"IF(Value!$F$31=\"1\",CP35,CQ35)","v":"ناجح في مواد الفصل الاول"},"-",null,null,"جيد في دروسه ، أتمنى له مزيدا من التقدم والنجاح","جيدة في دروسها ، أتمنى لها مزيدا من التقدم والنجاح"," عبد الله الشيخ علي احمد الحويطات",64.290000915527344,450,null,70.3,{"$f":"Table!$D35&\"    \"&Table!$E35&\" / \"&Table!$F35&\" \"&\"/ \" & Table!$G35","v":"السلط    16 / 2 / 2009"},0,"",0,"",0,"",0,"",0,"",0,"",0,"","","","","",null,0,"                ","ناجح في مواد الفصل الاول","ناجحة في مواد الفصل الاول",null,{"$f":"IF(Value!$F$33=\"1\",Table!BI35,Table!BH35)","v":"ناجح و يرفع  لـ الصف السابع"},{"$f":"IF(Value!$F$31=\"1\",Table!BM35,Table!BN35)","v":"جيد في دروسه ، أتمنى له مزيدا من التقدم والنجاح"},null,"-"]
[26," عبدالله ابراهيم محمد الضويمر","الأردنية","عمان",14,7,2009,76,75,76,82,76,79,87,81,84,61,80,71,90,93,92,80,89,85,92,90,91,90,84,87,null,null,null,92,92,92,null,null,null,null,null,null,"ممتاز","-","-",null,null,null,null,null,null,579,82.709999084472656,"ناجح و يرفع  لـ الصف السابع",null,null,null,null,"ناجح و يرفع  لـ الصف السابع",{"$f":"IF(Value!$F$31=\"1\",CP36,CQ36)","v":"ناجح في مواد الفصل الاول"},"-",null,null,"عليه مضاعفة جهوده والاهتمام أكثر","عليها مضاعفة جهودها والاهتمام أكثر"," عبدالله ابراهيم محمد الضويمر",82.709999084472656,579,null,58.7,{"$f":"Table!$D36&\"    \"&Table!$E36&\" / \"&Table!$F36&\" \"&\"/ \" & Table!$G36","v":"عمان    14 / 7 / 2009"},0,"",0,"",0,"",0,"",0,"",0,"",0,"","","","","",null,0,"                ","ناجح في مواد الفصل الاول","ناجحة في مواد الفصل الاول",null,{"$f":"IF(Value!$F$33=\"1\",Table!BI36,Table!BH36)","v":"ناجح و يرفع  لـ الصف السابع"},{"$f":"IF(Value!$F$31=\"1\",Table!BM36,Table!BN36)","v":"عليه مضاعفة جهوده والاهتمام أكثر"},null,"-"]
[27," عدي عاطف عوض الله حناوي","الأردنية","عمان",22,6,2009,86,76,81,83,67,75,83,87,85,74,81,78,87,85,86,85,84,85,92,88,90,88,88,88,null,null,null,96,90,93,null,null,null,null,null,null,"ممتاز","-","-",null,null,null,null,null,null,583,83.290000915527344,"ناجح و يرفع  لـ الصف السابع",null,null,null,null,"ناجح و يرفع  لـ الصف السابع",{"$f":"IF(Value!$F$31=\"1\",CP37,CQ37)","v":"ناجح في مواد الفصل الاول"},"-",null,null,"يرجى من الوالدين مزيداً من المتابعة","يرجى من الوالدين مزيداً من المتابعة"," عدي عاطف عوض الله حناوي",83.290000915527344,583,null,67.7,{"$f":"Table!$D37&\"    \"&Table!$E37&\" / \"&Table!$F37&\" \"&\"/ \" & Table!$G37","v":"عمان    22 / 6 / 2009"},0,"",0,"",0,"",0,"",0,"",0,"",0,"","","","","",null,0,"                ","ناجح في مواد الفصل الاول","ناجحة في مواد الفصل الاول",null,{"$f":"IF(Value!$F$33=\"1\",Table!BI37,Table!BH37)","v":"ناجح و يرفع  لـ الصف السابع"},{"$f":"IF(Value!$F$31=\"1\",Table!BM37,Table!BN37)","v":"يرجى من الوالدين مزيداً من المتابعة"},null,"-"]
[28," عز الدين خالد مصطفى عبد القادر","الأردنية","عمان",19,3,2009,59,60,60,67,63,65,66,70,68,82,73,78,88,90,89,71,72,72,92,88,90,85,87,86,null,null,null,93,92,93,null,null,null,null,null,null,"ممتاز","-","-",null,null,null,null,null,null,525,75,"ناجح و يرفع  لـ الصف السابع",null,null,null,null,"ناجح و يرفع  لـ الصف السابع",{"$f":"IF(Value!$F$31=\"1\",CP38,CQ38)","v":"ناجح في مواد الفصل الاول"},"-",null,null,"يرجى من الوالدين مزيداً من المتابعة","يرجى من الوالدين مزيداً من المتابعة"," عز الدين خالد مصطفى عبد القادر",75,525,null,64.099999999999994,{"$f":"Table!$D38&\"    \"&Table!$E38&\" / \"&Table!$F38&\" \"&\"/ \" & Table!$G38","v":"عمان    19 / 3 / 2009"},0,"",0,"",0,"",0,"",0,"",0,"",0,"","","","","",null,0,"                ","ناجح في مواد الفصل الاول","ناجحة في مواد الفصل الاول",null,{"$f":"IF(Value!$F$33=\"1\",Table!BI38,Table!BH38)","v":"ناجح و يرفع  لـ الصف السابع"},{"$f":"IF(Value!$F$31=\"1\",Table!BM38,Table!BN38)","v":"يرجى من الوالدين مزيداً من المتابعة"},null,"-"]
[29," عمار ابراهيم احمد سريوه","الأردنية","السلط",26,5,2009,78,70,74,71,70,71,86,89,88,71,84,78,92,80,86,76,80,78,93,91,92,90,89,90,null,null,null,94,91,93,null,null,null,null,null,null,"ممتاز","-","-",null,null,null,null,null,null,568,81.139999389648438,"ناجح و يرفع  لـ الصف السابع",null,null,null,null,"ناجح و يرفع  لـ الصف السابع",{"$f":"IF(Value!$F$31=\"1\",CP39,CQ39)","v":"ناجح في مواد الفصل الاول"},"-",null,null,"خلوق ومتعاون وفعّال ، أجمل التهاني لك ولوالديك","خلوقة ومتعاونة وفعّالة ، أجمل التهاني لك ولوالديك"," عمار ابراهيم احمد سريوه",81.139999389648438,568,null,81.599999999999994,{"$f":"Table!$D39&\"    \"&Table!$E39&\" / \"&Table!$F39&\" \"&\"/ \" & Table!$G39","v":"السلط    26 / 5 / 2009"},0,"",0,"",0,"",0,"",0,"",0,"",0,"","","","","",null,0,"                ","ناجح في مواد الفصل الاول","ناجحة في مواد الفصل الاول",null,{"$f":"IF(Value!$F$33=\"1\",Table!BI39,Table!BH39)","v":"ناجح و يرفع  لـ الصف السابع"},{"$f":"IF(Value!$F$31=\"1\",Table!BM39,Table!BN39)","v":"خلوق ومتعاون وفعّال ، أجمل التهاني لك ولوالديك"},null,"-"]
[30," عمار عبد الرحمن شحاده طعمه","الأردنية","السلط",1,3,2009,74,82,78,69,77,73,87,91,89,50,73,62,91,81,86,61,80,71,91,88,90,86,88,87,null,null,null,92,92,92,null,null,null,null,null,null,"ممتاز","-","-",null,null,null,null,null,null,551,78.709999084472656,"ناجح و يرفع  لـ الصف السابع",null,null,null,null,"ناجح و يرفع  لـ الصف السابع",{"$f":"IF(Value!$F$31=\"1\",CP40,CQ40)","v":"ناجح في مواد الفصل الاول"},"-",null,null,"خلوق ومتعاون وفعّال ، أجمل التهاني لك ولوالديك","خلوقة ومتعاونة وفعّالة ، أجمل التهاني لك ولوالديك"," عمار عبد الرحمن شحاده طعمه",78.709999084472656,551,null,88.9,{"$f":"Table!$D40&\"    \"&Table!$E40&\" / \"&Table!$F40&\" \"&\"/ \" & Table!$G40","v":"السلط    1 / 3 / 2009"},0,"",0,"",0,"",0,"",0,"",0,"",0,"","","","","",null,0,"                ","ناجح في مواد الفصل الاول","ناجحة في مواد الفصل الاول",null,{"$f":"IF(Value!$F$33=\"1\",Table!BI40,Table!BH40)","v":"ناجح و يرفع  لـ الصف السابع"},{"$f":"IF(Value!$F$31=\"1\",Table!BM40,Table!BN40)","v":"خلوق ومتعاون وفعّال ، أجمل التهاني لك ولوالديك"},null,"-"]
[31," عمار عماد ابراهيم بنات","الأردنية","عمان",25,10,2009,91,95,93,94,94,94,94,95,95,93,100,97,93,92,93,89,96,93,91,87,89,87,89,88,null,null,null,93,96,95,null,null,null,null,null,null,"ممتاز","-","-",null,null,null,null,null,null,660,94.290000915527344,"ناجح و يرفع  لـ الصف السابع",null,null,null,null,"ناجح و يرفع  لـ الصف السابع",{"$f":"IF(Value!$F$31=\"1\",CP41,CQ41)","v":"ناجح في مواد الفصل الاول"},"-",null,null,"جيد في دروسه ، أتمنى له مزيدا من التقدم والنجاح","جيدة في دروسها ، أتمنى لها مزيدا من التقدم والنجاح"," عمار عماد ابراهيم بنات",94.290000915527344,660,null,77.900000000000006,{"$f":"Table!$D41&\"    \"&Table!$E41&\" / \"&Table!$F41&\" \"&\"/ \" & Table!$G41","v":"عمان    25 / 10 / 2009"},0,"",0,"",0,"",0,"",0,"",0,"",0,"","","","","",null,0,"                ","ناجح في مواد الفصل الاول","ناجحة في مواد الفصل الاول",null,{"$f":"IF(Value!$F$33=\"1\",Table!BI41,Table!BH41)","v":"ناجح و يرفع  لـ الصف السابع"},{"$f":"IF(Value!$F$31=\"1\",Table!BM41,Table!BN41)","v":"جيد في دروسه ، أتمنى له مزيدا من التقدم والنجاح"},null,"-"]
[32," عمر محمد عصري دعوش","الأردنية","السلط",20,10,2008,35,65,50,43,57,50,44,57,51,42,57,50,83,60,72,50,59,55,88,89,89,89,89,89,null,null,null,91,90,91,null,null,null,null,null,null,"ممتاز","-","-",null,null,null,null,null,null,419,59.860000610351563,"ناجح و يرفع  لـ الصف السابع",null,null,null,null,"ناجح و يرفع  لـ الصف السابع",{"$f":"IF(Value!$F$31=\"1\",CP42,CQ42)","v":"مكمل في  : التربية الاسلامية  اللعة العربية  اللغة الانجليزية  الرياضيات          "},"-",null,null,"عليه مضاعفة جهوده والاهتمام أكثر","عليها مضاعفة جهودها والاهتمام أكثر"," عمر محمد عصري دعوش",59.860000610351563,419,null,55.4,{"$f":"Table!$D42&\"    \"&Table!$E42&\" / \"&Table!$F42&\" \"&\"/ \" & Table!$G42","v":"السلط    20 / 10 / 2008"},1,"التربية الاسلامية",1,"اللعة العربية",1,"اللغة الانجليزية",1,"الرياضيات",0,"",0,"",0,"","","","","",null,4,"التربية الاسلامية  اللعة العربية  اللغة الانجليزية  الرياضيات          ","مكمل في  : التربية الاسلامية  اللعة العربية  اللغة الانجليزية  الرياضيات          ","مكملـة في  : التربية الاسلامية  اللعة العربية  اللغة الانجليزية  الرياضيات          ",null,{"$f":"IF(Value!$F$33=\"1\",Table!BI42,Table!BH42)","v":"ناجح و يرفع  لـ الصف السابع"},{"$f":"IF(Value!$F$31=\"1\",Table!BM42,Table!BN42)","v":"عليه مضاعفة جهوده والاهتمام أكثر"},null,"-"]
[33," عمر محمود يعقوب يعقوب","الأردنية","السلط",26,4,2009,35,77,56,47,77,62,66,74,70,59,66,63,86,79,83,68,81,75,88,89,89,86,87,87,null,null,null,91,96,94,null,null,null,null,null,null,"ممتاز","-","-",null,null,null,null,null,null,503,71.860000610351563,"ناجح و يرفع  لـ الصف السابع",null,null,null,null,"ناجح و يرفع  لـ الصف السابع",{"$f":"IF(Value!$F$31=\"1\",CP43,CQ43)","v":"مكمل في  : التربية الاسلامية  اللعة العربية              "},"-",null,null,"يرجى من الوالدين مزيداً من المتابعة","يرجى من الوالدين مزيداً من المتابعة"," عمر محمود يعقوب يعقوب",71.860000610351563,503,null,60.7,{"$f":"Table!$D43&\"    \"&Table!$E43&\" / \"&Table!$F43&\" \"&\"/ \" & Table!$G43","v":"السلط    26 / 4 / 2009"},{"$f":"IF(H43=0,\"\",IF(H43>=($H$10/2),0,1))","v":1},"التربية الاسلامية",{"$f":"IF(K43=0,\"\",IF(K43>=($K$10/2),0,1))","v":1},"اللعة العربية",{"$f":"IF(N43=0,\"\",IF(N43>=($N$10/2),0,1))","v":0},"",{"$f":"IF(Q43=0,\"\",IF(Q43>=($Q$10/2),0,1))","v":0},"",{"$f":"IF(T43=0,\"\",IF(T43>=($T$10/2),0,1))","v":0},"",{"$f":"IF(W43=0,\"\",IF(W43>=($W$10/2),0,1))","v":0},"",{"$f":"IF(AI43=0,\"\",IF(AI43>=($AI$10/2),0,1))","v":0},"",{"$f":"IF(AL43=0,\"\",IF(AL43>=($AL$10/2),0,1))","v":""},"",{"$f":"IF(AO43=0,\"\",IF(AO43>=($AO$10/2),0,1))","v":""},"",null,2,"التربية الاسلامية  اللعة العربية              ","مكمل في  : التربية الاسلامية  اللعة العربية              ","مكملـة في  : التربية الاسلامية  اللعة العربية              ",null,{"$f":"IF(Value!$F$33=\"1\",Table!BI43,Table!BH43)","v":"ناجح و يرفع  لـ الصف السابع"},{"$f":"IF(Value!$F$31=\"1\",Table!BM43,Table!BN43)","v":"يرجى من الوالدين مزيداً من المتابعة"},null,{"$f":"IF(AS43=\"-\",\"-\",AS43-BF43)","v":"-"}]
[34," ماجد طارق ماجد جبر","الأردنية","عمان",12,7,2009,97,99,98,94,85,90,96,97,97,98,98,98,98,96,97,93,92,93,96,95,96,91,94,93,null,null,null,97,96,97,null,null,null,null,null,null,"ممتاز","-","-",null,null,null,null,null,null,670,95.709999084472656,"ناجح و يرفع  لـ الصف السابع",null,null,null,null,"ناجح و يرفع  لـ الصف السابع",{"$f":"IF(Value!$F$31=\"1\",CP44,CQ44)","v":"ناجح في مواد الفصل الاول"},"-",null,null,"مؤدب وخلوق ومجتهد ، هنيئاً لوالديك هذا التفوق المميز","مؤدبة وخلوقة ومجتهدة ، هنيئاً لوالديك هذا التفوق المميز"," ماجد طارق ماجد جبر",95.709999084472656,670,null,96.3,{"$f":"Table!$D44&\"    \"&Table!$E44&\" / \"&Table!$F44&\" \"&\"/ \" & Table!$G44","v":"عمان    12 / 7 / 2009"},0,"",0,"",0,"",0,"",0,"",0,"",0,"","","","","",null,0,"                ","ناجح في مواد الفصل الاول","ناجحة في مواد الفصل الاول",null,{"$f":"IF(Value!$F$33=\"1\",Table!BI44,Table!BH44)","v":"ناجح و يرفع  لـ الصف السابع"},{"$f":"IF(Value!$F$31=\"1\",Table!BM44,Table!BN44)","v":"مؤدب وخلوق ومجتهد ، هنيئاً لوالديك هذا التفوق المميز"},null,"-"]
[35," مالك ايهاب شفيق ابو زينه","الأردنية","عمان",28,5,2009,91,96,94,94,95,95,85,88,87,88,99,94,93,95,94,96,92,94,97,89,93,91,90,91,null,null,null,97,91,94,null,null,null,null,null,null,"ممتاز","-","-",null,null,null,null,null,null,652,93.139999389648438,"ناجح و يرفع  لـ الصف السابع",null,null,null,null,"ناجح و يرفع  لـ الصف السابع",{"$f":"IF(Value!$F$31=\"1\",CP45,CQ45)","v":"ناجح في مواد الفصل الاول"},"الثالث",null,null,"عليه مضاعفة جهوده والاهتمام أكثر","عليها مضاعفة جهودها والاهتمام أكثر"," مالك ايهاب شفيق ابو زينه",93.139999389648438,652,null,53,{"$f":"Table!$D45&\"    \"&Table!$E45&\" / \"&Table!$F45&\" \"&\"/ \" & Table!$G45","v":"عمان    28 / 5 / 2009"},0,"",0,"",0,"",0,"",0,"",0,"",0,"","","","","",null,0,"                ","ناجح في مواد الفصل الاول","ناجحة في مواد الفصل الاول",null,{"$f":"IF(Value!$F$33=\"1\",Table!BI45,Table!BH45)","v":"ناجح و يرفع  لـ الصف السابع"},{"$f":"IF(Value!$F$31=\"1\",Table!BM45,Table!BN45)","v":"عليه مضاعفة جهوده والاهتمام أكثر"},null,"-"]
[36," مالك حسام صبحي عبده","الأردنية","السلط",11,9,2009,98,99,99,94,97,96,93,95,94,98,100,99,93,96,95,96,90,93,96,90,93,94,93,94,null,null,null,97,97,97,null,null,null,null,null,null,"ممتاز","-","-",null,null,null,null,null,null,673,96.139999389648438,"ناجح و يرفع  لـ الصف السابع",null,null,null,null,"ناجح و يرفع  لـ الصف السابع",{"$f":"IF(Value!$F$31=\"1\",CP46,CQ46)","v":"ناجح في مواد الفصل الاول"},"الصف","السادس",null,"عليه مضاعفة جهوده والاهتمام أكثر","عليها مضاعفة جهودها والاهتمام أكثر"," مالك حسام صبحي عبده",96.139999389648438,673,null,50.4,{"$f":"Table!$D46&\"    \"&Table!$E46&\" / \"&Table!$F46&\" \"&\"/ \" & Table!$G46","v":"السلط    11 / 9 / 2009"},0,"",0,"",0,"",0,"",0,"",0,"",0,"","","","","",null,0,"                ","ناجح في مواد الفصل الاول","ناجحة في مواد الفصل الاول",null,{"$f":"IF(Value!$F$33=\"1\",Table!BI46,Table!BH46)","v":"ناجح و يرفع  لـ الصف السابع"},{"$f":"IF(Value!$F$31=\"1\",Table!BM46,Table!BN46)","v":"عليه مضاعفة جهوده والاهتمام أكثر"},null,"-"]
[37," محمد احمد سليمان العمايرة","الأردنية","السلط",14,4,2009,90,97,94,83,91,87,86,89,88,75,96,86,89,97,93,92,98,95,95,89,92,90,89,90,null,null,null,97,93,95,null,null,null,null,null,null,"ممتاز","-","-",null,null,null,null,null,null,638,91.139999389648437,"ناجح و يرفع  لـ الصف السابع",null,null,null,null,"ناجح و يرفع  لـ الصف السابع",{"$f":"IF(Value!$F$31=\"1\",CP47,CQ47)","v":"ناجح في مواد الفصل الاول"},"-",null,null,"عليه مضاعفة جهوده والاهتمام أكثر","عليها مضاعفة جهودها والاهتمام أكثر"," محمد احمد سليمان العمايرة",91.139999389648437,638,null,54.4,{"$f":"Table!$D47&\"    \"&Table!$E47&\" / \"&Table!$F47&\" \"&\"/ \" & Table!$G47","v":"السلط    14 / 4 / 2009"},0,"",0,"",0,"",0,"",0,"",0,"",0,"","","","","",null,0,"                ","ناجح في مواد الفصل الاول","ناجحة في مواد الفصل الاول",null,{"$f":"IF(Value!$F$33=\"1\",Table!BI47,Table!BH47)","v":"ناجح و يرفع  لـ الصف السابع"},{"$f":"IF(Value!$F$31=\"1\",Table!BM47,Table!BN47)","v":"عليه مضاعفة جهوده والاهتمام أكثر"},null,"-"]
[38," محمد احمد محمد عطا الله","الأردنية","عمان",6,5,2009,84,97,91,86,91,89,88,91,90,84,93,89,94,96,95,93,94,94,95,89,92,88,87,88,null,null,null,97,90,94,null,null,null,null,null,null,"ممتاز","-","-",null,null,null,null,null,null,642,91.709999084472656,"ناجح و يرفع  لـ الصف السابع",null,null,null,null,"ناجح و يرفع  لـ الصف السابع",{"$f":"IF(Value!$F$31=\"1\",CP48,CQ48)","v":"ناجح في مواد الفصل الاول"},"-",null,null,"جيد في دروسه ، أتمنى له مزيدا من التقدم والنجاح","جيدة في دروسها ، أتمنى لها مزيدا من التقدم والنجاح"," محمد احمد محمد عطا الله",91.709999084472656,642,null,76.3,{"$f":"Table!$D48&\"    \"&Table!$E48&\" / \"&Table!$F48&\" \"&\"/ \" & Table!$G48","v":"عمان    6 / 5 / 2009"},0,"",0,"",0,"",0,"",0,"",0,"",0,"","","","","",null,0,"                ","ناجح في مواد الفصل الاول","ناجحة في مواد الفصل الاول",null,{"$f":"IF(Value!$F$33=\"1\",Table!BI48,Table!BH48)","v":"ناجح و يرفع  لـ الصف السابع"},{"$f":"IF(Value!$F$31=\"1\",Table!BM48,Table!BN48)","v":"جيد في دروسه ، أتمنى له مزيدا من التقدم والنجاح"},null,"-"]
[39," محمد سائد صقر صالحيه","الأردنية","عمان",23,8,2009,50,50,50,45,68,57,43,57,50,59,49,54,83,79,81,65,61,63,92,89,91,89,87,88,null,null,null,95,91,93,null,null,null,null,null,null,"ممتاز","-","-",null,null,null,null,null,null,448,64,"ناجح و يرفع  لـ الصف السابع",null,null,null,null,"ناجح و يرفع  لـ الصف السابع",{"$f":"IF(Value!$F$31=\"1\",CP49,CQ49)","v":"مكمل في  :   اللعة العربية  اللغة الانجليزية            "},"-",null,null,"يرجى من الوالدين مزيداً من المتابعة","يرجى من الوالدين مزيداً من المتابعة"," محمد سائد صقر صالحيه",64,448,null,66,{"$f":"Table!$D49&\"    \"&Table!$E49&\" / \"&Table!$F49&\" \"&\"/ \" & Table!$G49","v":"عمان    23 / 8 / 2009"},0,"",1,"اللعة العربية",1,"اللغة الانجليزية",0,"",0,"",0,"",0,"","","","","",null,2,"  اللعة العربية  اللغة الانجليزية            ","مكمل في  :   اللعة العربية  اللغة الانجليزية            ","مكملـة في  :   اللعة العربية  اللغة الانجليزية            ",null,{"$f":"IF(Value!$F$33=\"1\",Table!BI49,Table!BH49)","v":"ناجح و يرفع  لـ الصف السابع"},{"$f":"IF(Value!$F$31=\"1\",Table!BM49,Table!BN49)","v":"يرجى من الوالدين مزيداً من المتابعة"},null,"-"]
[40," محمد علي عيسى الحارثي","الفلسطينية","عمان",11,6,2009,35,65,50,41,59,50,43,57,50,42,57,50,82,63,73,50,63,57,88,87,88,87,90,89,null,null,null,92,91,92,null,null,null,null,null,null,"ممتاز","-","-",null,null,null,null,null,null,422,60.290000915527344,"ناجح و يرفع  لـ الصف السابع",null,null,null,null,"ناجح و يرفع  لـ الصف السابع",{"$f":"IF(Value!$F$31=\"1\",CP50,CQ50)","v":"مكمل في  : التربية الاسلامية  اللعة العربية  اللغة الانجليزية  الرياضيات          "},"-",null,null,"عليه مضاعفة جهوده والاهتمام أكثر","عليها مضاعفة جهودها والاهتمام أكثر"," محمد علي عيسى الحارثي",60.290000915527344,422,null,58.3,{"$f":"Table!$D50&\"    \"&Table!$E50&\" / \"&Table!$F50&\" \"&\"/ \" & Table!$G50","v":"عمان    11 / 6 / 2009"},1,"التربية الاسلامية",1,"اللعة العربية",1,"اللغة الانجليزية",1,"الرياضيات",0,"",0,"",0,"","","","","",null,4,"التربية الاسلامية  اللعة العربية  اللغة الانجليزية  الرياضيات          ","مكمل في  : التربية الاسلامية  اللعة العربية  اللغة الانجليزية  الرياضيات          ","مكملـة في  : التربية الاسلامية  اللعة العربية  اللغة الانجليزية  الرياضيات          ",null,{"$f":"IF(Value!$F$33=\"1\",Table!BI50,Table!BH50)","v":"ناجح و يرفع  لـ الصف السابع"},{"$f":"IF(Value!$F$31=\"1\",Table!BM50,Table!BN50)","v":"عليه مضاعفة جهوده والاهتمام أكثر"},null,"-"]
[41," محمد مالك سعيد شبراوي","الأردنية","عمان",27,5,2009,74,50,62,55,96,76,84,88,86,61,66,64,91,87,89,92,85,89,89,91,90,91,90,91,null,null,null,92,97,95,null,null,null,null,null,null,"ممتاز","-","-",null,null,null,null,null,null,561,80.139999389648438,"ناجح و يرفع  لـ الصف السابع",null,null,null,null,"ناجح و يرفع  لـ الصف السابع",{"$f":"IF(Value!$F$31=\"1\",CP51,CQ51)","v":"ناجح في مواد الفصل الاول"},"-",null,null,"عليه مضاعفة جهوده والاهتمام أكثر","عليها مضاعفة جهودها والاهتمام أكثر"," محمد مالك سعيد شبراوي",80.139999389648438,561,null,51.6,{"$f":"Table!$D51&\"    \"&Table!$E51&\" / \"&Table!$F51&\" \"&\"/ \" & Table!$G51","v":"عمان    27 / 5 / 2009"},0,"",0,"",0,"",0,"",0,"",0,"",0,"","","","","",null,0,"                ","ناجح في مواد الفصل الاول","ناجحة في مواد الفصل الاول",null,{"$f":"IF(Value!$F$33=\"1\",Table!BI51,Table!BH51)","v":"ناجح و يرفع  لـ الصف السابع"},{"$f":"IF(Value!$F$31=\"1\",Table!BM51,Table!BN51)","v":"عليه مضاعفة جهوده والاهتمام أكثر"},null,"-"]
[42," محمد مصطفى عبد الرحيم العظم","الأردنية","السلط",16,8,2008,82,83,83,64,72,68,80,83,82,59,66,63,86,91,89,89,80,85,90,91,91,93,92,93,null,null,null,94,92,93,null,null,null,null,null,null,"ممتاز","-","-",null,null,null,null,null,null,563,80.430000305175781,"ناجح و يرفع  لـ الصف السابع",null,null,null,null,"ناجح و يرفع  لـ الصف السابع",{"$f":"IF(Value!$F$31=\"1\",CP52,CQ52)","v":"ناجح في مواد الفصل الاول"},"-",null,null,"يرجى من الوالدين مزيداً من المتابعة","يرجى من الوالدين مزيداً من المتابعة"," محمد مصطفى عبد الرحيم العظم",80.430000305175781,563,null,69,{"$f":"Table!$D52&\"    \"&Table!$E52&\" / \"&Table!$F52&\" \"&\"/ \" & Table!$G52","v":"السلط    16 / 8 / 2008"},0,"",0,"",0,"",0,"",0,"",0,"",0,"","","","","",null,0,"                ","ناجح في مواد الفصل الاول","ناجحة في مواد الفصل الاول",null,{"$f":"IF(Value!$F$33=\"1\",Table!BI52,Table!BH52)","v":"ناجح و يرفع  لـ الصف السابع"},{"$f":"IF(Value!$F$31=\"1\",Table!BM52,Table!BN52)","v":"يرجى من الوالدين مزيداً من المتابعة"},null,"-"]
[43," محمد يوسف محمد لافي","الأردنية","السلط",13,11,2009,96,98,97,98,97,98,98,98,98,98,89,94,92,96,94,96,96,96,92,93,93,90,91,91,null,null,null,94,92,93,null,null,null,null,null,null,"ممتاز","-","-",null,null,null,null,null,null,670,95.709999084472656,"ناجح و يرفع  لـ الصف السابع",null,null,null,null,"ناجح و يرفع  لـ الصف السابع",{"$f":"IF(Value!$F$31=\"1\",CP53,CQ53)","v":"ناجح في مواد الفصل الاول"},"-",null,null,"يرجى من الوالدين مزيداً من المتابعة","يرجى من الوالدين مزيداً من المتابعة"," محمد يوسف محمد لافي",95.709999084472656,670,null,64.599999999999994,{"$f":"Table!$D53&\"    \"&Table!$E53&\" / \"&Table!$F53&\" \"&\"/ \" & Table!$G53","v":"السلط    13 / 11 / 2009"},0,"",0,"",0,"",0,"",0,"",0,"",0,"","","","","",null,0,"                ","ناجح في مواد الفصل الاول","ناجحة في مواد الفصل الاول",null,{"$f":"IF(Value!$F$33=\"1\",Table!BI53,Table!BH53)","v":"ناجح و يرفع  لـ الصف السابع"},{"$f":"IF(Value!$F$31=\"1\",Table!BM53,Table!BN53)","v":"يرجى من الوالدين مزيداً من المتابعة"},null,"-"]
[44," محمود نعمان يوسف غانم","الأردنية","السلط",13,9,2009,75,73,74,85,82,84,92,94,93,85,91,88,87,89,88,96,90,93,91,95,93,93,94,94,null,null,null,94,89,92,null,null,null,null,null,null,"ممتاز","-","-",null,null,null,null,null,null,612,87.430000305175781,"ناجح و يرفع  لـ الصف السابع",null,null,null,null,"ناجح و يرفع  لـ الصف السابع",{"$f":"IF(Value!$F$31=\"1\",CP54,CQ54)","v":"ناجح في مواد الفصل الاول"},"-",null,null,"عليه مضاعفة جهوده والاهتمام أكثر","عليها مضاعفة جهودها والاهتمام أكثر"," محمود نعمان يوسف غانم",87.430000305175781,612,null,56.1,{"$f":"Table!$D54&\"    \"&Table!$E54&\" / \"&Table!$F54&\" \"&\"/ \" & Table!$G54","v":"السلط    13 / 9 / 2009"},0,"",0,"",0,"",0,"",0,"",0,"",0,"","","","","",null,0,"                ","ناجح في مواد الفصل الاول","ناجحة في مواد الفصل الاول",null,{"$f":"IF(Value!$F$33=\"1\",Table!BI54,Table!BH54)","v":"ناجح و يرفع  لـ الصف السابع"},{"$f":"IF(Value!$F$31=\"1\",Table!BM54,Table!BN54)","v":"عليه مضاعفة جهوده والاهتمام أكثر"},null,"-"]
[45," مروان قاسم محمد ناصر","الأردنية","عمان",26,6,2009,75,81,78,70,92,81,82,85,84,80,56,68,89,74,82,82,73,78,92,87,90,89,89,89,null,null,null,94,92,93,null,null,null,null,null,null,"ممتاز","-","-",null,null,null,null,null,null,564,80.569999694824219,"ناجح و يرفع  لـ الصف السابع",null,null,null,null,"ناجح و يرفع  لـ الصف السابع",{"$f":"IF(Value!$F$31=\"1\",CP55,CQ55)","v":"ناجح في مواد الفصل الاول"},"-",null,null,"عليه مضاعفة جهوده والاهتمام أكثر","عليها مضاعفة جهودها والاهتمام أكثر"," مروان قاسم محمد ناصر",80.569999694824219,564,null,54,{"$f":"Table!$D55&\"    \"&Table!$E55&\" / \"&Table!$F55&\" \"&\"/ \" & Table!$G55","v":"عمان    26 / 6 / 2009"},0,"",0,"",0,"",0,"",0,"",0,"",0,"","","","","",null,0,"                ","ناجح في مواد الفصل الاول","ناجحة في مواد الفصل الاول",null,{"$f":"IF(Value!$F$33=\"1\",Table!BI55,Table!BH55)","v":"ناجح و يرفع  لـ الصف السابع"},{"$f":"IF(Value!$F$31=\"1\",Table!BM55,Table!BN55)","v":"عليه مضاعفة جهوده والاهتمام أكثر"},null,"-"]
[46," مصطفى خالد مصطفى غرايبه","الأردنية","السلط",4,1,2009,35,72,54,45,75,60,44,58,51,42,61,52,83,93,88,50,94,72,88,88,88,89,87,88,null,null,null,91,92,92,null,null,null,null,null,null,"ممتاز","-","-",null,null,null,null,null,null,469,67,"ناجح و يرفع  لـ الصف السابع",null,null,null,null,"ناجح و يرفع  لـ الصف السابع",{"$f":"IF(Value!$F$31=\"1\",CP56,CQ56)","v":"مكمل في  : التربية الاسلامية  اللعة العربية  اللغة الانجليزية  الرياضيات          "},"-",null,null,"جيد في دروسه ، أتمنى له مزيدا من التقدم والنجاح","جيدة في دروسها ، أتمنى لها مزيدا من التقدم والنجاح"," مصطفى خالد مصطفى غرايبه",67,469,null,74.7,{"$f":"Table!$D56&\"    \"&Table!$E56&\" / \"&Table!$F56&\" \"&\"/ \" & Table!$G56","v":"السلط    4 / 1 / 2009"},1,"التربية الاسلامية",1,"اللعة العربية",1,"اللغة الانجليزية",1,"الرياضيات",0,"",0,"",0,"","","","","",null,4,"التربية الاسلامية  اللعة العربية  اللغة الانجليزية  الرياضيات          ","مكمل في  : التربية الاسلامية  اللعة العربية  اللغة الانجليزية  الرياضيات          ","مكملـة في  : التربية الاسلامية  اللعة العربية  اللغة الانجليزية  الرياضيات          ",null,{"$f":"IF(Value!$F$33=\"1\",Table!BI56,Table!BH56)","v":"ناجح و يرفع  لـ الصف السابع"},{"$f":"IF(Value!$F$31=\"1\",Table!BM56,Table!BN56)","v":"جيد في دروسه ، أتمنى له مزيدا من التقدم والنجاح"},null,"-"]
[47," مصعب مؤمن عبد الحليم قطيشات","الأردنية","ام الدنانير",15,11,2009,89,79,84,86,63,75,89,93,91,84,71,78,93,77,85,81,78,80,94,91,93,88,88,88,null,null,null,93,91,92,null,null,null,null,null,null,"ممتاز","-","-",null,null,null,null,null,null,585,83.569999694824219,"ناجح و يرفع  لـ الصف السابع",null,null,null,null,"ناجح و يرفع  لـ الصف السابع",{"$f":"IF(Value!$F$31=\"1\",CP57,CQ57)","v":"ناجح في مواد الفصل الاول"},"-",null,null,"يرجى من الوالدين مزيداً من المتابعة","يرجى من الوالدين مزيداً من المتابعة"," مصعب مؤمن عبد الحليم قطيشات",83.569999694824219,585,null,62.1,{"$f":"Table!$D57&\"    \"&Table!$E57&\" / \"&Table!$F57&\" \"&\"/ \" & Table!$G57","v":"ام الدنانير    15 / 11 / 2009"},0,"",0,"",0,"",0,"",0,"",0,"",0,"","","","","",null,0,"                ","ناجح في مواد الفصل الاول","ناجحة في مواد الفصل الاول",null,{"$f":"IF(Value!$F$33=\"1\",Table!BI57,Table!BH57)","v":"ناجح و يرفع  لـ الصف السابع"},{"$f":"IF(Value!$F$31=\"1\",Table!BM57,Table!BN57)","v":"يرجى من الوالدين مزيداً من المتابعة"},null,"-"]
[48," معاذ فادي ابراهيم الاسمر","الأردنية","السلط",2,8,2009,79,95,87,78,85,82,78,82,80,89,91,90,91,98,95,82,93,88,89,87,88,85,91,88,null,null,null,94,91,93,null,null,null,null,null,null,"ممتاز","-","-",null,null,null,null,null,null,615,87.860000610351563,"ناجح و يرفع  لـ الصف السابع",null,null,null,null,"ناجح و يرفع  لـ الصف السابع",{"$f":"IF(Value!$F$31=\"1\",CP58,CQ58)","v":"ناجح في مواد الفصل الاول"},"-",null,null,"مؤدب وخلوق ومجتهد ، هنيئاً لوالديك هذا التفوق المميز","مؤدبة وخلوقة ومجتهدة ، هنيئاً لوالديك هذا التفوق المميز"," معاذ فادي ابراهيم الاسمر",87.860000610351563,615,null,91,{"$f":"Table!$D58&\"    \"&Table!$E58&\" / \"&Table!$F58&\" \"&\"/ \" & Table!$G58","v":"السلط    2 / 8 / 2009"},0,"",0,"",0,"",0,"",0,"",0,"",0,"","","","","",null,0,"                ","ناجح في مواد الفصل الاول","ناجحة في مواد الفصل الاول",null,{"$f":"IF(Value!$F$33=\"1\",Table!BI58,Table!BH58)","v":"ناجح و يرفع  لـ الصف السابع"},{"$f":"IF(Value!$F$31=\"1\",Table!BM58,Table!BN58)","v":"مؤدب وخلوق ومجتهد ، هنيئاً لوالديك هذا التفوق المميز"},null,"-"]
[49," معتز محمد محمود خليل","الأردنية","عمان",29,9,2009,97,96,97,97,99,98,95,95,95,92,100,96,95,95,95,98,96,97,98,92,95,92,91,92,null,null,null,97,91,94,null,null,null,null,null,null,"ممتاز","-","-",null,null,null,null,null,null,672,96,"ناجح و يرفع  لـ الصف السابع",null,null,null,null,"ناجح و يرفع  لـ الصف السابع",{"$f":"IF(Value!$F$31=\"1\",CP59,CQ59)","v":"ناجح في مواد الفصل الاول"},"-",null,null,"عليه مضاعفة جهوده والاهتمام أكثر","عليها مضاعفة جهودها والاهتمام أكثر"," معتز محمد محمود خليل",96,672,null,59.9,{"$f":"Table!$D59&\"    \"&Table!$E59&\" / \"&Table!$F59&\" \"&\"/ \" & Table!$G59","v":"عمان    29 / 9 / 2009"},0,"",0,"",0,"",0,"",0,"",0,"",0,"","","","","",null,0,"                ","ناجح في مواد الفصل الاول","ناجحة في مواد الفصل الاول",null,{"$f":"IF(Value!$F$33=\"1\",Table!BI59,Table!BH59)","v":"ناجح و يرفع  لـ الصف السابع"},{"$f":"IF(Value!$F$31=\"1\",Table!BM59,Table!BN59)","v":"عليه مضاعفة جهوده والاهتمام أكثر"},null,"-"]
[50," وسيم علاء موسى ابو رياش","الأردنية","عمان",2,6,2009,64,77,71,77,63,70,86,69,78,67,69,68,96,79,88,82,69,76,92,87,90,85,89,87,null,null,null,94,91,93,null,null,null,null,null,null,"ممتاز","-","-",null,null,null,null,null,null,544,77.709999084472656,"ناجح و يرفع  لـ الصف السابع",null,null,null,null,"ناجح و يرفع  لـ الصف السابع",{"$f":"IF(Value!$F$31=\"1\",CP60,CQ60)","v":"ناجح في مواد الفصل الاول"},null,null,null,"",""," وسيم علاء موسى ابو رياش",77.709999084472656,544,null,0,{"$f":"Table!$D60&\"    \"&Table!$E60&\" / \"&Table!$F60&\" \"&\"/ \" & Table!$G60","v":"عمان    2 / 6 / 2009"},0,"",0,"",0,"",0,"",0,"",0,"",0,"","","","","",null,0,"                ","ناجح في مواد الفصل الاول","ناجحة في مواد الفصل الاول",null,{"$f":"IF(Value!$F$33=\"1\",Table!BI60,Table!BH60)","v":"ناجح و يرفع  لـ الصف السابع"},{"$f":"IF(Value!$F$31=\"1\",Table!BM60,Table!BN60)","v":""},null,"-"]
["",null,null,null,null,null,null,null,null,null,null,null,null,null,null,null,null,null,null,null,null,null,null,null,null,null,null,null,null,null,null,null,null,null,null,null,null,null,null,null,null,null,null,null,null,null,null,null,null,null,null,null,null,null,null,null,null,null,null,null,{"$f":"IF(Value!$F$31=\"1\",CP61,CQ61)","v":"ناجح في مواد الفصل الاول"},null,null,null,"","",null,null,null,null,0,{"$f":"Table!$D61&\"    \"&Table!$E61&\" / \"&Table!$F61&\" \"&\"/ \" & Table!$G61","v":"     /  / "},"","","","","","","","","","","","","","","","","","",null,0,"                ","ناجح في مواد الفصل الاول","ناجحة في مواد الفصل الاول",null,{"$f":"IF(Value!$F$33=\"1\",Table!BI61,Table!BH61)","v":0},{"$f":"IF(Value!$F$31=\"1\",Table!BM61,Table!BN61)","v":""},null,0]
["",null,null,null,null,null,null,null,null,null,null,null,null,null,null,null,null,null,null,null,null,null,null,null,null,null,null,null,null,null,null,null,null,null,null,null,null,null,null,null,null,null,null,null,null,null,null,null,null,null,null,null,null,null,null,null,null,null,null,null,{"$f":"IF(Value!$F$31=\"1\",CP62,CQ62)","v":"ناجح في مواد الفصل الاول"},null,null,null,"","",null,null,null,null,0,{"$f":"Table!$D62&\"    \"&Table!$E62&\" / \"&Table!$F62&\" \"&\"/ \" & Table!$G62","v":"     /  / "},"","","","","","","","","","","","","","","","","","",null,0,"                ","ناجح في مواد الفصل الاول","ناجحة في مواد الفصل الاول",null,{"$f":"IF(Value!$F$33=\"1\",Table!BI62,Table!BH62)","v":0},{"$f":"IF(Value!$F$31=\"1\",Table!BM62,Table!BN62)","v":""},null,0]
["",null,null,null,null,null,null,null,null,null,null,null,null,null,null,null,null,null,null,null,null,null,null,null,null,null,null,null,null,null,null,null,null,null,null,null,null,null,null,null,null,null,null,null,null,null,null,null,null,null,null,null,null,null,null,null,null,null,null,null,{"$f":"IF(Value!$F$31=\"1\",CP63,CQ63)","v":"ناجح في مواد الفصل الاول"},null,null,null,"","",null,null,null,null,0,{"$f":"Table!$D63&\"    \"&Table!$E63&\" / \"&Table!$F63&\" \"&\"/ \" & Table!$G63","v":"     /  / "},"","","","","","","","","","","","","","","","","","",null,0,"                ","ناجح في مواد الفصل الاول","ناجحة في مواد الفصل الاول",null,{"$f":"IF(Value!$F$33=\"1\",Table!BI63,Table!BH63)","v":0},{"$f":"IF(Value!$F$31=\"1\",Table!BM63,Table!BN63)","v":""},null,0]
["",null,null,null,null,null,null,null,null,null,null,null,null,null,null,null,null,null,null,null,null,null,null,null,null,null,null,null,null,null,null,null,null,null,null,null,null,null,null,null,null,null,null,null,null,null,null,null,null,null,null,null,null,null,null,null,null,null,null,null,{"$f":"IF(Value!$F$31=\"1\",CP64,CQ64)","v":"ناجح في مواد الفصل الاول"},null,null,null,"","",null,null,null,null,0,{"$f":"Table!$D64&\"    \"&Table!$E64&\" / \"&Table!$F64&\" \"&\"/ \" & Table!$G64","v":"     /  / "},"","","","","","","","","","","","","","","","","","",null,0,"                ","ناجح في مواد الفصل الاول","ناجحة في مواد الفصل الاول",null,{"$f":"IF(Value!$F$33=\"1\",Table!BI64,Table!BH64)","v":0},{"$f":"IF(Value!$F$31=\"1\",Table!BM64,Table!BN64)","v":""},null,0]
["",null,null,null,null,null,null,null,null,null,null,null,null,null,null,null,null,null,null,null,null,null,null,null,null,null,null,null,null,null,null,null,null,null,null,null,null,null,null,null,null,null,null,null,null,null,null,null,null,null,null,null,null,null,null,null,null,null,null,null,{"$f":"IF(Value!$F$31=\"1\",CP65,CQ65)","v":"ناجح في مواد الفصل الاول"},null,null,null,"","",null,null,null,null,0,{"$f":"Table!$D65&\"    \"&Table!$E65&\" / \"&Table!$F65&\" \"&\"/ \" & Table!$G65","v":"     /  / "},"","","","","","","","","","","","","","","","","","",null,0,"                ","ناجح في مواد الفصل الاول","ناجحة في مواد الفصل الاول",null,{"$f":"IF(Value!$F$33=\"1\",Table!BI65,Table!BH65)","v":0},{"$f":"IF(Value!$F$31=\"1\",Table!BM65,Table!BN65)","v":""},null,0]
[" توقيع معلم المادة الدراسية",null,null,null,null,null,null,null,null,null,null,null,null,null,null,null,null,null,null,null,null,null,null,null,null,null,null,null,null,null,null,null,null,null,null,null,null,null,null,null,null,null,null," اسماء وتواقيع لجنة تدقيق ومقابلة الجداول في المنطقة التعليمية :"]
[null,"    ملحوظة :",null,null,null,"الفصل الدراسي",null,"اسم مربي الصف",null,null,null,"التاريخ",null,null,"التوقيع",null,null,"الفصل الدراسي",null,"اسم مدير المدرسة",null,null,null,"التاريخ",null,null,"التوقيع",null,null,"  خاتم المدرسة الرسمي",null,null,null,null,null,null,null,null,null,"الفصل الدراسي",null,null,null,null,null,"مصدق/مدير التربية والتعليم",null,null,"التاريخ",null,null,null,null,null,"التوقيع"]
[" * تكتب بخط أحمر معدل علامتي الفصلين لكل مادة اكمل فيها الطالب  ",null,null,null,null,"الفصل الأول",null,"سالم سليمان ابو رجل",null,null,null,"2019/2/10",null,null,null,null,null,"الفصل الأول",null,"فتحي محمد ابو فضة",null,null,null,"2019/2/10",null,null,null,null,null,null,null,null,null,null,null,null,null,null,null,"الفصل الأول",null,null,null,null,null,"ايمن فتحي البيطار",null,null,"2019/2/10"]
[" *علامات التربية الفنية والتربية الرياضية والموسيقا تكتب",null,null,null,null,"الفصل الثاني",null,"سالم سليمان ابو رجل",null,null,null,"2019/6/2",null,null,null,null,null,"الفصل الثاني",null,"فتحي محمد ابو فضة",null,null,null,"2019/6/2",null,null,null,null,null,null,null,null,null,null,null,null,null,null,null,"الفصل الثاني",null,null,null,null,null,"ايمن فتحي البيطار",null,null,"2019/6/2"]
["في الجدول ولا تحسب في المجموع العام والمعدل المئوي",null,null,null,null,"اختبار الإكمال",null,"سالم سليمان ابو رجل",null,null,null,"2019/6/12",null,null,null,null,null,"اختبار الإكمال",null,"فتحي محمد ابو فضة",null,null,null,"2019/6/12",null,null,null,null,null,null,null,null,null,null,null,null,null,null,null,"اختبار الإكمال",null,null,null,null,null,"ايمن فتحي البيطار",null,null,"2019/6/12"]

{"sheet":"Certification","index":1,"n_rows":45,"n_cols":17,"rows_kept":45,"cut":false,"hidden":true,"merged":[[44,1,44,4],[44,9,44,10],[37,1,37,10],[38,1,38,10],[40,1,40,10],[42,1,42,4],[42,5,42,6],[42,8,42,9],[35,7,36,8],[35,9,36,10],[33,0,34,1],[33,2,34,2],[35,0,36,0],[35,1,36,2],[35,3,36,3],[35,4,36,6],[33,3,34,5],[33,6,34,6],[29,0,30,0],[29,1,30,10],[31,0,32,1],[31,2,32,10],[33,7,34,8],[33,9,34,10],[27,0,27,2],[27,7,27,10],[28,0,28,2],[28,5,28,8],[25,0,25,2],[25,7,25,10],[26,0,26,2],[26,7,26,10],[23,0,23,2],[23,7,23,10],[24,0,24,2],[24,7,24,10],[21,0,21,2],[21,7,21,10],[22,0,22,2],[22,7,22,10],[19,7,19,10],[20,0,20,2],[20,7,20,10],[17,0,17,2],[17,7,17,10],[18,0,18,2],[18,7,18,10],[11,0,11,1],[11,2,11,3],[13,0,15,2],[13,3,15,3],[19,0,19,2],[13,4,13,10],[14,6,14,10],[15,7,15,10],[16,0,16,2],[16,7,16,10],[9,0,9,1],[9,2,9,3],[9,5,9,7],[9,9,9,10],[5,0,6,10],[7,1,7,3],[7,6,7,7],[7,8,7,10],[0,0,1,3],[0,4,1,6],[0,7,1,10],[2,0,3,3],[2,4,4,6],[2,7,3,10],[4,0,4,3],[4,7,4,10]]}
[null,null,null,null,"بسم الله الرحمن الرحيم",null,null,null,null,null,null," "]
[]
["وكالة الأمم المتحدة لإغاثة وتشغيل اللاجئين الفلسطينيين في الشرق الأدنى",null,null,null,null,null,null,"   دائرة التربية والتعليم"]
["اللاجئين الفلسطينيين في الشرق الأدنى"]
[]
[{"$f":"\" النتائج المدرسية  \" & Value!$F$35 & \" الأساسي  للعام الدراسي \" & Value!$F$10","v":" النتائج المدرسية  للصفوف من الأول الى السابع الأساسي  للعام الدراسي 2020/2019"}]
[]
["الإســـم :",null,null,null,"الجنسية :",null,"مكان وتاريخ الولاده :"]
[]
["الصف والشعبة : ",null,{"$f":"Value!$F$6 & \" ( \"  &  Value!$F$7  & \" ) \"","v":"السادس ( أ ) "},null,"المدرسة:",{"$f":"Value!$F$5","v":"ذكور البقعة الاعدادية الرابعة"},null,null,"البلدة/المخيم:",{"$f":"Value!$F$4","v":"البقعة"},null,null,null,0,null,null,{"$f":"Value!$F$13","v":50}]
[]
["المنطقة التعليمية :",null,{"$f":"Value!$F$3","v":"شمال عمان"}]
[]
["المــــادة الدراسيــــة",null,null,"النهاية العظمى","العلامــــة المستحقــــة"]
[null,null,null,null,"الفصل الأول ","الفصل الثاني ","المعــــدل السنــــوي"]
[null,null,null,null,"رقماً","رقماً","بالأرقام","بالحــــروف"]
[{"$f":"Table!$H$6","v":"التربية الاسلامية"},null,null,{"$f":"Table!$J$10","v":100},null,null,null,{"$f":"SpellNumberA(IF(Value!$F$33=\"1\",E17,G17),0,\"علامة\",\"علامتان\",\"علامات\")","v":""}]
[{"$f":"Table!$K$6","v":"اللغة العربية"},null,null,{"$f":"Table!$M$10","v":100},null,null,null,{"$f":"SpellNumberA(IF(Value!$F$33=\"1\",E18,G18),0,\"علامة\",\"علامتان\",\"علامات\")","v":""}]
[{"$f":"Table!$N$6","v":"اللغة الانجليزية"},null,null,{"$f":"Table!$P$10","v":100},null,null,null,{"$f":"SpellNumberA(IF(Value!$F$33=\"1\",E19,G19),0,\"علامة\",\"علامتان\",\"علامات\")","v":""}]
[{"$f":"Table!$Q$6","v":"الرياضيات"},null,null,{"$f":"Table!$S$10","v":100},null,null,null,{"$f":"SpellNumberA(IF(Value!$F$33=\"1\",E20,G20),0,\"علامة\",\"علامتان\",\"علامات\")","v":""}]
[{"$f":"Table!$T$6","v":"التربية الاجتماعية والوطنية"},null,null,{"$f":"Table!$V$10","v":100},null,null,null,{"$f":"SpellNumberA(IF(Value!$F$33=\"1\",E21,G21),0,\"علامة\",\"علامتان\",\"علامات\")","v":""}]
[{"$f":"Table!$W$6","v":"العلـــوم"},null,null,{"$f":"Table!$Y$10","v":100},null,null,null,{"$f":"SpellNumberA(IF(Value!$F$33=\"1\",E22,G22),0,\"علامة\",\"علامتان\",\"علامات\")","v":""}]
[{"$f":"Table!$Z$6","v":"التربية الفنية"},null,null,{"$f":"Table!$AB$10","v":100},null,null,null,{"$f":"SpellNumberA(IF(Value!$F$33=\"1\",E23,G23),0,\"علامة\",\"علامتان\",\"علامات\")","v":""}]
[{"$f":"Table!$AC$6","v":"التربية الرياضية"},null,null,{"$f":"Table!$AE$10","v":100},null,null,null,{"$f":"SpellNumberA(IF(Value!$F$33=\"1\",E24,G24),0,\"علامة\",\"علامتان\",\"علامات\")","v":""}]
[{"$f":"Table!$AF$6","v":"الموسيقا والاناشيد"},null,null,{"$f":"Table!$AH$10","v":100},null,null,null,{"$f":"SpellNumberA(IF(Value!$F$33=\"1\",E25,G25),0,\"علامة\",\"علامتان\",\"علامات\")","v":""}]
[{"$f":"Table!$AI$6","v":"التربية المهنية"},null,null,{"$f":"Table!$AK$10","v":100},null,null,null,{"$f":"SpellNumberA(IF(Value!$F$33=\"1\",E26,G26),0,\"علامة\",\"علامتان\",\"علامات\")","v":""}]
[{"$f":"Table!$AL$6","v":"الحاسوب"},null,null,{"$f":"Table!$AN$10","v":100},null,null,null,{"$f":"SpellNumberA(IF(Value!$F$33=\"1\",E27,G27),0,\"علامة\",\"علامتان\",\"علامات\")","v":""}]
[{"$f":"Table!$AO$6","v":"الثقافة المالية"},null,null,{"$f":"Table!$AQ$10","v":100},null,null,null,{"$f":"SpellNumberA(IF(Value!$F$33=\"1\",E28,G28),0,\"علامة\",\"علامتان\",\"علامات\")","v":""}]
["المعدل المئوي بالأرقام  :",null,null,null,"بالحروف :",{"$f":"IF(D29<>\"-\",SpellNumberA(D29,0,\"علامة\",\"علامتان\",\"علامات\"),\"\")","v":""}]
["النتيجة :"]
[]
["ملحوظات مربي الصف :"]
[]
["عدد أيام غياب الطالب",null,null,"عدد أيام الدوام الرسمي الكامل :",null,null,{"$f":"Table!$AS$10","v":199},"اسم وتوقيع مربي الصف:",null,{"$f":"Value!$F$8","v":"سالم سليمان ابو رجل"}]
[]
["التاريخ :",{"$f":"IF(Value!$F$33=\"2\",Value!$F$14,Value!$F$25)","v":"2019/6/2"},null,"خاتم المدرسة :",null,null,"اسم وتوقيع مدير المدرسة :","اسم وتوقيع مدير المدرسة :",null,{"$f":"Value!$F$9","v":"فتحي محمد ابو فضة"}]
[]
["ملحوظات"]
["1 )"," تقدير العلامات: مــن 90-100 % ممتاز، 80-89 %جيد جدا ً، 70-79 % جيـد، 60-69 % متوسط، 50-59 % مقبول، 49 % فما دون مقصر"]
[]
["2 )","يكتب في النتيجة أحد الآتية : يرفع إلى الصف    ،  مكمل في     ,   يعيد صفه"]
[]
["3 )","تعقد اختبارات الإكمال في المدرسة  يوم",null,null,null,{"$f":"IF(Value!$F$33=\"1\",\"\",DATE(YEAR(Value!$F$22),MONTH(Value!$F$22),DAY(Value!$F$22)))","v":"2019-06-12"},null,"الموافق",{"$f":"IF(Value!$F$33=\"2\",Value!$F$22,\"\")","v":"2019/6/12"}]
[]
["4 )","يبدأ دوام الطلبة في الفصل الدراسي الأول  للعام الدراسي",null,null,null,{"$f":"IF(Value!$F$33=\"2\",Value!$F$26,\"\")","v":"2022/2021"},"يوم",{"$f":"IF(Value!$F$33=\"1\",\"\",DATE(YEAR(Value!$F$23),MONTH(Value!$F$23),DAY(Value!$F$23)))","v":"2019-09-01"},"الموافق",{"$f":"IF(Value!$F$33=\"2\",Value!$F$23,\"\")","v":"2019/9/1"}]

{"sheet":"Value","index":2,"n_rows":218,"n_cols":11,"rows_kept":218,"cut":false,"hidden":true,"merged":[[205,6,205,7],[204,1,204,2],[204,6,204,7],[209,1,209,2],[209,6,209,7],[206,1,206,2],[206,6,206,7],[207,1,207,2],[207,6,207,7],[208,1,208,2],[208,6,208,7],[180,6,180,7],[186,1,186,2],[180,1,180,2],[185,6,185,7],[190,6,190,7],[189,6,189,7],[190,1,190,2],[183,1,183,2],[194,6,194,7],[194,1,194,2],[199,1,199,2],[201,1,201,2],[191,1,191,2],[192,1,192,2],[211,6,211,9],[211,1,211,4],[181,6,181,7],[191,6,191,7],[192,6,192,7],[193,1,193,2],[193,6,193,7],[188,6,188,7],[184,6,184,7],[197,1,197,2],[197,6,197,7],[198,1,198,2],[198,6,198,7],[195,1,195,2],[195,6,195,7],[196,1,196,2],[196,6,196,7],[203,1,203,2],[203,6,203,7],[205,1,205,2],[217,1,217,3],[212,6,212,8],[213,6,213,8],[214,6,214,8],[215,6,215,8],[217,6,217,8],[216,1,216,3],[215,1,215,3],[214,1,214,3],[216,6,216,8],[212,1,212,3],[213,1,213,3],[179,6,179,7],[183,6,183,7],[184,1,184,2],[167,1,167,3],[168,1,168,3],[172,1,172,3],[178,1,178,2],[173,1,173,3],[178,6,178,7],[179,1,179,2],[182,1,182,2],[189,1,189,2],[186,6,186,7],[187,1,187,2],[187,6,187,7],[188,1,188,2],[199,6,199,7],[200,1,200,2],[200,6,200,7],[202,1,202,2],[202,6,202,7],[201,6,201,7],[165,1,165,3],[166,1,166,3],[169,1,169,3],[185,1,185,2],[155,1,155,3],[156,1,156,3],[163,1,163,3],[164,1,164,3],[161,1,161,3],[150,1,150,3],[147,1,147,3],[148,1,148,3],[145,1,145,3],[146,1,146,3],[139,1,139,3],[136,4,136,6],[176,0,177,9],[182,6,182,7],[181,1,181,2],[143,1,143,3],[144,1,144,3],[153,1,153,3],[154,1,154,3],[151,1,151,3],[152,1,152,3],[149,1,149,3],[159,1,159,3],[160,1,160,3],[157,1,157,3],[158,1,158,3],[170,1,170,3],[162,1,162,3],[171,1,171,3],[136,7,136,8],[141,1,141,3],[142,1,142,3],[140,1,140,3],[133,1,133,4],[133,5,133,9],[136,0,136,1],[136,2,136,3],[137,0,138,0],[137,1,138,3],[137,4,137,9],[135,4,135,6],[125,1,125,4],[125,5,125,9],[126,1,126,4],[126,5,126,9],[123,1,123,4],[123,5,123,9],[124,1,124,4],[124,5,124,9],[132,1,132,4],[132,5,132,9],[127,1,127,4],[127,5,127,9],[128,1,128,4],[128,5,128,9],[129,1,129,4],[129,5,129,9],[130,1,130,4],[130,5,130,9],[131,1,131,4],[131,5,131,9],[121,1,121,4],[121,5,121,9],[122,1,122,4],[122,5,122,9],[107,5,107,9],[119,1,119,4],[119,5,119,9],[120,1,120,4],[120,5,120,9],[117,1,117,4],[118,1,118,4],[118,5,118,9],[111,1,111,4],[111,5,111,9],[116,1,116,4],[116,5,116,9],[113,1,113,4],[113,5,113,9],[114,1,114,4],[115,1,115,4],[115,5,115,9],[110,1,110,4],[105,0,105,1],[105,2,105,3],[117,5,117,9],[56,1,56,4],[56,5,56,9],[114,5,114,9],[110,5,110,9],[109,5,109,9],[109,1,109,4],[112,1,112,4],[112,5,112,9],[104,0,104,1],[104,4,104,6],[105,4,105,6],[105,7,105,8],[107,1,107,4],[0,3,1,7],[45,0,45,1],[45,2,45,3],[44,4,44,6],[45,4,45,6],[45,7,45,8],[65,1,65,4],[65,5,65,9],[104,2,104,3],[104,7,104,8],[66,1,66,4],[66,5,66,9],[67,1,67,4],[67,5,67,9],[72,1,72,4],[108,1,108,4],[108,5,108,9],[103,4,103,6],[55,1,55,4],[55,5,55,9],[71,1,71,4],[68,1,68,4],[68,5,68,9],[69,1,69,4],[69,5,69,9],[60,1,60,4],[60,5,60,9],[61,1,61,4],[72,5,72,9],[70,5,70,9],[61,5,61,9],[59,1,59,4],[59,5,59,9],[64,5,64,9],[63,1,63,4],[62,1,62,4],[54,1,54,4],[54,5,54,9],[46,1,46,4],[46,5,46,9],[47,1,47,4],[47,5,47,9],[48,1,48,4],[48,5,48,9],[52,5,52,9],[49,1,49,4],[50,5,50,9],[51,1,51,4],[51,5,51,9],[49,5,49,9],[50,1,50,4],[52,1,52,4],[57,5,57,9],[58,1,58,4],[58,5,58,9],[53,1,53,4],[71,5,71,9],[70,1,70,4],[62,5,62,9],[63,5,63,9],[64,1,64,4],[57,1,57,4],[53,5,53,9],[77,1,77,4],[77,5,77,9],[78,1,78,4],[78,5,78,9],[79,1,79,4],[79,5,79,9],[73,1,73,4],[76,1,76,4],[76,5,76,9],[75,1,75,4],[75,5,75,9],[73,5,73,9],[74,1,74,4],[74,5,74,9],[83,1,83,4],[83,5,83,9],[90,1,90,4],[90,5,90,9],[88,1,88,4],[88,5,88,9],[89,1,89,4],[89,5,89,9],[80,1,80,4],[80,5,80,9],[84,1,84,4],[84,5,84,9],[85,1,85,4],[85,5,85,9],[82,1,82,4],[82,5,82,9],[81,1,81,4],[81,5,81,9],[92,1,92,4],[92,5,92,9],[87,1,87,4],[87,5,87,9],[93,1,93,4],[93,5,93,9],[91,1,91,4],[91,5,91,9],[86,1,86,4],[86,5,86,9],[94,1,94,4],[94,5,94,9],[101,1,101,4],[101,5,101,9],[98,1,98,4],[98,5,98,9],[99,1,99,4],[99,5,99,9],[100,1,100,4],[100,5,100,9],[95,1,95,4],[95,5,95,9],[97,1,97,4],[97,5,97,9],[96,1,96,4],[96,5,96,9]]}
[null,null,null,"الثوابت"]
[]
[null," ",null,null,"المنطقـة التعليمية","شمال عمان","إختر"]
[null,null,null,null,"البلـدة / المخيـم","البقعة","ممتاز"]
[null,null,null,null,"اسـم المدرسـة","ذكور البقعة الاعدادية الرابعة","جيد جدا"]
[null,null,null,null,"الصـف","السادس","جيد"]
[null,null,null,null,"الشعبة","أ","مقبول"]
[null,null,null,null,"مربي الصف","سالم سليمان ابو رجل",{"$f":"G16&\"/\"&G15","v":"2020/2019"}]
[null,null,null,null,"مدير المدرسة","فتحي محمد ابو فضة",{"$f":"G17&\"/\"&G16","v":"2021/2020"}]
[null,null,null,null,"العام الدراسـي الحالي","2020/2019",{"$f":"G18&\"/\"&G17","v":"2022/2021"}]
[null,null,null,1,"عدد أيام الدوام الرسمي الكامل",199,{"$f":"G19&\"/\"&G18","v":"2023/2022"}]
[null,null,null,2,"النسبة المئوية للحد الاقصى للغياب",20]
[null,null,null,3,"عدد طلاب الصف",50,{"$f":"COUNTA(Table!B11:B65)","v":50}]
[null,null,null,4,"  تاريـخ الجدول/الشهادة الفصل الثاني",{"$f":"H24&\"/\"&H23&\"/\"&H22","v":"2019/6/2"},{"$f":"TODAY()","v":"2021-07-06"},10]
[null,null,null,5,null,null,{"$f":"G17-2","v":2019},2]
[null,null,null,6,null,null,{"$f":"G17-1","v":2020},2019]
[null,null,null,7,"اذا كان ناجحـاً"," يرفع إلى الصف السابع الأساسي",{"$f":"YEAR(G14)","v":2021}]
[null,null,null,8,"اذا كان راسبـاً","يعيد صفه",{"$f":"G17+1","v":2022},1]
[null,null,null,9,"اذا تجاوز غيابه النسبة المقـررة","يعيد صفه بسبب تجاوزه نسبة الغياب",{"$f":"G17+2","v":2023},9]
[null,null,null,10,null,null,null,2019]
[null,null,null,11,"اذا تكرر رسوبه في صفه","يرفع تلقائيا لتكرار رسوبه في صفه","أ"]
[null,null,null,12,"تاريخ الإكمال من",{"$f":"H32&\"/\"&H31&\"/\"&H30","v":"2019/6/12"},"ب",2]
[null,null,null,13,"تاريخ بدء العام الدراسي",{"$f":"H20&\"/\"&H19&\"/\"&H18","v":"2019/9/1"},"ج",6]
[null,null,null,14,"هل الموسيقى مادة دراسية","لا","د",2019]
["",null,null,15,"تاريخ الجدول الفصل الاول",{"$f":"H16&\"/\"&H15&\"/\"&H14","v":"2019/2/10"},"هـ"]
[null,null,null,16,"العام الجديد","2022/2021","و",1]
[null,null,null,17,"اسم مدير التعليـــــــــــــــــــــــــــــــــم","ايمن فتحي البيطار","ز",9]
[null,null,null,18,"جنس الطلبة","ذكر",null,2019]
[null,null,null,19,"رقم الصف",{"$f":"IF($F$6=\"السابع\",\"2\",(IF($F$6=\"الثامن\",\"3\",(IF($F$6=\"التاسع\",\"4\",(IF($F$6=\"العاشر\",\"5\",\"1\")))))))","v":"1"}]
[null,null,null,20,"الرقم المقسوم عليه في المعدل",{"$f":"IF($F$29=\"5\",\"17\",(IF($F$29=\"4\",\"18\",(IF($F$29=\"3\",\"16\",(IF($F$29=\"2\",\"9\",(IF($F$34=\"1\",\"6\",\"7\")))))))))","v":"7"},null,12]
[null,null,null,21,"رقم جنس الطالب",{"$f":"IF($F$28=\"ذكر\",\"1\",\"2\")","v":"1"},"الأول",6]
[null,null,null,22,"الفصل الدراسي","الفصل الثاني","الثاني",2019]
[null,null,null,23,"رقم الفصل الاول",{"$f":"IF($F$32=\"الفصل الأول\",\"1\",\"2\")","v":"2"},"الثالث"]
[null,null,null,24,"رقم الصف",{"$f":"IF($F$6=\"الأول\",\"1\",(IF($F$6=\"الثاني\",\"1\",(IF($F$6=\"الثالث\",\"1\",(IF($F$6=\"الرابع\",\"2\",(IF($F$6=\"الخامس\",\"2\",(IF($F$6=\"السادس\",\"2\",\"3\")))))))))))","v":"2"},"الرابع"]
[null,null,null,25,"الترويسه للجدول",{"$f":"IF($F$29=\"5\",\"للصف العاشر\",(IF($F$29=\"4\",\"للصفين الثامن والتاسع\",(IF($F$29=\"3\",\"للصفين الثامن والتاسع\",\"للصفوف من الأول الى السابع\")))))","v":"للصفوف من الأول الى السابع"},"الخامس"]
[null,null,null,26,"الرقم الوطني للمدرسة ",160184,"السادس"]
[null,null,null,27,"رقم الهاتف :",4725453,"السابع"]
[null,null,null,28,"عدد غياب الفصل الاول",97,"الثامن"]
[null,null,null,29,"رمز المديرية",45,"التاسع"]
[null,null,null,30,"الموقع الالكتروني للمدرسة","unrwa54786@unrwa.org","العاشر"]
[null,null,null,31,"تاريخ الاكمال الى",{"$f":"H32&\"/\"&(H31)&\"/\"&(H30+2)","v":"2019/6/14"}]
[null,null,null,null,"تاريخ تسليم الكتب من",{"$f":"H28&\"/\"&H27&\"/\"&H26","v":"2019/9/1"}]
[null,null,null,null,"تاريخ تسليم الكتب الى",{"$f":"H28&\"/\"&H27&\"/\"&(H26+2)","v":"2019/9/3"}]
[null,null,null,null,"هل ترغب بكتابة النتيجة السنوية","نعم"]
[null,null,null,null,"قائمة الطلبة الناجحين والمكملين"]
["مربي الصف :",null,{"$f":"F8","v":"سالم سليمان ابو رجل"},null,{"$f":"F5","v":"ذكور البقعة الاعدادية الرابعة"},null,null,"الصف والشعبة :",null,{"$f":"F6 & \" ( \" & F7 & \" )\"","v":"السادس ( أ )"}]
["الرقم","اسم الطالب",null,null,null,"ملاحظات"]
[{"$f":"IF(B48<>\"\",1,\"\")","v":1}," احمد سيف الدين ابراهيم ابو عجور",null,null,null," يرفع إلى الصف السابع الأساسي",null,null,null,null,{"$f":"COUNTA(B48:E102)","v":46}]
[{"$f":"IF(AND(B49<>\"\",A48<>\"\"),A48+1,\"\")","v":2}," احمد محمود امين الخالدي",null,null,null,"مكمل"]
[{"$f":"IF(AND(B50<>\"\",A49<>\"\"),A49+1,\"\")","v":3}," احمد هاني محمد ابو سلمان",null,null,null," يرفع إلى الصف السابع الأساسي"]
[4," احمد ياسين عبد المحسن ابو دية",null,null,null," يرفع إلى الصف السابع الأساسي"]
[5," اسامه وائل عبد الفتاح الاخرس",null,null,null," يرفع إلى الصف السابع الأساسي"]
[6," البراء احمد محمد الشيش",null,null,null," يرفع إلى الصف السابع الأساسي"]
[7," انس مهنا نمر حسن",null,null,null," يرفع إلى الصف السابع الأساسي"]
[8," ايهم ايمن محمد خليل",null,null,null," يرفع إلى الصف السابع الأساسي"]
[9," براء فادي ابراهيم الاسمر",null,null,null," يرفع إلى الصف السابع الأساسي"]
[10," ثائر موسى مصطفى ابو سليم",null,null,null," يرفع إلى الصف السابع الأساسي"]
[11," جواد احمد محمود ابو اصبع",null,null,null," يرفع إلى الصف السابع الأساسي"]
[12," حمزه محمود عبد الرحمن اسريوه",null,null,null," يرفع إلى الصف السابع الأساسي"]
[13," خليل بلال خليل البايض",null,null,null," يرفع إلى الصف السابع الأساسي"]
[14," زياد شادي زياد زياد",null,null,null," يرفع إلى الصف السابع الأساسي"]
[15," زيد عصام محمد مسلم",null,null,null," يرفع إلى الصف السابع الأساسي"]
[16," زيد علي سعد دعاس",null,null,null," يرفع إلى الصف السابع الأساسي"]
[17," زيد ماجد ربيع ابو ربيع",null,null,null,"مكمل"]
[18," زيد محمد عمر عايش",null,null,null," يرفع إلى الصف السابع الأساسي"]
[19," سعيد عوض سلامه اسعد",null,null,null,"مكمل"]
[20," عباده غسان سعيد بدران",null,null,null," يرفع إلى الصف السابع الأساسي"]
[21," عبد الله بسام محمد رضوان",null,null,null," يرفع إلى الصف السابع الأساسي"]
[22," عبد الله عبد الرحمن محمد الملع",null,null,null," يرفع إلى الصف السابع الأساسي"]
[23," عبد الله ناصر يونس بدران",null,null,null," يرفع إلى الصف السابع الأساسي"]
[24," عدي فادي سعيد شبراوي",null,null,null," يرفع إلى الصف السابع الأساسي"]
[25," علاء وسام محمد الفيومي",null,null,null," يرفع إلى الصف السابع الأساسي"]
[26," عمر احمد سليمان العمايره",null,null,null," يرفع إلى الصف السابع الأساسي"]
[27," عمر خالد محمد ابو فضه",null,null,null," يرفع إلى الصف السابع الأساسي"]
[28," عمر محمد محمود العناتي",null,null,null," يرفع إلى الصف السابع الأساسي"]
[29," فارس غسان محمد رضوان",null,null,null," يرفع إلى الصف السابع الأساسي"]
[30," فراس فضل عبد الرازق سعادة",null,null,null," يرفع إلى الصف السابع الأساسي"]
[31," لؤي بسام عبد الرحمن عامر",null,null,null," يرفع إلى الصف السابع الأساسي"]
[32," ليث عبد الرحيم عبد المنعم قنديل",null,null,null," يرفع إلى الصف السابع الأساسي"]
[33," محمد احمد خليل ابو صفيه",null,null,null,"مكمل"]
[34," محمد احمد محمود عشيش",null,null,null," يرفع إلى الصف السابع الأساسي"]
[35," محمد اسامه حمزه ابو زعنونه",null,null,null," يرفع إلى الصف السابع الأساسي"]
[36," محمد جلال عوض عبد القادر",null,null,null," يرفع إلى الصف السابع الأساسي"]
[37," محمد خالد وصفي عبد اللطيف",null,null,null," يرفع إلى الصف السابع الأساسي"]
[38," محمد عمر محمد يوسف",null,null,null,"مكمل"]
[39," محمود علي محمود ابو ديه",null,null,null," يرفع إلى الصف السابع الأساسي"]
[40," مصلح عمر مصلح الجوابره",null,null,null," يرفع إلى الصف السابع الأساسي"]
[41," مهند ابراهيم داود الشطرات",null,null,null," يرفع إلى الصف السابع الأساسي"]
[42," مهند زياد ابراهيم ابو شعيرة",null,null,null,"مكمل"]
[43," مؤمن مهنا نمر حسن",null,null,null," يرفع إلى الصف السابع الأساسي"]
[44," ياسين يوسف عبد الخالق العايدي",null,null,null," يرفع إلى الصف السابع الأساسي"]
[45," يزيد يوسف موسى بنات",null,null,null," يرفع إلى الصف السابع الأساسي"]
[46," يعقوب عايد جميل ابوسمره",null,null,null," يرفع إلى الصف السابع الأساسي"]
[""]
[""]
[""]
[""]
[""]
[""]
[""]
[""]
[""]
[]
[null,null,null,null,"قائمة الطلبة االمعيدين"]
[]
["مربي الصف :",null,{"$f":"F8","v":"سالم سليمان ابو رجل"},null,{"$f":"F5","v":"ذكور البقعة الاعدادية الرابعة"},null,null,"الصف والشعبة :",null,{"$f":"F6& \" ( \" & F7 & \" )\"","v":"السادس ( أ )"}]
[]
["الرقم","اسم الطالب",null,null,null,"ملاحظات"]
[{"$f":"IF(B109<>\"\",1,\"\")","v":1}," اسماعيل احميدان ابراهيم ابو مزروع",null,null,null,"يعيد صفه",null,null,null,null,{"$f":"COUNTA(B109:E134)","v":3}]
[{"$f":"IF(AND(B110<>\"\",A109<>\"\"),A109+1,\"\")","v":2}," جلال شكري عبد العزيز وشاح",null,null,null,"يعيد صفه"]
[{"$f":"IF(AND(B111<>\"\",A110<>\"\"),A110+1,\"\")","v":3}," حسام خالد سليم العش",null,null,null,"يعيد صفه"]
[""]
[""]
[""]
[""]
[""]
[""]
[""]
[""]
[""]
[""]
[""]
[""]
[""]
[""]
[""]
[""]
[""]
[""]
[""]
[""]
[""]
[""]
[""]
[]
[null,null,null,null,"قائمة مباحث الاكمال"]
["مربي الصف :",null,{"$f":"F8","v":"سالم سليمان ابو رجل"},null,{"$f":"F5","v":"ذكور البقعة الاعدادية الرابعة"},null,null,"الصف والشعبة :",null,{"$f":"F6 & \" ( \" & F7& \" )\"","v":"السادس ( أ )"}]
["الرقم","اسم الطالب",null,null,"مباحث الاكمال"]
[null,null,null,null,"الاول","العلامة","الثاني","العلامة","الثالث","العلامة"]
[{"$f":"IF(B140<>\"\",1,\"\")","v":1}," احمد محمود امين الخالدي",null,null,"الرياضيات",null,null,null,null,null,{"$f":"COUNTA(B140:D174)","v":6}]
[{"$f":"IF(AND(B141<>\"\",A140<>\"\"),A140+1,\"\")","v":2}," زيد ماجد ربيع ابو ربيع",null,null,"اللغة العربية",null,"التربية الإجتماعية"]
[{"$f":"IF(AND(B142<>\"\",A141<>\"\"),A141+1,\"\")","v":3}," سعيد عوض سلامه اسعد",null,null,"الرياضيات",null,"التربية الإجتماعية"]
[4," محمد احمد خليل ابو صفيه",null,null,"اللغة العربية",null,"التربية الإجتماعية"]
[5," محمد عمر محمد يوسف",null,null,"التربية الإجتماعية"]
[6," مهند زياد ابراهيم ابو شعيرة",null,null,"التربية الإجتماعية"]
[""]
[""]
[""]
[""]
[""]
[""]
[""]
[""]
[""]
[""]
[""]
[""]
[""]
[""]
[""]
[""]
[""]
[""]
[""]
[""]
[""]
[""]
[""]
[""]
[""]
[""]
[""]
[""]
[""]
[""]
[]
[{"$f":"\" قائمة معدلات طلبة الصف \"&F6& \" ( \" & F7 & \" )\"&\" مرتبه تنازليا \"","v":" قائمة معدلات طلبة الصف السادس ( أ ) مرتبه تنازليا "}]
[]
["الترتيب","اسم الطالب",null,"المعدل","مجموع العلامات","الترتيب","اسم الطالب",null,"المعدل","مجموع العلامات"]
[{"$f":"Table!A11","v":1},{"$f":"Table!BO11","v":" ابراهيم انور ابراهيم حميدان"},null,{"$f":"Table!BP11","v":60.139999389648438},{"$f":"Table!BQ11","v":421},{"$f":"Table!A39","v":29},{"$f":"Table!BO39","v":" عمار ابراهيم احمد سريوه"},null,{"$f":"Table!BP39","v":81.139999389648438},{"$f":"Table!BQ39","v":568}]
[{"$f":"Table!A12","v":2},{"$f":"Table!BO12","v":" احمد باسل فيصل العاصي"},null,{"$f":"Table!BP12","v":97.290000915527344},{"$f":"Table!BQ12","v":681},{"$f":"Table!A40","v":30},{"$f":"Table!BO40","v":" عمار عبد الرحمن شحاده طعمه"},null,{"$f":"Table!BP40","v":78.709999084472656},{"$f":"Table!BQ40","v":551}]
[{"$f":"Table!A13","v":3},{"$f":"Table!BO13","v":" احمد جمال محمود عثمان"},null,{"$f":"Table!BP13","v":89.709999084472656},{"$f":"Table!BQ13","v":628},{"$f":"Table!A41","v":31},{"$f":"Table!BO41","v":" عمار عماد ابراهيم بنات"},null,{"$f":"Table!BP41","v":94.290000915527344},{"$f":"Table!BQ41","v":660}]
[{"$f":"Table!A14","v":4},{"$f":"Table!BO14","v":" احمد حسين عبد الفتاح عكاشه"},null,{"$f":"Table!BP14","v":74.709999084472656},{"$f":"Table!BQ14","v":523},{"$f":"Table!A42","v":32},{"$f":"Table!BO42","v":" عمر محمد عصري دعوش"},null,{"$f":"Table!BP42","v":59.860000610351563},{"$f":"Table!BQ42","v":419}]
[{"$f":"Table!A15","v":5},{"$f":"Table!BO15","v":" احمد خالد سعيد شعبان ابوشعيب"},null,{"$f":"Table!BP15","v":75.139999389648438},{"$f":"Table!BQ15","v":526},{"$f":"Table!A43","v":33},{"$f":"Table!BO43","v":" عمر محمود يعقوب يعقوب"},null,{"$f":"Table!BP43","v":71.860000610351563},{"$f":"Table!BQ43","v":503}]
[{"$f":"Table!A16","v":6},{"$f":"Table!BO16","v":" احمد رشيد محمد الطموني"},null,{"$f":"Table!BP16","v":65},{"$f":"Table!BQ16","v":455},{"$f":"Table!A44","v":34},{"$f":"Table!BO44","v":" ماجد طارق ماجد جبر"},null,{"$f":"Table!BP44","v":95.709999084472656},{"$f":"Table!BQ44","v":670}]
[{"$f":"Table!A17","v":7},{"$f":"Table!BO17","v":" احمد عبد العزيز محمد عويضه"},null,{"$f":"Table!BP17","v":85.430000305175781},{"$f":"Table!BQ17","v":598},{"$f":"Table!A45","v":35},{"$f":"Table!BO45","v":" مالك ايهاب شفيق ابو زينه"},null,{"$f":"Table!BP45","v":93.139999389648438},{"$f":"Table!BQ45","v":652}]
[{"$f":"Table!A18","v":8},{"$f":"Table!BO18","v":" احمد علاء مصطفى غرايبه"},null,{"$f":"Table!BP18","v":63.290000915527344},{"$f":"Table!BQ18","v":443},{"$f":"Table!A46","v":36},{"$f":"Table!BO46","v":" مالك حسام صبحي عبده"},null,{"$f":"Table!BP46","v":96.139999389648438},{"$f":"Table!BQ46","v":673}]
[{"$f":"Table!A19","v":9},{"$f":"Table!BO19","v":" احمد فوزي محمود حميدان"},null,{"$f":"Table!BP19","v":83.430000305175781},{"$f":"Table!BQ19","v":584},{"$f":"Table!A47","v":37},{"$f":"Table!BO47","v":" محمد احمد سليمان العمايرة"},null,{"$f":"Table!BP47","v":91.139999389648437},{"$f":"Table!BQ47","v":638}]
[{"$f":"Table!A20","v":10},{"$f":"Table!BO20","v":" احمد محمد احمد الخوره"},null,{"$f":"Table!BP20","v":96.290000915527344},{"$f":"Table!BQ20","v":674},{"$f":"Table!A48","v":38},{"$f":"Table!BO48","v":" محمد احمد محمد عطا الله"},null,{"$f":"Table!BP48","v":91.709999084472656},{"$f":"Table!BQ48","v":642}]
[{"$f":"Table!A21","v":11},{"$f":"Table!BO21","v":" المعتز بالله ابراهيم سليمان ابو رياش"},null,{"$f":"Table!BP21","v":85.290000915527344},{"$f":"Table!BQ21","v":597},{"$f":"Table!A49","v":39},{"$f":"Table!BO49","v":" محمد سائد صقر صالحيه"},null,{"$f":"Table!BP49","v":64},{"$f":"Table!BQ49","v":448}]
[{"$f":"Table!A22","v":12},{"$f":"Table!BO22","v":" امير محمد عبد الكريم رضوان"},null,{"$f":"Table!BP22","v":96},{"$f":"Table!BQ22","v":672},{"$f":"Table!A50","v":40},{"$f":"Table!BO50","v":" محمد علي عيسى الحارثي"},null,{"$f":"Table!BP50","v":60.290000915527344},{"$f":"Table!BQ50","v":422}]
[{"$f":"Table!A23","v":13},{"$f":"Table!BO23","v":" بهاء الدين محمد خليل رمضان"},null,{"$f":"Table!BP23","v":79.290000915527344},{"$f":"Table!BQ23","v":555},{"$f":"Table!A51","v":41},{"$f":"Table!BO51","v":" محمد مالك سعيد شبراوي"},null,{"$f":"Table!BP51","v":80.139999389648438},{"$f":"Table!BQ51","v":561}]
[{"$f":"Table!A24","v":14},{"$f":"Table!BO24","v":" حسين زياد حسين احمد"},null,{"$f":"Table!BP24","v":76.430000305175781},{"$f":"Table!BQ24","v":535},{"$f":"Table!A52","v":42},{"$f":"Table!BO52","v":" محمد مصطفى عبد الرحيم العظم"},null,{"$f":"Table!BP52","v":80.430000305175781},{"$f":"Table!BQ52","v":563}]
[{"$f":"Table!A25","v":15},{"$f":"Table!BO25","v":" حمزه عزات حسين يامين"},null,{"$f":"Table!BP25","v":92.709999084472656},{"$f":"Table!BQ25","v":649},{"$f":"Table!A53","v":43},{"$f":"Table!BO53","v":" محمد يوسف محمد لافي"},null,{"$f":"Table!BP53","v":95.709999084472656},{"$f":"Table!BQ53","v":670}]
[{"$f":"Table!A26","v":16},{"$f":"Table!BO26","v":" خالد توفيق خليل ياسوري"},null,{"$f":"Table!BP26","v":90.709999084472656},{"$f":"Table!BQ26","v":635},{"$f":"Table!A54","v":44},{"$f":"Table!BO54","v":" محمود نعمان يوسف غانم"},null,{"$f":"Table!BP54","v":87.430000305175781},{"$f":"Table!BQ54","v":612}]
[{"$f":"Table!A27","v":17},{"$f":"Table!BO27","v":" خليل احمد موسى الرحايله"},null,{"$f":"Table!BP27","v":86},{"$f":"Table!BQ27","v":602},{"$f":"Table!A55","v":45},{"$f":"Table!BO55","v":" مروان قاسم محمد ناصر"},null,{"$f":"Table!BP55","v":80.569999694824219},{"$f":"Table!BQ55","v":564}]
[{"$f":"Table!A28","v":18},{"$f":"Table!BO28","v":" راشد وائل عواد عامر"},null,{"$f":"Table!BP28","v":89},{"$f":"Table!BQ28","v":623},{"$f":"Table!A56","v":46},{"$f":"Table!BO56","v":" مصطفى خالد مصطفى غرايبه"},null,{"$f":"Table!BP56","v":67},{"$f":"Table!BQ56","v":469}]
[{"$f":"Table!A29","v":19},{"$f":"Table!BO29","v":" ريان داود حسين العواجنه"},null,{"$f":"Table!BP29","v":60},{"$f":"Table!BQ29","v":420},{"$f":"Table!A57","v":47},{"$f":"Table!BO57","v":" مصعب مؤمن عبد الحليم قطيشات"},null,{"$f":"Table!BP57","v":83.569999694824219},{"$f":"Table!BQ57","v":585}]
[{"$f":"Table!A30","v":20},{"$f":"Table!BO30","v":" زيد محمود احمد علي"},null,{"$f":"Table!BP30","v":81.569999694824219},{"$f":"Table!BQ30","v":571},{"$f":"Table!A58","v":48},{"$f":"Table!BO58","v":" معاذ فادي ابراهيم الاسمر"},null,{"$f":"Table!BP58","v":87.860000610351563},{"$f":"Table!BQ58","v":615}]
[{"$f":"Table!A31","v":21},{"$f":"Table!BO31","v":" سيف الدين سفيان سمير الدكروك"},null,{"$f":"Table!BP31","v":84},{"$f":"Table!BQ31","v":588},{"$f":"Table!A59","v":49},{"$f":"Table!BO59","v":" معتز محمد محمود خليل"},null,{"$f":"Table!BP59","v":96},{"$f":"Table!BQ59","v":672}]
[{"$f":"Table!A32","v":22},{"$f":"Table!BO32","v":" صالح رأفت صالح منتصر"},null,{"$f":"Table!BP32","v":86.290000915527344},{"$f":"Table!BQ32","v":604},{"$f":"Table!A60","v":50},{"$f":"Table!BO60","v":" وسيم علاء موسى ابو رياش"},null,{"$f":"Table!BP60","v":77.709999084472656},{"$f":"Table!BQ60","v":544}]
[{"$f":"Table!A33","v":23},{"$f":"Table!BO33","v":" عاصم عماد عبد الرحمن غانم"},null,{"$f":"Table!BP33","v":84},{"$f":"Table!BQ33","v":588},{"$f":"Table!A61","v":""},{"$f":"Table!BO61","v":0},null,{"$f":"Table!BP61","v":0},{"$f":"Table!BQ61","v":0}]
[{"$f":"Table!A34","v":24},{"$f":"Table!BO34","v":" عبد الكريم اكرم محمود الناطور"},null,{"$f":"Table!BP34","v":82.709999084472656},{"$f":"Table!BQ34","v":579},{"$f":"Table!A62","v":""},{"$f":"Table!BO62","v":0},null,{"$f":"Table!BP62","v":0},{"$f":"Table!BQ62","v":0}]
[{"$f":"Table!A35","v":25},{"$f":"Table!BO35","v":" عبد الله الشيخ علي احمد الحويطات"},null,{"$f":"Table!BP35","v":64.290000915527344},{"$f":"Table!BQ35","v":450},{"$f":"Table!A63","v":""},{"$f":"Table!BO63","v":0},null,{"$f":"Table!BP63","v":0},{"$f":"Table!BQ63","v":0}]
[{"$f":"Table!A36","v":26},{"$f":"Table!BO36","v":" عبدالله ابراهيم محمد الضويمر"},null,{"$f":"Table!BP36","v":82.709999084472656},{"$f":"Table!BQ36","v":579},{"$f":"Table!A64","v":""},{"$f":"Table!BO64","v":0},null,{"$f":"Table!BP64","v":0},{"$f":"Table!BQ64","v":0}]
[{"$f":"Table!A37","v":27},{"$f":"Table!BO37","v":" عدي عاطف عوض الله حناوي"},null,{"$f":"Table!BP37","v":83.290000915527344},{"$f":"Table!BQ37","v":583},{"$f":"Table!A65","v":""},{"$f":"Table!BO65","v":0},null,{"$f":"Table!BP65","v":0},{"$f":"Table!BQ65","v":0}]
[{"$f":"Table!A38","v":28},{"$f":"Table!BO38","v":" عز الدين خالد مصطفى عبد القادر"},null,{"$f":"Table!BP38","v":75},{"$f":"Table!BQ38","v":525}]
[null,null,null,null,null,null,null,null,{"$f":"Table!BP67","v":0},{"$f":"Table!BQ67","v":0}]
[]
[]
[]
[null,"ملخص جدول",null,null,null,null,"ملخص جدول"]
[null,"الصف",null,null,{"$f":"F6","v":"السادس"},null,"الصف",null,null,{"$f":"E213","v":"السادس"}]
[null,"الشعبة",null,null,{"$f":"F7","v":"أ"},null,"الشعبة",null,null,"أ"]
[null,"عدد طلاب الصف",null,null,{"$f":"COUNTA(B48:E102,B109:E134)","v":49},null,"عدد طلاب الصف",null,null,49]
[null,"عدد الطلبة الناجحين والمكملين",null,null,{"$f":"COUNTA(B48:E102)","v":46},null,"عدد الطلبة الناجحين والمكملين",null,null,46]
[null,"عدد الطلبة الراسبين",null,null,{"$f":"COUNTA(B109:E134)","v":3},null,"عدد الطلبة الراسبين",null,null,3]
[null,"النسبة المئوية للطلبة الراسبين",null,null,{"$f":" \" % \" & IF(E215=0,\"\",ROUND((E217/E215)*100,0))","v":" % 6"},null,"النسبة المئوية للطلبة الراسبين",null,null," % 6"]

{"sheet":"certificatnew","index":3,"n_rows":71,"n_cols":93,"rows_kept":71,"cut":false,"hidden":true,"merged":[[18,10,19,10],[16,14,16,15],[21,14,21,15],[18,11,19,11],[16,8,17,8],[20,10,21,10],[20,8,21,8],[26,2,26,5],[20,1,21,5],[20,7,21,7],[26,8,26,11],[18,1,19,5],[23,1,23,2],[26,6,26,7],[24,1,25,11],[36,13,36,18],[35,10,35,11],[24,17,24,18],[25,18,25,19],[24,13,25,15],[28,8,28,11],[31,13,31,18],[29,13,29,18],[33,13,33,18],[34,13,34,18],[35,13,35,18],[27,13,27,15],[13,23,15,23],[11,14,11,15],[10,22,15,22],[12,18,12,19],[14,14,14,15],[13,18,13,19],[10,23,11,23],[14,18,14,19],[10,14,10,15],[11,18,11,19],[10,18,10,19],[19,13,19,15],[21,17,21,19],[20,17,20,19],[19,17,19,19],[15,18,15,19],[16,18,16,19],[20,14,20,15],[17,14,17,15],[4,35,5,35],[10,25,11,25],[2,27,3,27],[12,14,12,15],[15,14,15,15],[13,14,13,15],[1,37,1,40],[2,37,3,37],[2,38,3,38],[2,39,3,39],[2,40,3,40],[1,36,3,36],[5,16,5,17],[7,13,8,19],[9,13,9,15],[9,17,9,19],[3,13,6,14],[3,15,3,17],[4,15,4,17],[4,18,4,19],[5,18,5,19],[10,24,11,24],[13,24,15,25],[1,33,1,35],[2,30,3,30],[1,27,1,30],[2,29,3,29],[2,28,3,28],[14,34,14,35],[1,13,2,19],[1,22,3,22],[1,26,3,26],[4,24,5,24],[1,32,3,32],[4,23,5,23],[4,22,9,22],[1,23,1,25],[7,23,9,23],[4,25,5,25],[7,24,9,25],[7,33,11,33],[4,32,11,32],[7,34,9,35],[4,34,5,34],[4,33,5,33],[23,25,24,25],[23,24,24,24],[23,22,30,22],[26,24,28,25],[31,22,37,22],[34,23,37,23],[31,23,32,23],[37,34,37,35],[12,32,14,32],[16,24,17,24],[16,25,17,25],[23,23,24,23],[34,24,36,25],[19,24,21,25],[33,10,33,11],[34,10,34,11],[34,5,34,6],[32,13,32,18],[30,13,30,18],[28,13,28,15],[31,25,32,25],[31,24,32,24],[26,23,30,23],[19,23,22,23],[16,22,22,22],[10,6,11,6],[12,6,13,6],[8,6,9,6],[23,13,23,19],[16,23,17,23],[17,18,17,19],[14,7,15,7],[12,10,13,10],[14,8,15,8],[20,11,21,11],[16,9,17,9],[14,10,15,10],[14,11,15,11],[16,7,17,7],[18,6,19,6],[18,7,19,7],[16,6,17,6],[16,10,17,10],[18,9,19,9],[20,9,21,9],[20,6,21,6],[16,11,17,11],[35,3,35,6],[33,5,33,6],[14,1,15,5],[6,1,7,5],[8,1,9,5],[10,9,11,9],[10,8,11,8],[14,6,15,6],[14,9,15,9],[6,7,7,7],[6,9,7,9],[34,1,34,2],[35,1,35,2],[16,1,17,5],[18,8,19,8],[33,1,33,2],[4,1,5,5],[10,1,11,5],[12,1,13,5],[10,11,11,11],[8,7,9,7],[6,11,7,11],[4,6,4,8],[8,8,9,8],[10,10,11,10],[8,10,9,10],[6,10,7,10],[4,9,4,11],[6,6,7,6],[6,8,7,8],[12,11,13,11],[10,7,11,7],[12,7,13,7],[12,8,13,8],[8,11,9,11],[8,9,9,9],[12,9,13,9],[35,32,37,32],[15,33,16,33],[27,34,27,35],[18,34,20,35],[31,32,34,32],[30,34,30,35],[31,35,32,35],[24,32,27,32],[34,34,34,35],[15,35,16,35],[31,33,32,33],[24,33,25,33],[24,34,25,34],[24,35,25,35],[31,34,32,34],[15,32,23,32],[28,32,30,32],[15,34,16,34],[18,33,23,33]]}
[null,null,null,null,null,null,null,null,null,null,null,null,null,null,null,null,null,null,null,null,null,null,null,null,null,null,null,null,null,null,null,null,null,null,null,null,null,null,null,null,null,null,null,null,null,null,null,null,null,null,null,null,null,null,null,null,null,null,null,null,null,null,null,null,null,null,null,null,null,null,null,null,null,null,null,null,null,null,null,null,null,null,null,null,null,null,null,null,null,null,null,null," "]
[null,null,null,null,null,null,null,null,null,null,null,null,null,"بسم الله الرحمن الرحيم",null,null,null,null,null,null,null,null,"المبحث","العلامة المستحقة",null,null,"مهارات التعلم الاساسية","الدرجــــة",null,null,null,null,"المبحث","العلامة المستحقة",null,null,"مهارات التعلم الاساسية","الدرجــــة"]
[null,null,null,null,null,null,null,null,null,null,null,null,null,null,null,null,null,null,null,null,null,null,null,"الفصل الاول","الفصل الثاني","المعـدل",null,"متقدم","جيد","مرض","بحاجة الى مساعدة",null,null,"الفصل الاول","الفصل الثاني","المعـدل",null,"متقدم","جيد","مرض","بحاجة الى مساعدة",null,null,null,null,null,null,null,null,null,null,null,null,null,null,null,null,null,null,null,null,null,null,null,null,null,null,null,null,null,null,null,null,null,null,null,null,null,null,null,null,"اول","ثاني","ثالث","رابع","خامس","سادس","سابع","ثامن","تاسع","عاشر"]
[null,"الكفايات العامة :",null,null,null,null,null,null,null,null,null,null,null,null,null,"تقرير تقويم الطالب",null,null,null,null,null,null,null,"رقماً","رقماً","رقما",null,null,null,null,null,null,null,"رقماً","رقماً","رقما"]
[null,"الكفاية",null,null,null,null,"الفصل الاول",null,null,"الفصل الثاني",null,null,null,null,null,{"$f":"\" للصف  \" & Value!$F$6 & \"  الأساسي  \"","v":" للصف  السادس  الأساسي  "},null,null,"وكالة الغوث الدولية",null,null,null,{"$f":"Table!$H$6","v":"التربية الاسلامية"},null,null,null,null,{"$f":"IF(AA5=\"\",\"\",IF(((Z5/Z7)*100)>=95,\"X\",\"\"))","v":""},{"$f":"IF(AA5=\"\",\"\",IF((Z5/Z7)*100>=95,\"\",IF((Z5/Z7)*100>=80,\"X\",)))","v":""},{"$f":"IF(AA5=\"\",\"\",IF((Z5/Z7)*100>=80,\"\",IF((Z5/Z7)*100>=65,\"X\",)))","v":""},{"$f":"IF(Z5=0,\"\",IF(AA5=\"\",\"\",IF(Z5=\"\",\"\",IF((Z5/Z7)*100<65,\"X\",\"\"))))","v":""},null,{"$f":"Table!$W$6","v":"العلـــوم"},null,null,null,null,{"$f":"IF(AK5=\"\",\"\",IF(((AJ5/AJ7)*100)>=95,\"X\",\"\"))","v":""},{"$f":"IF(AK5=\"\",\"\",IF((AJ5/AJ7)*100>=95,\"\",IF((AJ5/AJ7)*100>=80,\"X\",)))","v":""},{"$f":"IF(AK5=\"\",\"\",IF((AJ5/AJ7)*100>=80,\"\",IF((AJ5/AJ7)*100>=65,\"X\",)))","v":""},{"$f":"IF(AJ5=0,\"\",IF(AK5=\"\",\"\",IF(AJ5=\"\",\"\",IF((AJ5/AJ7)*100<65,\"X\",\"\"))))","v":""},null,null,null,null,null,null,null,null,null,null,null,null,null,null,null,null,null,null,null,null,null,null,null,null,null,null,null,null,null,null,null,null,null,null,null,null,null,null,null,{"$f":"IF(Value!$F$6=\"الأول\",\"1\",IF(Value!$F$6=\"الثاني\",\"2\",IF(Value!$F$6=\"الثالث\",\"3\",IF(Value!$F$6=\"الرابع\",\"4\",IF(Value!$F$6=\"الخامس\",\"5\",IF(Value!$F$6=\"السادس\",\"6\",IF(Value!$F$6=\"السابع\",\"7\",IF(Value!$F$6=\"الثامن\",\"8\",))))))))&(IF(Value!$F$6=\"التاسع\",\"9\",IF(Value!$F$6=\"العاشر\",\"10\",)))","v":"6"},"تلاوة السور الكريمة مثل ( الفاتحة,العصر, ... ) تلاوة سليمة غيبا","تلاوة ايات كريمة مثل ( التوبة,الرحمن,الضحى,الشرح,, ... ) تلاوة سليمة غيبا","تلاوة  آيات كريمة من سور ( البقرة,الأعلى,الشمس,...) تلاوة سليمة غيبا","تلاوة  آيات كريمة من سور ( البقرة,الكهف,النبأ,البروج,...) تلاوة سليمة غيبا","تلاوة  ايات كريمة من سور (يونس,التوبة,نور,الملك) غيبا مراعيا احكام الغنة والنون الساكنة والتنوين","تلاوة  ايات كريمة من سور (مريم,الفتح) غيبا مراعيا احكام الميم الساكنة والميم والنون المشددة والقلقلة","تلاوة ايات كريمة من سور (الانفال,النحل,الصف,...) غيبا مراعيا احكام الادغام والإظهار","تلاوة ايات كريمة من سورة الاسراء غيبا مراعيا احكام المد والهمزات والهاءات","تلاوة ايات كريمة من سور (الانفال,الحجرات,ق) غيبا مراعيا احكام التفخيم والترقيم","تلاوة ايات كريمة من سور (ال عمران,المؤمنون,الاحقاف,المدثر) غيبا مراعيا احكام الوقف والسكت والابتداء"]
[null,null,null,null,null,null,"غالبا","احيانا","نادرا","غالبا","احيانا","نادرا",null,null,null,"العام الدراسي",{"$f":"Value!$F$10","v":"2020/2019"},null," دائرة التربية والتعليم",null,null,null,null,null,null,null,null,{"$f":"IF(AA6=\"\",\"\",IF((Z5/Z7)*100>=85,\"X\",\"\"))","v":""},{"$f":"IF(AA6=\"\",\"\",IF((Z5/Z7)*100>=85,\"\",IF((Z5/Z7)*100>=70,\"X\",)))","v":""},{"$f":"IF(AA6=\"\",\"\",IF((Z5/Z7)*100>=70,\"\",IF((Z5/Z7)*100>=55,\"X\",)))","v":""},{"$f":"IF(Z5=0,\"\",IF(AA6=\"\",\"\",IF(Z5=\"\",\"\",IF((Z5/Z7)*100<55,\"X\",\"\"))))","v":""},null,null,null,null,null,null,{"$f":"IF(AK6=\"\",\"\",IF((AJ5/AJ7)*100>=85,\"X\",\"\"))","v":""},{"$f":"IF(AK6=\"\",\"\",IF((AJ5/AJ7)*100>=85,\"\",IF((AJ5/AJ7)*100>=70,\"X\",)))","v":""},{"$f":"IF(AK6=\"\",\"\",IF((AJ5/AJ7)*100>=70,\"\",IF((AJ5/AJ7)*100>=55,\"X\",)))","v":""},{"$f":"IF(AJ5=0,\"\",IF(AK6=\"\",\"\",IF(AJ5=\"\",\"\",IF((AJ5/AJ7)*100<55,\"X\",\"\"))))","v":""},null,null,null,null,null,null,null,null,null,null,null,null,null,null,null,null,null,null,null,null,null,null,null,null,null,null,null,null,null,null,null,null,null,null,null,null,null,null,null,null,"قراءة الأحاديث الشريفة مثل ( اركان الاسلام,اداب الطعام والشراب, ... ) قراءة صحيحة غيبا","قراءة الأحاديث الشريفة مثل ( من توضأ فأحسن,خيركم من تعلم القرآن,, ... ) قراءة صحيحة غيبا ","قراءة الأحاديث الشريفة مثل ( من قرأ حرفا,الصدق يهدي, ... )  قراءة صحيحة غيبا ","قراءة الأحاديث الشريفة مثل ( المؤمن القوي,حق المسلم,, ... )  قراءة صحيحة غيبا ","قراءة الأحاديث الشريفة مثل (اي الاعمال افضل,لا يدخل الجنة, ... )  قراءة صحيحة غيبا","قراءة الأحاديث الشريفة مثل (يا غلام,اية المنافق ...) قراءة صحيحة غيبا","قراءة الأحاديث الشريفة مثل (انما الاعمال بالنيات,من رأى منكم منكرا ...) قراءة صحيحة غيبا","قراءة الأحاديث الشريفة مثل (من عاد لي وليا,من نفس عن مؤمن, ...) قراءة صحيحة غيبا","قراءة الأحاديث الشريفة مثل (القائم على حدود,رغم انف رجل, ...) قراءة صحيحة غيبا","قراءة الأحاديث الشريفة مثل (افضل الاعمل الى الله,تحمل المسؤولية في الاسلام ...) قراءة صحيحة غيبا"]
[null,"يحترم النظام ويتقيد بالتعليمات",null,null,null,null,{"$f":"IF($AR11=\"ممتاز\",\"X\",)","v":0},{"$f":"IF($AR11=\"جيد جدا\",\"X\",IF($AR11=\"جيد\",\"X\",))","v":0},{"$f":"IF($AR11=\"مقبول\",\"X\",)","v":0},{"$f":"IF(Value!$F$33=\"1\",\"\",IF($AR11=\"ممتاز\",\"X\",))","v":0},{"$f":"IF(Value!$F$33=\"1\",\"\",IF($AR11=\"جيد جدا\",\"X\",IF($AR11=\"جيد\",\"X\",)))","v":0},{"$f":"IF(Value!$F$33=\"1\",\"\",IF($AR11=\"مقبول\",\"X\",))","v":0},null,null,null,null,null,null,null,null,null,null,null,{"$f":"Table!$H$10","v":100},{"$f":"Table!$I$10","v":100},{"$f":"Table!$J$10","v":100},null,{"$f":"IF(AA7=\"\",\"\",IF((Z5/Z7)*100>=90,\"X\",\"\"))","v":""},{"$f":"IF(AA7=\"\",\"\",IF((Z5/Z7)*100>=90,\"\",IF((Z5/Z7)*100>=75,\"X\",)))","v":""},{"$f":"IF(AA7=\"\",\"\",IF((Z5/Z7)*100>=75,\"\",IF((Z5/Z7)*100>=60,\"X\",)))","v":""},{"$f":"IF(Z5=0,\"\",IF(AA7=\"\",\"\",IF(Z5=\"\",\"\",IF((Z5/Z7)*100<60,\"X\",\"\"))))","v":""},null,null,{"$f":"Table!$W$10","v":100},{"$f":"Table!$X$10","v":100},{"$f":"Table!$Y$10","v":100},null,{"$f":"IF(AK7=\"\",\"\",IF((AJ5/AJ7)*100>=90,\"X\",\"\"))","v":""},{"$f":"IF(AK7=\"\",\"\",IF((AJ5/AJ7)*100>=90,\"\",IF((AJ5/AJ7)*100>=75,\"X\",)))","v":""},{"$f":"IF(AK7=\"\",\"\",IF((AJ5/AJ7)*100>=75,\"\",IF((AJ5/AJ7)*100>=60,\"X\",)))","v":""},{"$f":"IF(AJ5=0,\"\",IF(AK7=\"\",\"\",IF(AJ5=\"\",\"\",IF((AJ5/AJ7)*100<60,\"X\",\"\"))))","v":""},null,null,null,null,null,null,null,null,null,null,null,null,null,null,null,null,null,null,null,null,null,null,null,null,null,null,null,null,null,null,null,null,null,null,null,null,null,null,null,"دين","اعطاء معاني المفردات في السور والاحاديث مثل ( الفاتحة ,العصر,اركان الاسلام,...)","اعطاء معاني المفردات في السور والاحاديث مثل ( الضحى, من توضأ فأحسن, ... )","اعطاء معاني المفردات في السور والاحاديث مثل ( الاعلى, الشمس,من قرأحرفا, ... )","اعطاء معاني المفردات في السور والاحاديث مثل ( النبأ, البروج,المؤمن القوي, ... )","تفسير وشرح النصوص الشرعية بصورة اجمالية مثل ( يونس,التوبة,اي الاعمال افضل, ... )","تفسير وشرح النصوص الشرعية بصورة اجمالية من مثل ( مريم,الفتح,يا غلام,آية المنافق,...)","تفسير وشرح النصوص الشرعية بصورة اجمالية من مثل (الانفال,إنما الاعمال بالنيات,...)","تفسير وشرح النصوص الشرعية بصورة اجمالية من مثل ( الإسراء,من عادى لي وليا,...)","تفسير وشرح النصوص الشرعية بصورة اجمالية من مثل (الانفال والحجرات,القائم على حدود, ...)","تفسير وشرح النصوص الشرعية بصورة اجمالية مثل الايات من سور ( آل عمران,والمؤمنون,...,وأفضل الاعمال عند الله,...)"]
[null,null,null,null,null,null,null,null,null,null,null,null,null,"النتائج المدرسية",null,null,null,null,null,null,null,null,null,"المعدل بالحروف",{"$f":"SpellNumberA(IF(Value!$F$33=\"1\",X5,Z5),0,\"علامة\",\"علامتان\",\"علامات\")","v":""},null,null,{"$f":"IF(AA8=\"\",\"\",IF((Z5/Z7)*100>=80,\"X\",\"\"))","v":""},{"$f":"IF(AA8=\"\",\"\",IF((Z5/Z7)*100>=80,\"\",IF((Z5/Z7)*100>=70,\"X\",)))","v":""},{"$f":"IF(AA8=\"\",\"\",IF((Z5/Z7)*100>=70,\"\",IF((Z5/Z7)*100>=60,\"X\",)))","v":""},{"$f":"IF(Z5=0,\"\",IF(AA8=\"\",\"\",IF(Z5=\"\",\"\",IF((Z5/Z7)*100<60,\"X\",\"\"))))","v":""},null,null,"المعدل بالحروف",{"$f":"SpellNumberA(IF(Value!$F$33=\"1\",AH5,AJ5),0,\"علامة\",\"علامتان\",\"علامات\")","v":""},null,null,{"$f":"IF(AK8=\"\",\"\",IF((AJ5/AJ7)*100>=80,\"X\",\"\"))","v":""},{"$f":"IF(AK8=\"\",\"\",IF((AJ5/AJ7)*100>=80,\"\",IF((AJ5/AJ7)*100>=70,\"X\",)))","v":""},{"$f":"IF(AK8=\"\",\"\",IF((AJ5/AJ7)*100>=70,\"\",IF((AJ5/AJ7)*100>=60,\"X\",)))","v":""},{"$f":"IF(AJ5=0,\"\",IF(AK8=\"\",\"\",IF(AJ5=\"\",\"\",IF((AJ5/AJ7)*100<60,\"X\",\"\"))))","v":""},null,null,null,null,null,null,null,null,null,null,null,null,null,null,null,null,null,null,null,null,null,null,null,null,null,null,null,null,null,null,null,null,null,null,null,null,null,null,null,null,"ترتيب اعمال العبادات والاداب الاسلامية كالوضوء والصلاة واداب الطعام , ... ","اداء العبادات والآداب الاسلامية كالوضوء والصلاة واآداب زيارة الجيران, ...","التمييز بين اركان الصلاة وسننها","معرفة بعض الاحكام المتعلقة : بالصوم من حيث وقته وآدبه وأهميته والبيع والهدية والهبة ","معرفة المصطلحات الايمانية مثل ( الوحي,الرسل,المعجزة,الدعاء ...) ","معرفة مشاهد اليوم الآخر","المقارنة بين بعض المفاهيم العقائدية من مثل ( الاسلام, الايمان,الكفر,الشرك, ...) ","معرفة المفاهيم العقائدية كالتوحيد , التقوى , السحر , الشعوذة , ...","معرفة المفاهيم العقائدية مثل (القضاء,القدر,الشفاعة, ...)","معرفة خصائص العقيدة الاسلامية مثل الربانية والوسطية والايجابية ..."]
[null,"يحافظ على البيئة والممتلكات العامة",null,null,null,null,{"$f":"IF($AR11=\"جيد جدا\",\"X\",IF($AR11=\"ممتاز\",\"X\",))","v":0},{"$f":"IF($AR11=\"جيد\",\"X\",)","v":0},{"$f":"IF($AR11=\"مقبول\",\"X\",)","v":0},{"$f":"IF(Value!$F$33=\"1\",\"\",IF($AR11=\"جيد جدا\",\"X\",IF($AR11=\"ممتاز\",\"X\",)))","v":0},{"$f":"IF(Value!$F$33=\"1\",\"\",IF($AR11=\"جيد\",\"X\",))","v":0},{"$f":"IF(Value!$F$33=\"1\",\"\",IF($AR11=\"مقبول\",\"X\",))","v":0},null,null,null,null,null,null,null,null,null,null,null,null,null,null,null,{"$f":"IF(AA9=\"\",\"\",IF((Z5/Z7)*100>=90,\"X\",\"\"))","v":""},{"$f":"IF(AA9=\"\",\"\",IF((Z5/Z7)*100>=90,\"\",IF((Z5/Z7)*100>=70,\"X\",)))","v":""},{"$f":"IF(AA9=\"\",\"\",IF((Z5/Z7)*100>=70,\"\",IF((Z5/Z7)*100>=55,\"X\",)))","v":""},{"$f":"IF(Z5=0,\"\",IF(AA9=\"\",\"\",IF(Z5=\"\",\"\",IF((Z5/Z7)*100<55,\"X\",\"\"))))","v":""},null,null,null,null,null,null,{"$f":"IF(AK9=\"\",\"\",IF((AJ5/AJ7)*100>=90,\"X\",\"\"))","v":""},{"$f":"IF(AK9=\"\",\"\",IF((AJ5/AJ7)*100>=90,\"\",IF((AJ5/AJ7)*100>=70,\"X\",)))","v":""},{"$f":"IF(AK9=\"\",\"\",IF((AJ5/AJ7)*100>=70,\"\",IF((AJ5/AJ7)*100>=55,\"X\",)))","v":""},{"$f":"IF(AJ5=0,\"\",IF(AK9=\"\",\"\",IF(AJ5=\"\",\"\",IF((AJ5/AJ7)*100<55,\"X\",\"\"))))","v":""},null,null,null,null,null,null,null,null,null,null,null,null,null,null,null,null,null,null,null,null,null,null,null,null,null,null,null,null,null,null,null,null,null,null,null,null,null,null,null,null,"معرفة اركان الايمان","التمييز بين اركان الاسلام واركان الايمان","معرفة الاداب الاسلامية كأداب الحديث,وآداب زيارة المريض, ....","معرفة الاداب الاسلامية كآداب طالب العلم, ....","معرفة الاحكام الشرعية المتعلقة بالصوم من حيث مبطلاته والاعذار المبيحة للإفطار والتيمم وصلاة الوتر ....","معرفة الاحكام المتعلقة ب ( صلاة الضحى,صلاة العيدين, ... )","معرفة الاحكام المتعلقة بالمعاملات كالوكالة,الاجارة, ...","معرفة الاحكام المتعلقة بالعبادات والمعاملات كالغسل , الحج , الرهن, ...","معرفة الاحكام المتعلقة بالعبادات والمعاملات كالربا,الصرف,الذبائح, ...","معرفة الاحكام المتعلقة بالعبادات والمعاملات مثل(التسعير,الاحتكار,الايمان,النذر, ...)"]
[null,null,null,null,null,null,null,null,null,null,null,null,null,"بيانات خاصة بالطالب",null,null,null,"بيانات خاصة بالمدرسة",null,null,null,null,null,null,null,null,null,{"$f":"IF(AA10=\"\",\"\",IF((Z5/Z7)*100>=95,\"X\",\"\"))","v":""},{"$f":"IF(AA10=\"\",\"\",IF((Z5/Z7)*100>=95,\"\",IF((Z5/Z7)*100>=75,\"X\",)))","v":""},{"$f":"IF(AA10=\"\",\"\",IF((Z5/Z7)*100>=75,\"\",IF((Z5/Z7)*100>=65,\"X\",)))","v":""},{"$f":"IF(Z5=0,\"\",IF(AA10=\"\",\"\",IF(Z5=\"\",\"\",IF((Z5/Z7)*100<65,\"X\",\"\"))))","v":""},null,null,null,null,null,null,{"$f":"IF(AK10=\"\",\"\",IF((AJ5/AJ7)*100>=95,\"X\",\"\"))","v":""},{"$f":"IF(AK10=\"\",\"\",IF((AJ5/AJ7)*100>=95,\"\",IF((AJ5/AJ7)*100>=75,\"X\",)))","v":""},{"$f":"IF(AK10=\"\",\"\",IF((AJ5/AJ7)*100>=75,\"\",IF((AJ5/AJ7)*100>=65,\"X\",)))","v":""},{"$f":"IF(AJ5=0,\"\",IF(AK10=\"\",\"\",IF(AJ5=\"\",\"\",IF((AJ5/AJ7)*100<65,\"X\",\"\"))))","v":""},null,null,null,null,null,null,null,null,null,null,null,null,null,null,null,null,null,null,null,null,null,null,null,null,null,null,null,null,null,null,null,null,null,null,null,null,null,null,null,null,"التعريف بسيدنا محمد صلى الله عليه وسلم من حيث نسبه ومولده ونشأته",null,null,null,"معرفة الاداب والأخلاق الاسلامية كآداب الاستئذان , والشجاعة, والتواضع","معرفة الاداب والأخلاق الاسلامية كالعدل , التكافل الاجتماعي","معرفة الاداب والأخلاق الاسلامية كالوفاء,الاخلاص,...","معرفة الاداب والأخلاق الاسلامية كالعزة , التقوى , آداب طلب العلم , ....","معرفة الاداب والأخلاق الاسلامية كالقناعة,الحلم, ....","معرفة الاداب والأخلاق الاسلامية مثل (العفة,التضحية, ....)"]
[null,"يتقبل الاخرين ويحترم ثقافاتهم",null,null,null,null,{"$f":"IF($AR11=\"جيد جدا\",\"X\",IF($AR11=\"ممتاز\",\"X\",))","v":0},{"$f":"IF($AR11=\"جيد\",\"X\",)","v":0},{"$f":"IF($AR11=\"مقبول\",\"X\",)","v":0},{"$f":"IF(Value!$F$33=\"1\",\"\",IF($AR11=\"جيد جدا\",\"X\",IF($AR11=\"ممتاز\",\"X\",)))","v":0},{"$f":"IF(Value!$F$33=\"1\",\"\",IF($AR11=\"جيد\",\"X\",))","v":0},{"$f":"IF(Value!$F$33=\"1\",\"\",IF($AR11=\"مقبول\",\"X\",))","v":0},null,"الإســــــــم",null,null,null,"الإســــــــم",{"$f":"Value!$F$5","v":"ذكور البقعة الاعدادية الرابعة"},null,null,null,{"$f":"Table!$K$6","v":"اللغة العربية"},null,null,null,null,{"$f":"IF(AA11=\"\",\"\",IF(((Z11/Z13)*100)>=95,\"X\",\"\"))","v":""},{"$f":"IF(AA11=\"\",\"\",IF((Z11/Z13)*100>=95,\"\",IF((Z11/Z13)*100>=80,\"X\",)))","v":""},{"$f":"IF(AA11=\"\",\"\",IF((Z11/Z13)*100>=80,\"\",IF((Z11/Z13)*100>=65,\"X\",)))","v":""},{"$f":"IF(Z11=0,\"\",IF(AA11=\"\",\"\",IF(Z11=\"\",\"\",IF((Z11/Z13)*100<65,\"X\",\"\"))))","v":""},null,null,null,null,null,null,{"$f":"IF(AK11=\"\",\"\",IF((AJ5/AJ7)*100>=90,\"X\",\"\"))","v":""},{"$f":"IF(AK11=\"\",\"\",IF((AJ5/AJ7)*100>=90,\"\",IF((AJ5/AJ7)*100>=75,\"X\",)))","v":""},{"$f":"IF(AK11=\"\",\"\",IF((AJ5/AJ7)*100>=75,\"\",IF((AJ5/AJ7)*100>=60,\"X\",)))","v":""},{"$f":"IF(AJ5=0,\"\",IF(AK11=\"\",\"\",IF(AJ5=\"\",\"\",IF((AJ5/AJ7)*100<60,\"X\",\"\"))))","v":""},null,null,null,null,null,null,null,null,null,null,null,null,null,null,null,null,null,null,null,null,null,null,null,null,null,null,null,null,null,null,null,null,null,null,null,null,null,null,null,"عربي","قراءة الكلمات والجمل المكونة من فعل وفاعل أو مبتدأ وخبر والمقررة في الكتاب وفهم معانيها","قراءة نص مضبوط عدد كلماته حوالي (50) كلمة مراعيا علامات الوقف والانفعال, وفهم معاني مفرداته وتراكيبه","قراءة نص عدد كلماته حوالي 100 كلمة قراءة سليمة مراعيا علامات الترقيم وفهم معاني مفرداته وتراكيبه و دلالالتها","قراءة النصوص التي يقل عدد كلماتها عن (150) كلمة وفهم معاني مفرداتها وتراكيبها و دلالالتها ","قراءة النصوص التي عدد كلماتها (200) كلمة وفهم معاني مفرداتها وتراكيبها وتوضيح دلالالتها وافكارها الرئيسة","التعبير عن حاجات وآرائه تعبيرا شفويا بحدود 4 جمل وكتابيا بحدود (4-5)فقرات","قراءة النصوص التي عدد كلماتها (300) كلمة مراعيا علامات الترقيم وفهم معاني مفرداتها وتراكيبها وتوضيح دلالالتها وافكارها","قراءة النصوص الأدبية  التي عدد كلماتها (400) وفهم معاني مفرداتها وتراكيبها وضبط بعض كلماتها وتحليلها","قراءة النصوص الأدبية  التي عدد كلماتها (450) كلمة قراءة نافذة وفهم معاني مفرداتها وتراكيبها وتحليلها وضبط بعض كلماتها","قراءة النصوص اللغوية (قرآن,شعر,نثر) التي تزيد عدد كلماتها عن (500) كلمة قراءة ناقدة وفهم معاني مفرداتها وتحليلها والافادة من المعاجم المتخصصة"]
[null,null,null,null,null,null,null,null,null,null,null,null,null,"مكان وتاريخ الولاده",null,null,null,"الرقم الوطني للمدرسة",{"$f":"Value!$F$36","v":160184},null,null,null,null,null,null,null,null,{"$f":"IF(AA12=\"\",\"\",IF((Z11/Z13)*100>=85,\"X\",\"\"))","v":""},{"$f":"IF(AA12=\"\",\"\",IF((Z11/Z13)*100>=85,\"\",IF((Z11/Z13)*100>=70,\"X\",)))","v":""},{"$f":"IF(AA12=\"\",\"\",IF((Z11/Z13)*100>=70,\"\",IF((Z11/Z13)*100>=55,\"X\",)))","v":""},{"$f":"IF(Z11=0,\"\",IF(AA12=\"\",\"\",IF(Z11=\"\",\"\",IF((Z11/Z13)*100<55,\"X\",\"\"))))","v":""},null,null,null,null,null,null,{"$f":"IF(AK12=\"\",\"\",IF((AJ5/AJ7)*100>=80,\"X\",\"\"))","v":""},{"$f":"IF(AK12=\"\",\"\",IF((AJ5/AJ7)*100>=80,\"\",IF((AJ5/AJ7)*100>=70,\"X\",)))","v":""},{"$f":"IF(AK12=\"\",\"\",IF((AJ5/AJ7)*100>=70,\"\",IF((AJ5/AJ7)*100>=60,\"X\",)))","v":""},{"$f":"IF(AJ5=0,\"\",IF(AK12=\"\",\"\",IF(AJ5=\"\",\"\",IF((AJ5/AJ7)*100<60,\"X\",\"\"))))","v":""},null,null,null,null,null,null,null,null,null,null,null,null,null,null,null,null,null,null,null,null,null,null,null,null,null,null,null,null,null,null,null,null,null,null,null,null,null,null,null,null,"تجريد الحروف الهجائية بأشكالها","التمييز شفويا عن حاجاته ومشاعره بحدود جملة او جملتين, ووفق مستوى صفه","كتابة القضايا الاملائية المقررة, ال القمرية والشمسية والهمزة المتوسطة والتاء المبسوطة والتاء المربوطة","صياغة جمل و التعبير عن اراء تتناسب وخبرات طالب في الصف الرابع","كتابة القضايا الاملائية المقررة(التاء المربوطة والمبسوطة,الهمزة في بداية الكلمة,وكلمة ابن,والف تنوين النصب ....) كتابة صحيحة","قراءة النصوص التي عدد كلماتها (250) كلمة مراعيا علامات الترقيم وفهم معاني مفرداتها وتراكيبها ودلالالتها وافكارها","التعبير عن حاجاته ومشاعره وارائه شفويا بلغة سليمة بحدود اربع جمل, وكتابيا بحدود ست فقرات","كتابة القضايا الاملائية المقررة (همزة الوصل وهمزة القطع والكلمات التي تتبعها ألف التفريق وكتابة الألف اللينة في الاسماء والافعال وكلمة ابن) كتابة صحيحة","كتابة القضايا الاملائية المقررة في الصف التاسع(الهمزة المتوسطةعلى واو وعلى الف وعلى نبرة وكتابة الهمزة المتطرفة) كتابة صحيحة","تعرف المفاهيم والمصطلحات النحوية والصرفية المقررة (الميزان الصرفي,لابنية الافعال,المصادر,اسم الفاعل,اسم المفعول,صيغة المبالغة,الصفة المشبهة,اسم الزمان,المفاعيل,الحال,...) وتمييزها"]
[null,"يراعي قواعد الامن والسلامة",null,null,null,null,{"$f":"IF($AR11=\"ممتاز\",\"X\",)","v":0},{"$f":"IF($AR11=\"جيد جدا\",\"X\",)","v":0},{"$f":"IF($AR11=\"مقبول\",\"X\",IF($AR11=\"جيد\",\"X\",))","v":0},{"$f":"IF(Value!$F$33=\"1\",\"\",IF($AR11=\"ممتاز\",\"X\",))","v":0},{"$f":"IF(Value!$F$33=\"1\",\"\",IF($AR11=\"جيد جدا\",\"X\",))","v":0},{"$f":"IF(Value!$F$33=\"1\",\"\",IF($AR11=\"مقبول\",\"X\",IF($AR11=\"جيد\",\"X\",)))","v":0},null,"الصف والشعبـــة",{"$f":"Value!$F$6 & \" (  \" & Value!$F$7 &\"  )  \"","v":"السادس (  أ  )  "},null,null,"رقـــــم الهاتف",{"$f":"Value!$F$37","v":4725453},null,null,null,null,{"$f":"Table!$K$10","v":100},{"$f":"Table!$L$10","v":100},{"$f":"Table!$M$10","v":100},null,{"$f":"IF(AA13=\"\",\"\",IF((Z11/Z13)*100>=90,\"X\",\"\"))","v":""},{"$f":"IF(AA13=\"\",\"\",IF((Z11/Z13)*100>=90,\"\",IF((Z11/Z13)*100>=75,\"X\",)))","v":""},{"$f":"IF(AA13=\"\",\"\",IF((Z11/Z13)*100>=75,\"\",IF((Z11/Z13)*100>=60,\"X\",)))","v":""},{"$f":"IF(Z11=0,\"\",IF(AA13=\"\",\"\",IF(Z11=\"\",\"\",IF((Z11/Z13)*100<60,\"X\",\"\"))))","v":""},null,{"$f":"Table!$Z$6","v":"التربية الفنية"},null,null,null,null,{"$f":"IF(AK13=\"\",\"\",IF(((AJ13/AJ14)*100)>=95,\"X\",\"\"))","v":""},{"$f":"IF(AK13=\"\",\"\",IF((AJ13/AJ14)*100>=95,\"\",IF((AJ13/AJ14)*100>=80,\"X\",)))","v":""},{"$f":"IF(AK13=\"\",\"\",IF((AJ13/AJ14)*100>=80,\"\",IF((AJ13/AJ14)*100>=65,\"X\",)))","v":""},{"$f":"IF(AJ13=0,\"\",IF(AK13=\"\",\"\",IF(AJ13=\"\",\"\",IF((AJ13/AJ14)*100<65,\"X\",\"\"))))","v":""},null,null,null,null,null,null,null,null,null,null,null,null,null,null,null,null,null,null,null,null,null,null,null,null,null,null,null,null,null,null,null,null,null,null,null,null,null,null,null,null,"كتابة حروف ومقاطع من دروس القراءة بحيث يترك مسافات بين الكلمات والحروف ويكتب في خطوط مستقيمة","كتابة جمل وفقرات من دروس القراءة المقررة (إملاء منقولا أو منظورا )","محاكاة الاساليب والانماط اللغوية المقررة في كتابه","تعرف الانماط اللغوية المقررة في الصف الرابع (اسماء الاشارة,الافعال,الجملة ومحاكتها )","التعبير عن مشاعره ومشاهداته وارائه تعبيرا شفويا بحدود 4 جمل","قراءة المفاهيم والمصطلحات النحوية والصرفية (المثنى,جمع المذكر السالم,جمع المؤنث السالم,والمجرد والمزيد) وتمييزها","قراءة المفاهيم والمصطلحات النحوية والصرفية المقررة (المثنى,جمع المذكر السالم,جمع المؤنث السالم,والمجرد والمزيد) وتمييزها","قراءة المفاهيم والمصطلحات النحوية والصرفية والبلاغية الواردة في الصف الثامن (الاسم,الفعل,الحرف,الضمير,المعرب المبني) وتمييزها","تعرف المفاهيم والمصطلحات النحوية والصرفية (المضارع,المعتل الآخر,الاسماء الخمسة,المثنى,جمع المذكر السالم,...) وتمييزها","تطبيق القواعد النحوية والصرفية المقررة في (المصادر,المشتقات,الميزان الصرفي,المفاعيل,الحال ... ) وتوظيفها في ما يقرأ ويكتب"]
[null,null,null,null,null,null,null,null,null,null,null,null,null,"الجنسيـــــــة",null,null,null,"العنـــــــوان",{"$f":"Value!$F$4","v":"البقعة"},null,null,null,null,"المعدل بالحروف",{"$f":"SpellNumberA(IF(Value!$F$33=\"1\",X11,Z11),0,\"علامة\",\"علامتان\",\"علامات\")","v":""},null,null,{"$f":"IF(AA14=\"\",\"\",IF((Z11/Z13)*100>=80,\"X\",\"\"))","v":""},{"$f":"IF(AA14=\"\",\"\",IF((Z11/Z13)*100>=80,\"\",IF((Z11/Z13)*100>=70,\"X\",)))","v":""},{"$f":"IF(AA14=\"\",\"\",IF((Z11/Z13)*100>=70,\"\",IF((Z11/Z13)*100>=60,\"X\",)))","v":""},{"$f":"IF(Z11=0,\"\",IF(AA14=\"\",\"\",IF(Z11=\"\",\"\",IF((Z11/Z13)*100<60,\"X\",\"\"))))","v":""},null,null,{"$f":"Table!$Z$10","v":100},{"$f":"Table!$AA$10","v":100},{"$f":"Table!$AB$10","v":100},null,{"$f":"IF(AK14=\"\",\"\",IF((AJ13/AJ14)*100>=85,\"X\",\"\"))","v":""},{"$f":"IF(AK14=\"\",\"\",IF((AJ13/AJ14)*100>=85,\"\",IF((AJ13/AJ14)*100>=70,\"X\",)))","v":""},{"$f":"IF(AK14=\"\",\"\",IF((AJ13/AJ14)*100>=70,\"\",IF((AJ13/AJ14)*100>=55,\"X\",)))","v":""},{"$f":"IF(AJ13=0,\"\",IF(AK14=\"\",\"\",IF(AJ13=\"\",\"\",IF((AJ13/AJ14)*100<55,\"X\",\"\"))))","v":""},null,null,null,null,null,null,null,null,null,null,null,null,null,null,null,null,null,null,null,null,null,null,null,null,null,null,null,null,null,null,null,null,null,null,null,null,null,null,null,null,"تسمية الاشياء التي يراها في مدرسته وبيته بمسمياتها","إعادة رواية قصة استمع اليها تتكون من فقرة الى فقرتين بلغته الخاصة","التعبير عن مشاعره ومشاهداته شفويا وكتابيا بحدود ثلاث جمل","كتابة القضايا الاملائية المقررة مثل : علامة الاستفهام والنقطتين الرأسيتين والهمزة بأشكالها والتاء المربوطة والهاء في اخر الكلمة والكلمات التي تلفظ ألفا ولا تكتب","كتابة موضوع يتناسب وخبرات الطالب في الصف الخامس بحدود (3-5) فقرات بلغة سليمة","تطبيق القواعد النحوية والصرفية المقررة في ( المصادر,المبني للمجهول,المبني للمعلوم,اللازم والمتعدي, ... ) وتوظيفها في ما يقرأ ويكتب","تطبيق القواعد النحوية والصرفية المقررة في ( المصادر,المبني للمجهول,اللازم والمتعدي,المثنى ... ) وتوظيفها في ما يقرأ ويكتب","تطبيق القواعد اللغوية المقررة في (الاسم والفعل والفعل المعرب ... ) وتوظيفها في ما يقرأ ويكتب","تطبيق القواعد النحوية والصرفية المقررة في (الفعل المضارع,المعتل الاخر,جمع المذكر السالم,الممنوع من الصرف,... ) وتوظيفها في ما يقرأ ويكتب","التعبير عن رأيه ومشاهداته شفويا بحدود (8) جمل وكتابتها بحدود (8) فقرات"]
[null,"يظهر المبادرة ويتعاون مع الاخرين",null,null,null,null,{"$f":"IF($AR11=\"ممتاز\",\"X\",)","v":0},{"$f":"IF($AR11=\"جيد جدا\",\"X\",IF($AR11=\"جيد\",\"X\",))","v":0},{"$f":"IF($AR11=\"مقبول\",\"X\",)","v":0},{"$f":"IF(Value!$F$33=\"1\",\"\",IF($AR11=\"ممتاز\",\"X\",))","v":0},{"$f":"IF(Value!$F$33=\"1\",\"\",IF($AR11=\"جيد جدا\",\"X\",IF($AR11=\"جيد\",\"X\",)))","v":0},{"$f":"IF(Value!$F$33=\"1\",\"\",IF($AR11=\"مقبول\",\"X\",))","v":0},null,"الرقــــم الوطني",null,null,null,"المنطقــة التعليمية ",{"$f":"Value!$F$3","v":"شمال عمان"},null,null,null,null,null,null,null,null,{"$f":"IF(AA15=\"\",\"\",IF((Z11/Z13)*100>=90,\"X\",\"\"))","v":""},{"$f":"IF(AA15=\"\",\"\",IF((Z11/Z13)*100>=90,\"\",IF((Z11/Z13)*100>=70,\"X\",)))","v":""},{"$f":"IF(AA15=\"\",\"\",IF((Z11/Z13)*100>=70,\"\",IF((Z11/Z13)*100>=55,\"X\",)))","v":""},{"$f":"IF(Z11=0,\"\",IF(AA15=\"\",\"\",IF(Z11=\"\",\"\",IF((Z11/Z13)*100<55,\"X\",\"\"))))","v":""},null,null,"المعدل بالحروف",{"$f":"SpellNumberA(IF(Value!$F$33=\"1\",AH13,AJ13),0,\"علامة\",\"علامتان\",\"علامات\")","v":""},null,null,{"$f":"IF(AK15=\"\",\"\",IF((AJ13/AJ14)*100>=90,\"X\",\"\"))","v":""},{"$f":"IF(AK15=\"\",\"\",IF((AJ13/AJ14)*100>=90,\"\",IF((AJ13/AJ14)*100>=75,\"X\",)))","v":""},{"$f":"IF(AK15=\"\",\"\",IF((AJ13/AJ14)*100>=75,\"\",IF((AJ13/AJ14)*100>=60,\"X\",)))","v":""},{"$f":"IF(AJ13=0,\"\",IF(AK15=\"\",\"\",IF(AJ13=\"\",\"\",IF((AJ13/AJ14)*100<60,\"X\",\"\"))))","v":""},null,null,null,null,null,null,null,null,null,null,null,null,null,null,null,null,null,null,null,null,null,null,null,null,null,null,null,null,null,null,null,null,null,null,null,null,null,null,null,null,null,null,"اعادة رواية قصة قصيرة استمع اليها وبحدود ثلاث فقرات بلغة سليمة",null,"قراءة المفاهيم والمصطلحات النحوية المقررة (اقسام الفعل,الفاعل,المفعول به,المبتدأ,الخبر,كان واخواتها,...)وتمييزها","كتابة القضايا الاملائية المقررة (همزة القطع في مواضيعها المتنوعة,الف التفريق,...) كتابة صحيحة","كتابة عبارة او نص مراعيا قواعد كل من خط النسخ وخط الرقعة","التعبير عن المشاعر والاحاسيس والاراء شفويا وكتابيا بلغة سليمة وبحدود ست جمل وكتابيا بحدود سبع فقرات","التعبير عن رأيه ومشاهداته شفويا وكتابيا بلغة سليمة وبحدود سبع جمل وكتابيا بحدود ثماني فقرات"]
[null,null,null,null,null,null,null,null,null,null,null,null,null,"العنـــــــوان",null,null,null,"رمــز المديريــة",{"$f":"Value!$F$39","v":45},null,null,null,null,null,null,null,null,{"$f":"IF(AA16=\"\",\"\",IF((Z11/Z13)*100>=95,\"X\",\"\"))","v":""},{"$f":"IF(AA16=\"\",\"\",IF((Z11/Z13)*100>=95,\"\",IF((Z11/Z13)*100>=75,\"X\",)))","v":""},{"$f":"IF(AA16=\"\",\"\",IF((Z11/Z13)*100>=75,\"\",IF((Z11/Z13)*100>=65,\"X\",)))","v":""},{"$f":"IF(Z11=0,\"\",IF(AA16=\"\",\"\",IF(Z11=\"\",\"\",IF((Z11/Z13)*100<65,\"X\",\"\"))))","v":""},null,{"$f":"Table!$AC$6","v":"التربية الرياضية"},null,null,null,null,{"$f":"IF(AK16=\"\",\"\",IF(((AJ16/AJ18)*100)>=95,\"X\",\"\"))","v":""},{"$f":"IF(AK16=\"\",\"\",IF((AJ16/AJ18)*100>=95,\"\",IF((AJ16/AJ18)*100>=80,\"X\",)))","v":""},{"$f":"IF(AK16=\"\",\"\",IF((AJ16/AJ18)*100>=80,\"\",IF((AJ16/AJ18)*100>=65,\"X\",)))","v":""},{"$f":"IF(AJ16=0,\"\",IF(AK16=\"\",\"\",IF(AJ16=\"\",\"\",IF((AJ16/AJ18)*100<65,\"X\",\"\"))))","v":""},null,null,null,null,null,null,null,null,null,null,null,null,null,null,null,null,null,null,null,null,null,null,null,null,null,null,null,null,null,null,null,null,null,null,null,null,null,null,null,null,null,null,null,null,null,"كتابة عبارة أو نص مراعيا قواعد كل من خط النسخ وخط الرقعة"]
[null,"يحرص على خدمة المجتمع المحلي",null,null,null,null,{"$f":"IF($AR11=\"جيد جدا\",\"X\",IF($AR11=\"ممتاز\",\"X\",))","v":0},{"$f":"IF($AR11=\"جيد\",\"X\",)","v":0},{"$f":"IF($AR11=\"مقبول\",\"X\",)","v":0},{"$f":"IF(Value!$F$33=\"1\",\"\",IF($AR11=\"جيد جدا\",\"X\",IF($AR11=\"ممتاز\",\"X\",)))","v":0},{"$f":"IF(Value!$F$33=\"1\",\"\",IF($AR11=\"جيد\",\"X\",))","v":0},{"$f":"IF(Value!$F$33=\"1\",\"\",IF($AR11=\"مقبول\",\"X\",))","v":0},null,"البريد الالكتروني",null,null,null,"الموقع الالكتروني",{"$f":"Value!$F$40","v":"unrwa54786@unrwa.org"},null,null,null,{"$f":"Table!$N$6","v":"اللغة الانجليزية"},null,null,null,null,{"$f":"IF(AA17=\"\",\"\",IF(((Z17/Z19)*100)>=95,\"X\",\"\"))","v":""},{"$f":"IF(AA17=\"\",\"\",IF((Z17/Z19)*100>=95,\"\",IF((Z17/Z19)*100>=80,\"X\",)))","v":""},{"$f":"IF(AA17=\"\",\"\",IF((Z17/Z19)*100>=80,\"\",IF((Z17/Z19)*100>=65,\"X\",)))","v":""},{"$f":"IF(Z17=0,\"\",IF(AA17=\"\",\"\",IF(Z17=\"\",\"\",IF((Z17/Z19)*100<65,\"X\",\"\"))))","v":""},null,null,null,null,null,null,{"$f":"IF(AK17=\"\",\"\",IF((AJ16/AJ18)*100>=85,\"X\",\"\"))","v":""},{"$f":"IF(AK17=\"\",\"\",IF((AJ16/AJ18)*100>=85,\"\",IF((AJ16/AJ18)*100>=70,\"X\",)))","v":""},{"$f":"IF(AK17=\"\",\"\",IF((AJ16/AJ18)*100>=70,\"\",IF((AJ16/AJ18)*100>=55,\"X\",)))","v":""},{"$f":"IF(AJ16=0,\"\",IF(AK17=\"\",\"\",IF(AJ16=\"\",\"\",IF((AJ16/AJ18)*100<55,\"X\",\"\"))))","v":""},null,null,null,null,null,null,null,null,null,null,null,null,null,null,null,null,null,null,null,null,null,null,null,null,null,null,null,null,null,null,null,null,null,null,null,null,null,null,null,null,"تمييز الحروف و الكلمات الواردة في الكتاب المقرر - استماعا","تمييز الحروف و الكلمات وأشباه الجمل  الواردة في الكتاب المقرر - استماعا","تمييز المقاطع (احرف علة) والكلمات وأشباه الجمل - الواردة في الكتاب المقرر- استماعا","تمييز المقاطع (احرف صحيحة ) استماعا وقراءة ونطقا ","تمييز المقاطع ( ذات الالفاظ المختلفة ) استماعا وقراءة ونطقا سليما","الاستماع لمادة مسجلة تتناسب مع مستوى الصف لتنفيذ مهمة مثل ملء فراغات في جمل","تطوير استراتيجيات : استماع لفهم المسموع","استخدام استراتيجيات استماع لفهم المسموع","استخدام استراتيجيات استماع لفهم المسموع","استخدام استراتيجيات استماع لفهم المسموع"]
[null,null,null,null,null,null,null,null,null,null,null,null,null,"الديانــــــــة","الاسلام",null,null,"السلطة التعليمية المشرفة","وكالة الغوث الدولية",null,null,null,null,null,null,null,null,{"$f":"IF(AA18=\"\",\"\",IF((Z17/Z19)*100>=85,\"X\",\"\"))","v":""},{"$f":"IF(AA18=\"\",\"\",IF((Z17/Z19)*100>=85,\"\",IF((Z17/Z19)*100>=70,\"X\",)))","v":""},{"$f":"IF(AA18=\"\",\"\",IF((Z17/Z19)*100>=70,\"\",IF((Z17/Z19)*100>=55,\"X\",)))","v":""},{"$f":"IF(Z17=0,\"\",IF(AA18=\"\",\"\",IF(Z17=\"\",\"\",IF((Z17/Z19)*100<55,\"X\",\"\"))))","v":""},null,null,{"$f":"Table!$AC$10","v":100},{"$f":"Table!$AD$10","v":100},{"$f":"Table!$AE$10","v":100},null,{"$f":"IF(AK18=\"\",\"\",IF((AJ16/AJ18)*100>=90,\"X\",\"\"))","v":""},{"$f":"IF(AK18=\"\",\"\",IF((AJ16/AJ18)*100>=90,\"\",IF((AJ16/AJ18)*100>=75,\"X\",)))","v":""},{"$f":"IF(AK18=\"\",\"\",IF((AJ16/AJ18)*100>=75,\"\",IF((AJ16/AJ18)*100>=60,\"X\",)))","v":""},{"$f":"IF(AJ16=0,\"\",IF(AK18=\"\",\"\",IF(AJ16=\"\",\"\",IF((AJ16/AJ18)*100<60,\"X\",\"\"))))","v":""},null,null,null,null,null,null,null,null,null,null,null,null,null,null,null,null,null,null,null,null,null,null,null,null,null,null,null,null,null,null,null,null,null,null,null,null,null,null,null,"E","تمييز الحروف و الكلمات الواردة في الكتاب المقرر -  قراءة","تمييز الحروف و الكلمات وأشباه الجمل الواردة في الكتاب المقرر -  قراءة","تمييز المقاطع (احرف علة) والكلمات وأشباه الجمل - الواردة في الكتاب المقرر- قراءة","الاستماع لمادة مسجلة تتناسب مع مستوى الصف لتنفيذ مهمة مثل ترقيم صور","الاستماع لمادة مسجلة تتناسب مع مستوى الصف لتنفيذ مهمة مثل اعادة ترتيب جمل","المشاركة في العروض التقديمية والمحادثة الصفية","تطوير استراتيجيات قراءة لفهم المقروء","استخدام استراتيجيات قراءة لفهم المقروء","استخدام استراتيجيات قراءة لفهم المقروء","استخدام استراتيجيات قراءة لفهم المقروء"]
[null,"يشارك في اللجان والانشطة المدرسية",null,null,null,null,{"$f":"IF($AR11=\"ممتاز\",\"X\",)","v":0},{"$f":"IF($AR11=\"جيد جدا\",\"X\",)","v":0},{"$f":"IF($AR11=\"مقبول\",\"X\",IF($AR11=\"جيد\",\"X\",))","v":0},{"$f":"IF(Value!$F$33=\"1\",\"\",IF($AR11=\"ممتاز\",\"X\",))","v":0},{"$f":"IF(Value!$F$33=\"1\",\"\",IF($AR11=\"جيد جدا\",\"X\",))","v":0},{"$f":"IF(Value!$F$33=\"1\",\"\",IF($AR11=\"مقبول\",\"X\",IF($AR11=\"جيد\",\"X\",)))","v":0},null,null,null,null," ",null,null,null,null,null,null,{"$f":"Table!$N$10","v":100},{"$f":"Table!$O$10","v":100},{"$f":"Table!$P$10","v":100},null,{"$f":"IF(AA19=\"\",\"\",IF((Z17/Z19)*100>=90,\"X\",\"\"))","v":""},{"$f":"IF(AA19=\"\",\"\",IF((Z17/Z19)*100>=90,\"\",IF((Z17/Z19)*100>=75,\"X\",)))","v":""},{"$f":"IF(AA19=\"\",\"\",IF((Z17/Z19)*100>=75,\"\",IF((Z17/Z19)*100>=60,\"X\",)))","v":""},{"$f":"IF(Z17=0,\"\",IF(AA19=\"\",\"\",IF(Z17=\"\",\"\",IF((Z17/Z19)*100<60,\"X\",\"\"))))","v":""},null,null,"المعدل بالحروف",{"$f":"SpellNumberA(IF(Value!$F$33=\"1\",AH16,AJ16),0,\"علامة\",\"علامتان\",\"علامات\")","v":""},null,null,{"$f":"IF(AK19=\"\",\"\",IF((AJ16/AJ18)*100>=80,\"X\",\"\"))","v":""},{"$f":"IF(AK19=\"\",\"\",IF((AJ16/AJ18)*100>=80,\"\",IF((AJ16/AJ18)*100>=70,\"X\",)))","v":""},{"$f":"IF(AK19=\"\",\"\",IF((AJ16/AJ18)*100>=70,\"\",IF((AJ16/AJ18)*100>=60,\"X\",)))","v":""},{"$f":"IF(AJ16=0,\"\",IF(AK19=\"\",\"\",IF(AJ16=\"\",\"\",IF((AJ16/AJ18)*100<60,\"X\",\"\"))))","v":""},null,null,null,null,null,null,null,null,null,null,null,null,null,null,null,null,null,null,null,null,null,null,null,null,null,null,null,null,null,null,null,null,null,null,null,null,null,null,null,null,"نطق الحروف والكلمات ( مقطع واحد ) نطقا سليما","نطق الحروف والكلمات ( من مقطعين  ) نطقا سليما","نطق المقاطع والكلمات ( من مقطعين ) نطقا سليما","المشاركة في العروض التقديمية والمحادثات الصفية","المشاركة في العروض التقديمية والمحادثة الصفية","قراءة نصوص اخبارية وأدبية مبسطة وفهمها - 70 كلمة","المشاركة في المحادثة الصفية والعروض التقديمية","المشاركة في المحادثة الصفية والعروض التقديمية","المشاركة في المحادثة الصفية والعروض التقديمية","المشاركة في المحادثة الصفية والعروض التقديمية"]
[null,null,null,null,null,null,null,null,null,null,null,null,null,"عدد أيام الدوام الرسمي",null,null,null,"عدد أيام الغياب",null,null,null,null,null,"المعدل بالحروف",{"$f":"SpellNumberA(IF(Value!$F$33=\"1\",X17,Z17),0,\"علامة\",\"علامتان\",\"علامات\")","v":""},null,null,{"$f":"IF(AA20=\"\",\"\",IF((Z17/Z19)*100>=80,\"X\",\"\"))","v":""},{"$f":"IF(AA20=\"\",\"\",IF((Z17/Z19)*100>=80,\"\",IF((Z17/Z19)*100>=70,\"X\",)))","v":""},{"$f":"IF(AA20=\"\",\"\",IF((Z17/Z19)*100>=70,\"\",IF((Z17/Z19)*100>=60,\"X\",)))","v":""},{"$f":"IF(Z17=0,\"\",IF(AA20=\"\",\"\",IF(Z17=\"\",\"\",IF((Z17/Z19)*100<60,\"X\",\"\"))))","v":""},null,null,null,null,null,null,{"$f":"IF(AK20=\"\",\"\",IF((AJ16/AJ18)*100>=90,\"X\",\"\"))","v":""},{"$f":"IF(AK20=\"\",\"\",IF((AJ16/AJ18)*100>=90,\"\",IF((AJ16/AJ18)*100>=70,\"X\",)))","v":""},{"$f":"IF(AK20=\"\",\"\",IF((AJ16/AJ18)*100>=70,\"\",IF((AJ16/AJ18)*100>=55,\"X\",)))","v":""},{"$f":"IF(AJ16=0,\"\",IF(AK20=\"\",\"\",IF(AJ16=\"\",\"\",IF((AJ16/AJ18)*100<55,\"X\",\"\"))))","v":""},null,null,null,null,null,null,null,null,null,null,null,null,null,null,null,null,null,null,null,null,null,null,null,null,null,null,null,null,null,null,null,null,null,null,null,null,null,null,null,null,"كتابة الحروف والكلمات الواردة في الكتاب المقرر واستخدامها في التعبير الكتابي","كتابة الحروف والارقام  والكلمات واشباه الجمل الواردة في الكتاب المقرر واستخدامها في التعبير الكتابي","كتابة الجمل - الواردة في الكتاب المقرر - واستخدامها في التعبير الكتابي","قراءة نصوص مبسطة - 50 كلمة - وفهمها","قراءة نصوص مبسطة - 60 كلمة - وفهمها","كتابة نص قصير - 40 كلمة - (مثل سجل سير التعلم,والقصة القصيرة الموجهة)مع مراعاة تطبيق احكام الغة","قراءة نصوص ادبية ومعلوماتية وفهمها - 80 كلمة ","قراءة نصوص ادبية ومعلوماتية وفهمها - 90 كلمة ","قراءة نصوص ادبية ومعلوماتية وفهمها - 100 كلمة ","قراءة نصوص ادبية ومعلوماتية وفهمها - 120 كلمة "]
[null,"يحرص على التعلم الذاتي والمستمر",null,null,null,null,{"$f":"IF(T25>=80,\"X\",\"\")","v":""},{"$f":"IF(T25>=80,\"\",IF(T25>=55,\"X\",))","v":0},{"$f":"IF(T25=\"\",\"\",IF(T25<55,\"X\",\"\"))","v":""},{"$f":"IF(T25>=90,\"X\",\"\")","v":""},{"$f":"IF(T25>=90,\"\",IF(T25>=65,\"X\",))","v":0},{"$f":"IF(T25=\"\",\"\",IF(T25<65,\"X\",\"\"))","v":""},null,"الفصل الاول",{"$f":"Value!$F$38","v":97},null,null,null,null,null,null,null,null,null,null,null,null,{"$f":"IF(AA21=\"\",\"\",IF((Z17/Z19)*100>=90,\"X\",\"\"))","v":""},{"$f":"IF(AA21=\"\",\"\",IF((Z17/Z19)*100>=90,\"\",IF((Z17/Z19)*100>=70,\"X\",)))","v":""},{"$f":"IF(AA21=\"\",\"\",IF((Z17/Z19)*100>=70,\"\",IF((Z17/Z19)*100>=55,\"X\",)))","v":""},{"$f":"IF(Z17=0,\"\",IF(AA21=\"\",\"\",IF(Z17=\"\",\"\",IF((Z17/Z19)*100<55,\"X\",\"\"))))","v":""},null,null,null,null,null,null,{"$f":"IF(AK21=\"\",\"\",IF((AJ16/AJ18)*100>=95,\"X\",\"\"))","v":""},{"$f":"IF(AK21=\"\",\"\",IF((AJ16/AJ18)*100>=95,\"\",IF((AJ16/AJ18)*100>=75,\"X\",)))","v":""},{"$f":"IF(AK21=\"\",\"\",IF((AJ16/AJ18)*100>=75,\"\",IF((AJ16/AJ18)*100>=65,\"X\",)))","v":""},{"$f":"IF(AJ16=0,\"\",IF(AK21=\"\",\"\",IF(AJ16=\"\",\"\",IF((AJ16/AJ18)*100<65,\"X\",\"\"))))","v":""},null,null,null,null,null,null,null,null,null,null,null,null,null,null,null,null,null,null,null,null,null,null,null,null,null,null,null,null,null,null,null,null,null,null,null,null,null,null,null,null,"المشاركة في الاناشيد ومبادلة عبارات التحية","المشاركة في الحوار والعروض التقديمية و الاناشيد ","المشاركة في العروض التقديمية والمحادثة الصفية","كتابة نص قصير - 20 كلمة - ( مثل الرسالة ) مع مراعاة تطبيق احكام اللغة","كتابة نص قصير - 30 كلمة - (مثل الحوار والوصف)مع مراعاة تطبيق احكام الغة",null,"استخدام مصادرالمعرفة وجمع المعلومات وتنظيمه للكتابة","استخدام مصادرالمعرفة وجمع المعلومات وتنظيمه للكتابة","استخدام مصادرالمعرفة وجمع المعلومات وتنظيمه للكتابة ","استخدام مصادرالمعرفة وجمع المعلومات وتنظيمه للكتابة"]
[null,null,null,null,null,null,null,null,null,null,null,null,null,"الفصل الثاني",{"$f":"IF(Value!$F$33=\"1\",\"\",Value!$F$11-Value!$F$38)","v":102},null,null,null,null,null,null,null,null,null,null,null,null,{"$f":"IF(AA22=\"\",\"\",IF((Z17/Z19)*100>=95,\"X\",\"\"))","v":""},{"$f":"IF(AA22=\"\",\"\",IF((Z17/Z19)*100>=95,\"\",IF((Z17/Z19)*100>=75,\"X\",)))","v":""},{"$f":"IF(AA22=\"\",\"\",IF((Z17/Z19)*100>=75,\"\",IF((Z17/Z19)*100>=65,\"X\",)))","v":""},{"$f":"IF(Z17=0,\"\",IF(AA22=\"\",\"\",IF(Z17=\"\",\"\",IF((Z17/Z19)*100<65,\"X\",\"\"))))","v":""},null,null,null,null,null,null,{"$f":"IF(AK22=\"\",\"\",IF((AJ16/AJ18)*100>=90,\"X\",\"\"))","v":""},{"$f":"IF(AK22=\"\",\"\",IF((AJ16/AJ18)*100>=90,\"\",IF((AJ16/AJ18)*100>=75,\"X\",)))","v":""},{"$f":"IF(AK22=\"\",\"\",IF((AJ16/AJ18)*100>=75,\"\",IF((AJ16/AJ18)*100>=60,\"X\",)))","v":""},{"$f":"IF(AJ16=0,\"\",IF(AK22=\"\",\"\",IF(AJ16=\"\",\"\",IF((AJ16/AJ18)*100<60,\"X\",\"\"))))","v":""},null,null,null,null,null,null,null,null,null,null,null,null,null,null,null,null,null,null,null,null,null,null,null,null,null,null,null,null,null,null,null,null,null,null,null,null,null,null,null,null,null,null,null,null,null,null,"ترجمة كلمات من العربية الى الانجليزية وبالعكس","ترجمة جمل بسيطة من العربية الى الانجليزية وبالعكس","ترجمة جمل مركبة من العربية الى الانجليزية وبالعكس","ترجمة جمل بسيطة من العربية الى الانجليزية وبالعكس"]
[null,null,null,null,null,null,null,null,null,null,null,null,null,null,null,null,null,null,null,null,null,null,null,null,null,null,null,{"$f":"IF(AA23=\"\",\"\",IF((Z17/Z19)*100>=90,\"X\",\"\"))","v":""},{"$f":"IF(AA23=\"\",\"\",IF((Z17/Z19)*100>=90,\"\",IF((Z17/Z19)*100>=75,\"X\",)))","v":""},{"$f":"IF(AA23=\"\",\"\",IF((Z17/Z19)*100>=75,\"\",IF((Z17/Z19)*100>=60,\"X\",)))","v":""},{"$f":"IF(Z17=0,\"\",IF(AA23=\"\",\"\",IF(Z17=\"\",\"\",IF((Z17/Z19)*100<60,\"X\",\"\"))))","v":""},null,null,null,null,null,null,{"$f":"IF(AK23=\"\",\"\",IF((AJ16/AJ18)*100>=80,\"X\",\"\"))","v":""},{"$f":"IF(AK23=\"\",\"\",IF((AJ16/AJ18)*100>=80,\"\",IF((AJ16/AJ18)*100>=70,\"X\",)))","v":""},{"$f":"IF(AK23=\"\",\"\",IF((AJ16/AJ18)*100>=70,\"\",IF((AJ16/AJ18)*100>=60,\"X\",)))","v":""},{"$f":"IF(AJ16=0,\"\",IF(AK23=\"\",\"\",IF(AJ16=\"\",\"\",IF((AJ16/AJ18)*100<60,\"X\",\"\"))))","v":""},null,null,null,null,null,null,null,null,null,null,null,null,null,null,null,null,null,null,null,null,null,null,null,null,null,null,null,null,null,null,null,null,null,null,null,null,null,null,null,null,null,null,null,null,null,null,"كتابة نص من 50 كلمة مثل التقرير او الرسالة مع مراعاة احكام اللغة","كتابة نص من 60 كلمة مثل التقرير او البحث أو الرسالة مع مراعاة احكام اللغة","كتابة نص من 70 كلمة مثل التقرير او البحث او الرسالة مع مراعاة احكام اللغة","كتابة نص من 80 كلمة مثل التقرير او البحث او الرسالة مع مراعاة احكام اللغة"]
[null,"        ملحوظات معلم الصف :",null,null,null,null,null,null,null,null,null,null,null,"الـنـتـيـجـة",null,null,null,null,null,null,null,null,{"$f":"Table!$Q$6","v":"الرياضيات"},null,null,null,null,{"$f":"IF(AA24=\"\",\"\",IF(((Z24/Z26)*100)>=95,\"X\",\"\"))","v":""},{"$f":"IF(AA24=\"\",\"\",IF((Z24/Z26)*100>=95,\"\",IF((Z24/Z26)*100>=80,\"X\",)))","v":""},{"$f":"IF(AA24=\"\",\"\",IF((Z24/Z26)*100>=80,\"\",IF((Z24/Z26)*100>=65,\"X\",)))","v":""},{"$f":"IF(Z24=0,\"\",IF(AA24=\"\",\"\",IF(Z24=\"\",\"\",IF((Z24/Z26)*100<65,\"X\",\"\"))))","v":""},null,null,null,null,null,null,{"$f":"IF(AK24=\"\",\"\",IF((AJ16/AJ18)*100>=90,\"X\",\"\"))","v":""},{"$f":"IF(AK24=\"\",\"\",IF((AJ16/AJ18)*100>=90,\"\",IF((AJ16/AJ18)*100>=70,\"X\",)))","v":""},{"$f":"IF(AK24=\"\",\"\",IF((AJ16/AJ18)*100>=70,\"\",IF((AJ16/AJ18)*100>=55,\"X\",)))","v":""},{"$f":"IF(AJ16=0,\"\",IF(AK24=\"\",\"\",IF(AJ16=\"\",\"\",IF((AJ16/AJ18)*100<55,\"X\",\"\"))))","v":""},null,null,null,null,null,null,null,null,null,null,null,null,null,null,null,null,null,null,null,null,null,null,null,null,null,null,null,null,null,null,null,null,null,null,null,null,null,null,null,null,"قراءة الاعداد ضمن ( 99 ) وكتابتها","قراءة الاعداد ضمن ( 9999 ) وكتابتها","قراءة الاعداد ضمن 6 منازل وكتابتها","قراءة الاعداد ضمن 9 منازل وكتابتها","ايجاد ناتج جمع وطرح كسريين احدهما من مضاعفات الاخر","ايجاد مربع ومكعب الاعداد الصحيحة والجذر التربيعي لمربع كامل والجذر التكعيبي لمكعب كامل","تحليل الاعداد الصحيحة الى العوامل الاولية وكتابتها على شكل اسس ","اجراء العمليات الحسابية على الاسس للآعداد الصحيحة","تحليل المقادير الجبرية من الدرجة الثانية والثالثة(فرق ومجموع مكعبين)","قراءة الرسوم البيانية والاشكال والجداول الاحصائية"]
[null,null,null,null,null,null,null,null,null,null,null,null,null,null,null,null,null,"المعدل المئوي بالأرقام  :",null,null,null,null,null,null,null,null,null,{"$f":"IF(AA25=\"\",\"\",IF((Z24/Z26)*100>=85,\"X\",\"\"))","v":""},{"$f":"IF(AA25=\"\",\"\",IF((Z24/Z26)*100>=85,\"\",IF((Z24/Z26)*100>=70,\"X\",)))","v":""},{"$f":"IF(AA25=\"\",\"\",IF((Z24/Z26)*100>=70,\"\",IF((Z24/Z26)*100>=55,\"X\",)))","v":""},{"$f":"IF(Z24=0,\"\",IF(AA25=\"\",\"\",IF(Z24=\"\",\"\",IF((Z24/Z26)*100<55,\"X\",\"\"))))","v":""},null,{"$f":"Table!$AF$6","v":"الموسيقا والاناشيد"},null,null,null,null,{"$f":"IF(AK25=\"\",\"\",IF(((AJ25/AJ27)*100)>=95,\"X\",\"\"))","v":""},{"$f":"IF(AK25=\"\",\"\",IF((AJ25/AJ27)*100>=95,\"\",IF((AJ25/AJ27)*100>=80,\"X\",)))","v":""},{"$f":"IF(AK25=\"\",\"\",IF((AJ25/AJ27)*100>=80,\"\",IF((AJ25/AJ27)*100>=65,\"X\",)))","v":""},{"$f":"IF(AJ25=0,\"\",IF(AK25=\"\",\"\",IF(AJ25=\"\",\"\",IF((AJ25/AJ27)*100<65,\"X\",\"\"))))","v":""},null,null,null,null,null,null,null,null,null,null,null,null,null,null,null,null,null,null,null,null,null,null,null,null,null,null,null,null,null,null,null,null,null,null,null,null,null,null,null,"رياضيات","ايجاد ناتج جمع عددين ضمن ( 99 ) بحمل وبدون حمل","ايجاد ناتج جمع عددين ضمن 4 منازل","ايجاد القيمة المنزلية لرقم معطى ضمن عدد ( كتابة الاعداد بالطريقة التحليلية )","قراءة الكسور العادية والعشرية وكتابتها","تعرف مفهوم العدد السالب","تمييز الكسر العادي والعشري والتحويل بينهما","معرفة مفهوم المقدار الجبري والمعادلة الخطية بمتغير واحد وحلها","تمثيل المتباينات من الدرجة الاولى وايجاد مجموعة حلها ","اجراء العمليات على المقادير الكسرية","اجراء العمليات الحسابية والعمليات على المصفوفات"]
[null,null,null,null,null,null,null,null,null,null,null,null,null,null,null,null,null,"بالحروف :",{"$f":"IF(T25<>\"-\",SpellNumberA(T25,0,\"علامة\",\"علامتان\",\"علامات\"),\"\")","v":""},null,null,null,null,{"$f":"Table!$Q$10","v":100},{"$f":"Table!$R$10","v":100},{"$f":"Table!$S$10","v":100},null,{"$f":"IF(AA26=\"\",\"\",IF((Z24/Z26)*100>=90,\"X\",\"\"))","v":""},{"$f":"IF(AA26=\"\",\"\",IF((Z24/Z26)*100>=90,\"\",IF((Z24/Z26)*100>=75,\"X\",)))","v":""},{"$f":"IF(AA26=\"\",\"\",IF((Z24/Z26)*100>=75,\"\",IF((Z24/Z26)*100>=60,\"X\",)))","v":""},{"$f":"IF(Z24=0,\"\",IF(AA26=\"\",\"\",IF(Z24=\"\",\"\",IF((Z24/Z26)*100<60,\"X\",\"\"))))","v":""},null,null,null,null,null,null,{"$f":"IF(AK26=\"\",\"\",IF((AJ25/AJ27)*100>=85,\"X\",\"\"))","v":""},{"$f":"IF(AK26=\"\",\"\",IF((AJ25/AJ27)*100>=85,\"\",IF((AJ25/AJ27)*100>=70,\"X\",)))","v":""},{"$f":"IF(AK26=\"\",\"\",IF((AJ25/AJ27)*100>=70,\"\",IF((AJ25/AJ27)*100>=55,\"X\",)))","v":""},{"$f":"IF(AJ25=0,\"\",IF(AK26=\"\",\"\",IF(AJ25=\"\",\"\",IF((AJ25/AJ27)*100<55,\"X\",\"\"))))","v":""},null,null,null,null,null,null,null,null,null,null,null,null,null,null,null,null,null,null,null,null,null,null,null,null,null,null,null,null,null,null,null,null,null,null,null,null,null,null,null,null,"ايجاد ناتج طرح عددين ضمن ( 99 ) باستلاف وبدون استلاف","ايجاد ناتج طرح عددين ضمن 4 منازل","تعريف مفهوم الضرب ( جمع متكرر ) وايجاد ناتج ضرب عددين ضمن جداول الضرب من (1-5)","المقارنة بين الاعداد والكسور","التميز بين الطول والمساحة والحجم ووحداتها","اجراء العمليات الحسابية الاربعة على الكسور واستخدام خواص النسبة","التعرف الى العلاقات بين الزوايا وتشابه الاشكال الهندسية واستخدامها","تمييز العلاقات والاقترانات وتمثيلها بيانيا","تمثيل الاقتران التربيعي بيانيا وحل المعادلات التربيعة","حل معادلات من الدرجتين الاولى والثانية وبثلاث متغيرات كحد اقصى"]
[null,"    اسم معلم الصف  : ",{"$f":" Value!$F$8","v":"سالم سليمان ابو رجل"},null,null,null,"توقيعه :",null,null,null,null,null,null,null,null,null,null,null,null,null,null,null,null,"المعدل بالحروف",{"$f":"SpellNumberA(IF(Value!$F$33=\"1\",X24,Z24),0,\"علامة\",\"علامتان\",\"علامات\")","v":""},null,null,{"$f":"IF(AA27=\"\",\"\",IF((Z24/Z26)*100>=80,\"X\",\"\"))","v":""},{"$f":"IF(AA27=\"\",\"\",IF((Z24/Z26)*100>=80,\"\",IF((Z24/Z26)*100>=70,\"X\",)))","v":""},{"$f":"IF(AA27=\"\",\"\",IF((Z24/Z26)*100>=70,\"\",IF((Z24/Z26)*100>=60,\"X\",)))","v":""},{"$f":"IF(Z24=0,\"\",IF(AA27=\"\",\"\",IF(Z24=\"\",\"\",IF((Z24/Z26)*100<60,\"X\",\"\"))))","v":""},null,null,{"$f":"Table!$AF$10","v":100},{"$f":"Table!$AG$10","v":100},{"$f":"Table!$AH$10","v":100},null,{"$f":"IF(AK27=\"\",\"\",IF((AJ25/AJ27)*100>=90,\"X\",\"\"))","v":""},{"$f":"IF(AK27=\"\",\"\",IF((AJ25/AJ27)*100>=90,\"\",IF((AJ25/AJ27)*100>=75,\"X\",)))","v":""},{"$f":"IF(AK27=\"\",\"\",IF((AJ25/AJ27)*100>=75,\"\",IF((AJ25/AJ27)*100>=60,\"X\",)))","v":""},{"$f":"IF(AJ25=0,\"\",IF(AK27=\"\",\"\",IF(AJ25=\"\",\"\",IF((AJ25/AJ27)*100<60,\"X\",\"\"))))","v":""},null,null,null,null,null,null,null,null,null,null,null,null,null,null,null,null,null,null,null,null,null,null,null,null,null,null,null,null,null,null,null,null,null,null,null,null,null,null,null,null,"المقارنة بين الرسوم والأشكال ( أطول , أقصر , أكبر , أصغر )","تصنيف الاشكال الهندسية ( دائرة,مستطيل,مربع ,مثلث)","تعرف مفهوم القسمة وعلاقته بالطرح","اجراء العمليات الحسابيية الاربع على الاعداد المكونة من 9 منازل على الاكثر","تدوير الاعداد وتقدير نواتج العمليات الحسابية","استخدام الادوات الهندسية في الانشاء الهندسي وايجاد مساحات الاشكال الهندسية الرباعية","التعرف الى مفهوم المجموعات والعمليات عليها وحساب احتمال الحوادث البسيطة","استخدام تشابه المثلثات وخواص الاشكال الهندسية في حل المسألة","التعرف الى مفهوم التطابق والتشابه واستخدامها","ايجاد احتمالات الحوادث البسيطة والمشروطة"]
[null,null,null,null,null,null,null,null,null,null,null,null,null,null,null,null,null,null,null,null,null,null,null,null,null,null,null,{"$f":"IF(AA28=\"\",\"\",IF((Z24/Z26)*100>=90,\"X\",\"\"))","v":""},{"$f":"IF(AA28=\"\",\"\",IF((Z24/Z26)*100>=90,\"\",IF((Z24/Z26)*100>=70,\"X\",)))","v":""},{"$f":"IF(AA28=\"\",\"\",IF((Z24/Z26)*100>=70,\"\",IF((Z24/Z26)*100>=55,\"X\",)))","v":""},{"$f":"IF(Z24=0,\"\",IF(AA28=\"\",\"\",IF(Z24=\"\",\"\",IF((Z24/Z26)*100<55,\"X\",\"\"))))","v":""},null,null,"المعدل بالحروف",{"$f":"SpellNumberA(IF(Value!$F$33=\"1\",AH25,AJ25),0,\"علامة\",\"علامتان\",\"علامات\")","v":""},null,null,{"$f":"IF(AK28=\"\",\"\",IF((AJ25/AJ27)*100>=80,\"X\",\"\"))","v":""},{"$f":"IF(AK28=\"\",\"\",IF((AJ25/AJ27)*100>=80,\"\",IF((AJ25/AJ27)*100>=70,\"X\",)))","v":""},{"$f":"IF(AK28=\"\",\"\",IF((AJ25/AJ27)*100>=70,\"\",IF((AJ25/AJ27)*100>=60,\"X\",)))","v":""},{"$f":"IF(AJ25=0,\"\",IF(AK28=\"\",\"\",IF(AJ25=\"\",\"\",IF((AJ25/AJ27)*100<60,\"X\",\"\"))))","v":""},null,null,null,null,null,null,null,null,null,null,null,null,null,null,null,null,null,null,null,null,null,null,null,null,null,null,null,null,null,null,null,null,null,null,null,null,null,null,null,null,null,"تعرف بعض الانماط العددية والصورية البسيطة ( العد خمسات,عشرات,الوان متتابعة,اشكال متتابعة)","توظيف المعرفة الرياضية (الجمع والطرح والضرب والقسمة ) في حل مسائل تتضمن مواقف حياتية بسيطة","تمييز الوحدات القياسية ل ( الطول , الوقت , ... )","التحويل بين وحدات الزمن ووحدات النقد","حل مسائل تطبيقية على القياس (حساب العمر,قياس الزمن, ... )","ايجاد مساحات وحجوم الاشكال الهندسية الاساسية","تحليل وتركيب المقادير الجبرية حتى الدرجة الثانية","التعرف الى اساسيات الهندسة التحليلة (المستوى الديكارتي,الزوج المرتب,معادلة التقسيم)","ايجاد النسب المثلثية للزوايا الدائرية"]
[null,"   التاريخ :",{"$f":"IF(Value!$F$33=\"2\",Value!$F$14,Value!$F$25)","v":"2019/6/2"},"اسم مدير المدرسة وتوقيعه :",null,null,null,null,{"$f":"Value!$F$9","v":"فتحي محمد ابو فضة"},null,null,null,null,"مؤشرات الاداء ومستوياتها:",null,null,null,null,null,null,null,null,null,null,null,null,null,{"$f":"IF(AA29=\"\",\"\",IF((Z24/Z26)*100>=95,\"X\",\"\"))","v":""},{"$f":"IF(AA29=\"\",\"\",IF((Z24/Z26)*100>=95,\"\",IF((Z24/Z26)*100>=75,\"X\",)))","v":""},{"$f":"IF(AA29=\"\",\"\",IF((Z24/Z26)*100>=75,\"\",IF((Z24/Z26)*100>=65,\"X\",)))","v":""},{"$f":"IF(Z24=0,\"\",IF(AA29=\"\",\"\",IF(Z24=\"\",\"\",IF((Z24/Z26)*100<65,\"X\",\"\"))))","v":""},null,{"$f":"Table!$AI$6","v":"التربية المهنية"},null,null,null,null,{"$f":"IF(AK29=\"\",\"\",IF(((AJ29/AJ30)*100)>=95,\"X\",\"\"))","v":""},{"$f":"IF(AK29=\"\",\"\",IF((AJ29/AJ30)*100>=95,\"\",IF((AJ29/AJ30)*100>=80,\"X\",)))","v":""},{"$f":"IF(AK29=\"\",\"\",IF((AJ29/AJ30)*100>=80,\"\",IF((AJ29/AJ30)*100>=65,\"X\",)))","v":""},{"$f":"IF(AJ29=0,\"\",IF(AK29=\"\",\"\",IF(AJ29=\"\",\"\",IF((AJ29/AJ30)*100<65,\"X\",\"\"))))","v":""},null,null,null,null,null,null,null,null,null,null,null,null,null,null,null,null,null,null,null,null,null,null,null,null,null,null,null,null,null,null,null,null,null,null,null,null,null,null,null,null,null,null,null,"تعرف الاشكال الهندسية المستوية الرئيسة ( مستقيم ,زاوية , مربع, مستطيل,دائرة)",null,null,"تمثيل البيانات الاحصائية (بالاعمدة والقطاعات)وايجاد الوسط الحسابي","توظيف العمليات الحسابية الاساسية في حل مسائل حياتية","التعرف الى مفاهيم النسب المثلثية الاساسية واستخدامها في حل المثلث القائم الزاوية","ايجاد المقاييس الاحصائية الاساسية ( وسط,وسيط,منوال,انحراف معياري ,مدى) ومعرفة تأثير التحويلات الخطية عليها"]
[null,null,null,null,null,null,null,null,null,null,null,null,null,null,null,null,null,null,null,null,null,null,null,null,null,null,null,{"$f":"IF(AA30=\"\",\"\",IF((Z24/Z26)*100>=90,\"X\",\"\"))","v":""},{"$f":"IF(AA30=\"\",\"\",IF((Z24/Z26)*100>=90,\"\",IF((Z24/Z26)*100>=75,\"X\",)))","v":""},{"$f":"IF(AA30=\"\",\"\",IF((Z24/Z26)*100>=75,\"\",IF((Z24/Z26)*100>=60,\"X\",)))","v":""},{"$f":"IF(Z24=0,\"\",IF(AA30=\"\",\"\",IF(Z24=\"\",\"\",IF((Z24/Z26)*100<60,\"X\",\"\"))))","v":""},null,null,{"$f":"Table!$AI$10","v":100},{"$f":"Table!$AJ$10","v":100},{"$f":"Table!$AK$10","v":100},null,{"$f":"IF(AK30=\"\",\"\",IF((AJ29/AJ30)*100>=85,\"X\",\"\"))","v":""},{"$f":"IF(AK30=\"\",\"\",IF((AJ29/AJ30)*100>=85,\"\",IF((AJ29/AJ30)*100>=70,\"X\",)))","v":""},{"$f":"IF(AK30=\"\",\"\",IF((AJ29/AJ30)*100>=70,\"\",IF((AJ29/AJ30)*100>=55,\"X\",)))","v":""},{"$f":"IF(AJ29=0,\"\",IF(AK30=\"\",\"\",IF(AJ29=\"\",\"\",IF((AJ29/AJ30)*100<55,\"X\",\"\"))))","v":""},null,null,null,null,null,null,null,null,null,null,null,null,null,null,null,null,null,null,null,null,null,null,null,null,null,null,null,null,null,null,null,null,null,null,null,null,null,null,null,null,null,null,null,null,null,null,null,null,"ايجاد مقاييس النزعة المركزية","استخدام القوانين الاساسية في الهندسة التحليلية (طول قطعة مستقيمة,الميل,بعد نقطة عن مستقيم), "]
[null,null,null,null,null,null,null,null,null," ",null,null,null,"مؤشرات الاداء",null,null,null,null,null,"المستوى%",null,null,null,null,null,null,null,{"$f":"IF(AA31=\"\",\"\",IF((Z24/Z26)*100>=80,\"X\",\"\"))","v":""},{"$f":"IF(AA31=\"\",\"\",IF((Z24/Z26)*100>=80,\"\",IF((Z24/Z26)*100>=70,\"X\",)))","v":""},{"$f":"IF(AA31=\"\",\"\",IF((Z24/Z26)*100>=70,\"\",IF((Z24/Z26)*100>=60,\"X\",)))","v":""},{"$f":"IF(Z24=0,\"\",IF(AA31=\"\",\"\",IF(Z24=\"\",\"\",IF((Z24/Z26)*100<60,\"X\",\"\"))))","v":""},null,null,"المعدل بالحروف",{"$f":"SpellNumberA(IF(Value!$F$33=\"1\",AH29,AJ29),0,\"علامة\",\"علامتان\",\"علامات\")","v":""},null,null,{"$f":"IF(AK31=\"\",\"\",IF((AJ29/AJ30)*100>=90,\"X\",\"\"))","v":""},{"$f":"IF(AK31=\"\",\"\",IF((AJ29/AJ30)*100>=90,\"\",IF((AJ29/AJ30)*100>=75,\"X\",)))","v":""},{"$f":"IF(AK31=\"\",\"\",IF((AJ29/AJ30)*100>=75,\"\",IF((AJ29/AJ30)*100>=60,\"X\",)))","v":""},{"$f":"IF(AJ29=0,\"\",IF(AK31=\"\",\"\",IF(AJ29=\"\",\"\",IF((AJ29/AJ30)*100<60,\"X\",\"\"))))","v":""},null,null,null,null,null,null,null,null,null,null,null,null,null,null,null,null,null,null,null,null,null,null,null,null,null,null,null,null,null,null,null,null,null,null,null,null,null,null,null,null,null,null,null,null,null,null,null,null,null,"ايجاد قياسات الزوايا والاضلاع في الاشكال الرباعية الدائرية,"]
[null,"ملحوظات :",null,null,null,null,null,null,null,null,null,null,null,"يظهر امتلاكه للمعارف والمهارات المطلوبة,ويحقق النتاجات التعليمية بشكل يفوق معايير المستوى التعليمي المحدد",null,null,null,null,null,"90-100",null,null,{"$f":"Table!$T$6","v":"التربية الاجتماعية والوطنية"},null,null,null,null,{"$f":"IF(AA32=\"\",\"\",IF(((Z32/Z34)*100)>=95,\"X\",\"\"))","v":""},{"$f":"IF(AA32=\"\",\"\",IF((Z32/Z34)*100>=95,\"\",IF((Z32/Z34)*100>=80,\"X\",)))","v":""},{"$f":"IF(AA32=\"\",\"\",IF((Z32/Z34)*100>=80,\"\",IF((Z32/Z34)*100>=65,\"X\",)))","v":""},{"$f":"IF(Z32=0,\"\",IF(AA32=\"\",\"\",IF(Z32=\"\",\"\",IF((Z32/Z34)*100<65,\"X\",\"\"))))","v":""},null,{"$f":"Table!$AL$6","v":"الحاسوب"},null,null,null,null,{"$f":"IF(AK32=\"\",\"\",IF(((AJ32/AJ34)*100)>=95,\"X\",\"\"))","v":""},{"$f":"IF(AK32=\"\",\"\",IF((AJ32/AJ34)*100>=95,\"\",IF((AJ32/AJ34)*100>=80,\"X\",)))","v":""},{"$f":"IF(AK32=\"\",\"\",IF((AJ32/AJ34)*100>=80,\"\",IF((AJ32/AJ34)*100>=65,\"X\",)))","v":""},{"$f":"IF(AJ32=0,\"\",IF(AK32=\"\",\"\",IF(AJ32=\"\",\"\",IF((AJ32/AJ34)*100<65,\"X\",\"\"))))","v":""},null,null,null,null,null,null,null,null,null,null,null,null,null,null,null,null,null,null,null,null,null,null,null,null,null,null,null,null,null,null,null,null,null,null,null,null,null,null,null,"اجتماعيات","استخدام المفاهيم الكتابية لوصف الموقع والتنظيم المكاني ( مثل الرموز ,المدرسة,البيت)","استخدام الادوات الجغرافية في معرفة المفاهيم المكانية للموقع(مثل مجسم الكرة الارضية,الرموز,لتمثيل معالم سطح الارض)","فهم المقصود بالموارد ودورها في الحياة اليومية","فهم العلاقة بين النظام الطبيعي والبيئي","فهم اهمية الموقع الحضاري للأردن وابرز معالمه الحضارية","فهم انماط التوزيع المكاني على سطح الارض (مثل الخرائط والرسوم والاشكال التوضيحية)","فهم تاريخ ونشوء الحضارات القديمة","فهم النظم الطبيعية والعلاقات المتبادلة فيها","فهم تطور نظام الحكم والادارة والاقتصاد والحياة الاجتماعية في الدول الاسلامية","تعرف العلاقة بين النظام البشري والنظام الطبيعي"]
[null,null,null,null,null,null,null,null,null,null,null,null,null,"يظهر امتلاكه للمعارف والمهارات المطلوبة,ويحقق النتاجات التعليمية لمعايير المستوى التعليمي المحدد",null,null,null,null,null,"80-89",null,null,null,null,null,null,null,{"$f":"IF(AA33=\"\",\"\",IF((Z32/Z34)*100>=85,\"X\",\"\"))","v":""},{"$f":"IF(AA33=\"\",\"\",IF((Z32/Z34)*100>=85,\"\",IF((Z32/Z34)*100>=70,\"X\",)))","v":""},{"$f":"IF(AA33=\"\",\"\",IF((Z32/Z34)*100>=70,\"\",IF((Z32/Z34)*100>=55,\"X\",)))","v":""},{"$f":"IF(Z32=0,\"\",IF(AA33=\"\",\"\",IF(Z32=\"\",\"\",IF((Z32/Z34)*100<55,\"X\",\"\"))))","v":""},null,null,null,null,null,null,{"$f":"IF(AK33=\"\",\"\",IF((AJ32/AJ34)*100>=85,\"X\",\"\"))","v":""},{"$f":"IF(AK33=\"\",\"\",IF((AJ32/AJ34)*100>=85,\"\",IF((AJ32/AJ34)*100>=70,\"X\",)))","v":""},{"$f":"IF(AK33=\"\",\"\",IF((AJ32/AJ34)*100>=70,\"\",IF((AJ32/AJ34)*100>=55,\"X\",)))","v":""},{"$f":"IF(AJ32=0,\"\",IF(AK33=\"\",\"\",IF(AJ32=\"\",\"\",IF((AJ32/AJ34)*100<55,\"X\",\"\"))))","v":""},null,null,null,null,null,null,null,null,null,null,null,null,null,null,null,null,null,null,null,null,null,null,null,null,null,null,null,null,null,null,null,null,null,null,null,null,null,null,null,null,"فهم النظام الطبيعي على سطح الأرض","فهم مكونات النظام الطبيعي","استخدام الادوات الجغرافية في فهم المفاهيم المكانية للموقع ( عناصر الخريطة,الاتجاهات,البوصلة)","فهم دور الانسان في البيئة","فهم دور الدولة وعناصرها واشكالها ووظائفها ","فهم الظواهر والعمليات الطبيعية","فهم الغزو الخارجي للعالم الاسلامي","فهم العلاقة بين السكان والموقع ","فهم الانجازات الحضارية والفكرية في الدولة الاسلامية","ادراك التغيرات البيئية الطبيعية والبشرية واقتراح حلول لها , وتحديد العلاقة بين السكان واستغلال الموارد"]
["1)"," تعقد اختبارات الإكمال في المدرسة وتعتمد نتائجها من يوم",null,{"$f":"IF(Value!$F$33=\"1\",\"\",DATE(YEAR(Value!$F$22),MONTH(Value!$F$22),DAY(Value!$F$22)))","v":"2019-06-12"},"الموافق",{"$f":"IF(Value!$F$33=\"2\",Value!$F$22,\"\")","v":"2019/6/12"},null,"الى يوم",{"$f":"IF(Value!$F$33=\"1\",\"\",DATE(YEAR(Value!$F$41),MONTH(Value!$F$41),DAY(Value!$F$41)))","v":"2019-06-14"},"الموافق",{"$f":"IF(Value!$F$33=\"2\",Value!$F$41,\"\")","v":"2019/6/14"},null,null,"يظهر امتلاكه لمعظم المعارف والمهارات المطلوبة,ويحقق النتاجات التعليمية لمعايير المستوى التعليمي المحدد",null,null,null,null,null,"70-79",null,null,null,{"$f":"Table!$T$10","v":100},{"$f":"Table!$U$10","v":100},{"$f":"Table!$V$10","v":100},null,{"$f":"IF(AA34=\"\",\"\",IF((Z32/Z34)*100>=90,\"X\",\"\"))","v":""},{"$f":"IF(AA34=\"\",\"\",IF((Z32/Z34)*100>=90,\"\",IF((Z32/Z34)*100>=75,\"X\",)))","v":""},{"$f":"IF(AA34=\"\",\"\",IF((Z32/Z34)*100>=75,\"\",IF((Z32/Z34)*100>=60,\"X\",)))","v":""},{"$f":"IF(Z32=0,\"\",IF(AA34=\"\",\"\",IF(Z32=\"\",\"\",IF((Z32/Z34)*100<60,\"X\",\"\"))))","v":""},null,null,{"$f":"Table!$AL$10","v":100},{"$f":"Table!$AM$10","v":100},{"$f":"Table!$AN$10","v":100},null,{"$f":"IF(AK34=\"\",\"\",IF((AJ32/AJ34)*100>=90,\"X\",\"\"))","v":""},{"$f":"IF(AK34=\"\",\"\",IF((AJ32/AJ34)*100>=90,\"\",IF((AJ32/AJ34)*100>=75,\"X\",)))","v":""},{"$f":"IF(AK34=\"\",\"\",IF((AJ32/AJ34)*100>=75,\"\",IF((AJ32/AJ34)*100>=60,\"X\",)))","v":""},{"$f":"IF(AJ32=0,\"\",IF(AK34=\"\",\"\",IF(AJ32=\"\",\"\",IF((AJ32/AJ34)*100<60,\"X\",\"\"))))","v":""},null,null,null,null,null,null,null,null,null,null,null,null,null,null,null,null,null,null,null,null,null,null,null,null,null,null,null,null,null,null,null,null,null,null,null,null,null,null,null,null,"فهم مظاهر حياة السكان اليومية","فهم العمران البشري","فهم العلاقة بين النظام الطبيعي والبيئي","فهم اسباب الهجرة البشرية ونتائجها ","إدراك أهمية مشاركة الاردن في قوات حفظ السلام","فهم دور الانسان في الحفاظ على البيئة","فهم العمليات الطبيعية في النظام الطبيعي و البيئي","فهم توزيع الموارد والاستثمار الامثل لها","فهم مشكلات الموقع والقدرة على تحليلها","توظيف الادوات الجغرافية ووسائل التكنولوجيا في فهم الظواهر الجغرافية(نظم المعلومات.الخرائط والاشكال التوضيحية,وسائل الاتصال والتكنولوجيا)"]
["2)","تسلم الكتب المدرسية للطلبة ويسجل المنقولون منهم يوم ",null,{"$f":"IF(Value!$F$33=\"1\",\"\",DATE(YEAR(Value!$F$42),MONTH(Value!$F$42),DAY(Value!$F$42)))","v":"2019-09-01"},"الموافق",{"$f":"IF(Value!$F$33=\"2\",Value!$F$42,\"\")","v":"2019/9/1"},null,"الى يوم",{"$f":"IF(Value!$F$33=\"1\",\"\",DATE(YEAR(Value!$F$43),MONTH(Value!$F$43),DAY(Value!$F$43)))","v":"2019-09-03"},"الموافق",{"$f":"IF(Value!$F$33=\"2\",Value!$F$43,\"\")","v":"2019/9/3"},null,null,"يظهر امتلاكه لبعض المعارف والمهارات المطلوبة,ويقترب من تحقيق  النتاجات التعليمية لمعايير المستوى التعليمي المحدد",null,null,null,null,null,"60-69",null,null,null,"المعدل بالحروف",{"$f":"SpellNumberA(IF(Value!$F$33=\"1\",X32,Z32),0,\"علامة\",\"علامتان\",\"علامات\")","v":""},null,null,{"$f":"IF(AA35=\"\",\"\",IF((Z32/Z34)*100>=80,\"X\",\"\"))","v":""},{"$f":"IF(AA35=\"\",\"\",IF((Z32/Z34)*100>=80,\"\",IF((Z32/Z34)*100>=70,\"X\",)))","v":""},{"$f":"IF(AA35=\"\",\"\",IF((Z32/Z34)*100>=70,\"\",IF((Z32/Z34)*100>=60,\"X\",)))","v":""},{"$f":"IF(Z32=0,\"\",IF(AA35=\"\",\"\",IF(Z32=\"\",\"\",IF((Z32/Z34)*100<60,\"X\",\"\"))))","v":""},null,null,"المعدل بالحروف",{"$f":"SpellNumberA(IF(Value!$F$33=\"1\",AH32,AJ32),0,\"علامة\",\"علامتان\",\"علامات\")","v":""},null,null,{"$f":"IF(AK35=\"\",\"\",IF((AJ32/AJ34)*100>=80,\"X\",\"\"))","v":""},{"$f":"IF(AK35=\"\",\"\",IF((AJ32/AJ34)*100>=80,\"\",IF((AJ32/AJ34)*100>=70,\"X\",)))","v":""},{"$f":"IF(AK35=\"\",\"\",IF((AJ32/AJ34)*100>=70,\"\",IF((AJ32/AJ34)*100>=60,\"X\",)))","v":""},{"$f":"IF(AJ32=0,\"\",IF(AK35=\"\",\"\",IF(AJ32=\"\",\"\",IF((AJ32/AJ34)*100<60,\"X\",\"\"))))","v":""},null,null,null,null,null,null,null,null,null,null,null,null,null,null,null,null,null,null,null,null,null,null,null,null,null,null,null,null,null,null,null,null,null,null,null,null,null,null,null,null,"فهم الأمن الشخصي وأهميته","فهم طبيعة نظام الحكم في الاردن","تعرف محافظته و المعالم البارزة فيها","فهم اهداف الادوات الجغرافية وخصائصها مقياس الرسم,الصور الجوية , الخرائط","تعرف التفكير واستراتيجياته","فهم ديمغرافية السكان وعلاقتها بالمكان","استخدام الادوات الجغرافية والتكنولوجية في جمع وتحليل البيانات الجغرافية(خرائط, صور جوية, مقاييس الرسم ,المسافة الجغرافية)","استخدام الادوات الجغرافية والتكنولوجية في جمع وتحليل البيانات الجغرافية(خرائط, صور جوية, الرسوم,نظم المعلومات الجغرافية)","فهم العلاقة بين النظام البشري والنظام الطبيعي","معرفة التاريخ العربي والحديث وقضاياه المعاصرة"]
["3)","يبدأ التدريس في الفصل الدراسي الأول  للعام الدراسي ",null,{"$f":"IF(Value!$F$33=\"2\",Value!$F$26,\"\")","v":"2022/2021"},null,null,null,"يوم",{"$f":"IF(Value!$F$33=\"1\",\"\",DATE(YEAR($K$36),MONTH($K$36),DAY($K$36)))","v":"2019-09-01"},"الموافق",{"$f":"IF(Value!$F$33=\"2\",Value!$F$23,\"\")","v":"2019/9/1"},null,null,"يظهر امتلاكه لبعض المعارف والمهارات المطلوبة بشكل محدد,ويحقيق الحد الادنى المطلوب من النتاجات التعليمية لمعايير المستوى التعليمي المحدد",null,null,null,null,null,"50-59",null,null,null,null,null,null,null,{"$f":"IF(AA36=\"\",\"\",IF((Z32/Z34)*100>=90,\"X\",\"\"))","v":""},{"$f":"IF(AA36=\"\",\"\",IF((Z32/Z34)*100>=90,\"\",IF((Z32/Z34)*100>=70,\"X\",)))","v":""},{"$f":"IF(AA36=\"\",\"\",IF((Z32/Z34)*100>=70,\"\",IF((Z32/Z34)*100>=55,\"X\",)))","v":""},{"$f":"IF(Z32=0,\"\",IF(AA36=\"\",\"\",IF(Z32=\"\",\"\",IF((Z32/Z34)*100<55,\"X\",\"\"))))","v":""},null,{"$f":"Table!$AO$6","v":"الثقافة المالية"},null,null,null,null,{"$f":"IF(AK36=\"\",\"\",IF(((AJ36/AJ37)*100)>=95,\"X\",\"\"))","v":""},{"$f":"IF(AK36=\"\",\"\",IF((AJ36/AJ37)*100>=95,\"\",IF((AJ36/AJ37)*100>=80,\"X\",)))","v":""},{"$f":"IF(AK36=\"\",\"\",IF((AJ36/AJ37)*100>=80,\"\",IF((AJ36/AJ37)*100>=65,\"X\",)))","v":""},{"$f":"IF(AJ36=0,\"\",IF(AK36=\"\",\"\",IF(AJ36=\"\",\"\",IF((AJ36/AJ37)*100<65,\"X\",\"\"))))","v":""},null,null,null,null,null,null,null,null,null,null,null,null,null,null,null,null,null,null,null,null,null,null,null,null,null,null,null,null,null,null,null,null,null,null,null,null,null,null,null,null,"فهم التنظيم الاداري في بلدته","فهم الامن الوطني واهميته","فهم ظروف قيام الدولة الاسلامية في المدينة المنورة","فهم موطنه الاردن وعلاقته بالدول المجاورة ","استخدام الادوات الجغرافية في تحديد مواقع الظواهر الجغرافية(الكرة الارضية,الخرائط,الرموز,الصور الجوية)","فهم التاريخ العربي والاسلامي والغزو الخارجي لدار الاسلام","فهم الاخطار الطبيعية والبشرية التي تهدد البيئة","فهم الدور الاجتماعي والتربوي والاقتصادي للأسرة","استخدام الادوات الجغرافية في تحليل الاحداث العالمية والظواهر الجغرافية واقتراح الحلول لها باستخدام نظم المعلومات الجغرافية. الخرائط.","فهم اهمية المواطنة الفاعلة في المجتمع والدولة"]
[null,null,null,null,null,null,null,null,null,null,null,null,null,"لم يظهر امتلاكه للحد الادنى المطلوب من المعارف والمهارات المطلوبة,ويتطلب خطة علاجية لإعادة توجيه تعلمه في المسار الصحيح",null,null,null,null,null,"49 فما دون",null,null,null,null,null,null,null,{"$f":"IF(AA37=\"\",\"\",IF((Z32/Z34)*100>=95,\"X\",\"\"))","v":""},{"$f":"IF(AA37=\"\",\"\",IF((Z32/Z34)*100>=95,\"\",IF((Z32/Z34)*100>=75,\"X\",)))","v":""},{"$f":"IF(AA37=\"\",\"\",IF((Z32/Z34)*100>=75,\"\",IF((Z32/Z34)*100>=65,\"X\",)))","v":""},{"$f":"IF(Z32=0,\"\",IF(AA37=\"\",\"\",IF(Z32=\"\",\"\",IF((Z32/Z34)*100<65,\"X\",\"\"))))","v":""},null,null,{"$f":"Table!$AO$10","v":100},{"$f":"Table!$AP$10","v":100},{"$f":"Table!$AQ$10","v":100},null,{"$f":"IF(AK37=\"\",\"\",IF((AJ36/AJ37)*100>=85,\"X\",\"\"))","v":""},{"$f":"IF(AK37=\"\",\"\",IF((AJ36/AJ37)*100>=85,\"\",IF((AJ36/AJ37)*100>=70,\"X\",)))","v":""},{"$f":"IF(AK37=\"\",\"\",IF((AJ36/AJ37)*100>=70,\"\",IF((AJ36/AJ37)*100>=55,\"X\",)))","v":""},{"$f":"IF(AJ36=0,\"\",IF(AK37=\"\",\"\",IF(AJ36=\"\",\"\",IF((AJ36/AJ37)*100<55,\"X\",\"\"))))","v":""},null,null,null,null,null,null,null,null,null,null,null,null,null,null,null,null,null,null,null,null,null,null,null,null,null,null,null,null,null,null,null,null,null,null,null,null,null,null,null,null,null,"فهم المرافق العامة في محافظته وحسن استخدامها","فهم المرافق العامة في محافظته وحسن استخدامها","فهم دور المؤسسات الحكومية في المجتمع","فهم العلاقات المتبادلة بين البيئة والنشاطات البشرية",null,"فهم العلاقة بين السكان والموقع","فهم مشكلات الموقع والتعرف على طرق حلها","توظيف الاستقصاء في حل المشكلات","استيعاب اهمية الديمقراطية والحقوق والواجبات الدستورية"]
[null,null,null,null,null,null,null,null,null,null,null,null,null,null,null,null,null,null,null,null,null,null,null,null,null,null,null,{"$f":"IF(AA38=\"\",\"\",IF((Z32/Z34)*100>=90,\"X\",\"\"))","v":""},{"$f":"IF(AA38=\"\",\"\",IF((Z32/Z34)*100>=90,\"\",IF((Z32/Z34)*100>=75,\"X\",)))","v":""},{"$f":"IF(AA38=\"\",\"\",IF((Z32/Z34)*100>=75,\"\",IF((Z32/Z34)*100>=60,\"X\",)))","v":""},{"$f":"IF(Z32=0,\"\",IF(AA38=\"\",\"\",IF(Z32=\"\",\"\",IF((Z32/Z34)*100<60,\"X\",\"\"))))","v":""},null,null,"المعدل بالحروف",{"$f":"SpellNumberA(IF(Value!$F$33=\"1\",AH36,AJ36),0,\"علامة\",\"علامتان\",\"علامات\")","v":""},null,null,{"$f":"IF(AK38=\"\",\"\",IF((AJ36/AJ37)*100>=90,\"X\",\"\"))","v":""},{"$f":"IF(AK38=\"\",\"\",IF((AJ36/AJ37)*100>=90,\"\",IF((AJ36/AJ37)*100>=75,\"X\",)))","v":""},{"$f":"IF(AK38=\"\",\"\",IF((AJ36/AJ37)*100>=75,\"\",IF((AJ36/AJ37)*100>=60,\"X\",)))","v":""},{"$f":"IF(AJ36=0,\"\",IF(AK38=\"\",\"\",IF(AJ36=\"\",\"\",IF((AJ36/AJ37)*100<60,\"X\",\"\"))))","v":""},null,null,null,null,null,null,null,null,null,null,null,null,null,null,null,null,null,null,null,null,null,null,null,null,null,null,null,null,null,null,null,null,null,null,null,null,null,null,null,null,null,null,null,"فهم اهمية الحرية وتطبيق مبادئها في حياة المجتمعات",null,null,null,"فهم دور القيادة الهاشمية في الحرص على السلام العالمي",null,"تحديد دور الاحزاب,والجيش في تحقيق الامن الوطني والسلام العالمي"]
[null,null,null,null,null,null,null,null,null,null,null,null,null,null,null,null,null,null,null,null,null,null,null,null,null,null,null,null,null,null,null,null,null,null,null,null,null,null,null,null,null,null,null,null,null,null,null,null,null,null,null,null,null,null,null,null,null,null,null,null,null,null,null,null,null,null,null,null,null,null,null,null,null,null,null,null,null,null,null,null,null,"تصنيف الأشياء وفق كونها (حية أو غير حية) والمواد وفق ذائبيتها في الماء الحيوانات وفق (حجمها,شكلها,غطاءالرأس) والنباتات وفق كونها (تؤكل أو لا تؤكل) ","تصنيف المواد حسب حالاتها(صلبة,سائلة,غازية)والاجسام حسب نافذيتها للضوء(شفافة وغير شفافة, ...)","تصنيف المواد وفق خصائصها الفيزيائية (لونها,ملمسها,حجمها) والحيوانات وفق تركيبها الداخلي (فقارية ولا فقارية) والنباتات وفق نوع البذور (فلقة,فلقتين)","تصنيف المخاليط والصخور حسب انواعها,والمواد حسب توصيلها للكهرباء,والعدسات حسب شكلها,والكائنات حسب حصولها على الغداء (منتجات,مستهلكات,...)","تمييز اشكال الطاقة ومصادرها وتحولاتها ( كهربائية الى حركية ... ) ومصادر الطاقة المتجددة وغير المتجددة","وصف عمليات حيوية في النباتات ( بناء ضوئي, ... ) ومراحل دورة حياة الخلية ( الانقسام,... )","وصف اثر الحرارة على حالة المادة وكيفية انتقالها","كتابة معادلات كيميائية بالرموز لتفاعلات بعض العناصر (المغنيسيوم,الصوديوم)مع الاكسجين","توظيف الاستقصاء في التوصل الى العوامل التي ساهمت في تشكيل المظاهر الطبوغرافية لسطح الارض (الاودية,التشكيلات الصحراوية,...)","توظيف الاستقصاء في التوصل الى الية وراثة صفة واحدة عند الانسان,والعوامل المؤثرة في نمو البكتيريا, ودور النبات في الحفاظ على التوازن البيئي"]
[null,null,null,null,null,null,null,null,null,null,null,null,null,null,null,null,null,null,null,null,null,null,null,null,null,null,null,null,null,null,null,null,null,null,null,null,null,null,null,null,null,null,null,null,null,null,null,null,null,null,null,null,null,null,null,null,null,null,null,null,null,null,null,null,null,null,null,null,null,null,null,null,null,null,null,null,null,null,null,null,"علوم","توظيف الاستقصاء في التوصل الى اهمية كل من الهواء والماء والغذاء للإنسان والحركة في الحياة اليومية ومعرفة اجزاء الجسم الرئيسة والحواس ووظائفها","توظيف الاستقصاء في التوصل الى اهمية الصوت وكيفية تشكله وانتقاله عبر الاجسام المختلفة واهمية الضوء ومصادره والظواهر المتعلقة به,واهمية الحرارة ومصادرها وانتقالها في الاجسام","توظيف الاستقصاء في التوصل الى انماط التكيف عند الحيوانات والنباتات (هجرة الطيور,تساقط اوراق النبات, ... ) وحالات المادة وتغيراتها وطرق الشحن الكهربائي","توظيف الاستقصاء عمليا في التوصل الى خصائص العدسات وطرق توليد الكهرباءالساكنة,واستجابة الحيوانات للمنبهات المختلفة,واهمية الضوء للكائنات الحية","استخدام الادوات المناسبة لقياس بعض الخصائص الفيزيائية للأشياء(حجم,كتلة,وزن,...)","استخدام المجهر في ملاحظة اجزاء الخلية الرئيسة ودراسة مراحل الانقسام المتساوي","كتابة معادلات لفظية تمثل تفاعل بعض العناصر مع الاوكسجين","وصف بعض التراكيب الجيولوجية (الصدوع , الطيات) وانواعها ونشأتها","بناء نماذج ل (دورة الصخور الطبيعية,ساعة شمسية,...)","توظيف العلاقات الرياضية في حل مسائل حول(المرايا,العدسات,مقومة الموصل,قانون سنل)"]
[null,null,null,null,null,null,null,null,null,null,null,null,null,null,null,null,null,null,null,null,null,null,null,null,null,null,null,null,null,null,null,null,null,null,null,null,null,null,null,null,null,null,null,null,null,null,null,null,null,null,null,null,null,null,null,null,null,null,null,null,null,null,null,null,null,null,null,null,null,null,null,null,null,null,null,null,null,null,null,null,null,"وصف بعض الظواهر الطبيعية مثل عناصر الطقس اليومية والفصلية (درجة الحرارة , الامطار,الغيوم ,.. ) (وخصائص المغناطيس , قوة الجذب ... )","وصف بعض الظواهر الفلكية الناتجة عن حركة الارض حول نفسها وحول الشمس وبعض العمليات الجيولوجية من زلازل وبراكين وأثرها على الانسان","وصف شكل الارض وبنيتها, ودورة المياه الطبيعية , وتغيرات المادة الكيمائية والفيزيائية (الانصهار, صدأ الحديد, ... )","تصميم نماذج(قرص نيوتن...)","تصنيف بعض المواد الى عناصر ومركبات ومخاليط","تصميم و تركيب دارات كهربائية متنوعة (دارة دفة الحركة, ... )","تصنيف الحيوانات (فقارية ولا فقارية) والنباتات (وعائية ولا وعائية) والمواد (ذائبة وغير ذائبة)","رسم مسارات اشعة ضوئية ساقطة على مرايا وعدسات","كتابة معادلات ايونية موزونة لتفاعلات بسيطة بين الحمض والقاعدة","توظيف الاستقصاء في التوصل للخصائص الفيزيائية والكيميائية لبعض الفلزات وظاهرة شذوذ الماء"]
[null,null,null,null,null,null,null,null,null,null,null,null,null,null,null,null,null,null,null,null,null,null,null,null,null,null,null,null,null,null,null,null,null,null,null,null,null,null,null,null,null,null,null,null,null,null,null,null,null,null,null,null,null,null,null,null,null,null,null,null,null,null,null,null,null,null,null,null,null,null,null,null,null,null,null,null,null,null,null,null,null,null,"تتبع دورات حياة بعض الحيوانات (الدجاجة,البقرة,...)وبعض النباتات الزهرية(الفول,...) والربط بين الكائنات وابائها من حيث الشكل الخارجي(البقرة والعجل,..,نبات الفول الام والنبات الجديد,...)","تركيب دارة كهربائية بسيطة , وتصميم رافعة","رسم مسار الاشعة عند سقوطها على سطح املس, ورسم خطوط المجال المغناطيسي","توظيف العلاقات الرياضية في حل مسائل عددية بسيطة حول (السرعة,المسافة)","تسمية بعض العناصر (الفلزية واللافلزية ) باستخدام الرموز","وصف تركيب الغلاف الجوي وعناصر الطقس","توظيف العلاقات الرياضية في حل مسائل عددية بسيطة على المقاومة المكافئة, وبعد الجسم باستخدام ظاهرتي الصدى والتردد","توظيف العلاقات الرياضية في حل مسائل بسيطة (حركة الجسم بخط مستقيم وبتسارع ثابت,الطاقة الميكانيكية,المخاليط الحرارية,...)","كتابة صيغ اولية وجزئية وبنائية ومعادلات كيميائية موزونة ورموز لويس لبعض الذرات وبنى لويس لبعض الجزيئات ..."]
[null,null,null,null,null,null,null,null,null,null,null,null,null,null,null,null,null,null,null,null,null,null,null,null,null,null,null,null,null,null,null,null,null,null,null,null,null,null,null,null,null,null,null,null,null,null,null,null,null,null,null,null,null,null,null,null,null,null,null,null,null,null,null,null,null,null,null,null,null,null,null,null,null,null,null,null,null,null,null,null,null,null,null,"توظيف الاستقصاء في التوصل الى اثر القوة على الاجسام المتحركة او الساكنة","استخدام ادوات القياس المناسبة لقياس بعض الخصائص الفيزيائية(الكتلة,الحجم,...)","وصف تأثير انشطة الانسان في اتزان النظام البيئي وبعض طرائق المحافظة على المصادر الطبيعية ","وصف مستويات التنظيم الوظيفي في جسم الانسان, وتركيب بعض اجهزة جسم الانسان (الهضمي,التنفسي,البولي, ... )","توظيف الاستقصاء في التوصل عمليا لمفهوم الكثافة, ولقاعدة ارخميدس وقاعدة باسكال ومبدأ برنولي وقياس عناصر الطقس","تصنيف الكائنات الحية وفق وظائفها (منتجات, مستهلكات, محللات )","قراءة الاشكال والرسوم البيانية المتعلقة ب (القوة,السرعة,كمية الحرارة,درجة الحرارة,قوانين الغازات,...)","قراءة الاشكال والرسومات المتعلقة ب ( خرائط الطقس,الجدول الدوري, ...)"]
[null,null,null,null,null,null,null,null,null,null,null,null,null,null,null,null,null,null,null,null,null,null,null,null,null,null,null,null,null,null,null,null,null,null,null,null,null,null,null,null,null,null,null,null,null,null,null,null,null,null,null,null,null,null,null,null,null,null,null,null,null,null,null,null,null,null,null,null,null,null,null,null,null,null,null,null,null,null,null,null,null,null,null,null,"تتبع دورة حياة بعض الكائنات الحية ( النباتات معراة الجذور , .... )"," تصميم نماذج لوصف بعض العمليات الجيولوجية ( بركان , طيات صدع , ... )","وصف سلوك الضوء وتفاعله مع المواد (انعكاس,انكسار,امتصاص) والتطبيقات العملية المتعلقة به","استنتاج مفهومي العدد الذري والعدد الكلي باستخدام الجدول الدوري","قراءة الاشكال والرسوم البيانية والجداول واستخلاص المعلومات منها (السرعة,الزمن,التيار,فرق الجهد,...)","استخدام المجهر في دراسة مكونات الخلية وتحضير شرائح مبللة وانسجة ورسم ما يشاهد","تصميم نماذج (السيزموميتر, نماذج فراغية للهيدوكربونات, مقراب فلكي, محرك كهربائي)"]
[null,null,null,null,null,null,null,null,null,null,null,null,null,null,null,null,null,null,null,null,null,null,null,null,null,null,null,null,null,null,null,null,null,null,null,null,null,null,null,null,null,null,null,null,null,null,null,null,null,null,null,null,null,null,null,null,null,null,null,null,null,null,null,null,null,null,null,null,null,null,null,null,null,null,null,null,null,null,null,null,null,null,null,null,null,null,"توظيف الاستقصاء في الكشف عن وجود الشحنة الكهربائية ونوعها",null,"تركيب دارات كهربائية متنوعة ( توالي و توازي ) واجراء قياسات عليها"]
[null,null,null,null,null,null,null,null,null,null,null,null,null,null,null,null,null,null,null,null,null,null,null,null,null,null,null,null,null,null,null,null,null,null,null,null,null,null,null,null,null,null,null,null,null,null,null,null,null,null,null,null,null,null,null,null,null,null,null,null,null,null,null,null,null,null,null,null,null,null,null,null,null,null,null,null,null,null,null,null,null,null,null,null,null,null,"توظيف الاستقصاء في التنبؤ ببعض الخواص الفيزيائية للفلزات واللافلزات"]
[null,null,null,null,null,null,null,null,null,null,null,null,null,null,null,null,null,null,null,null,null,null,null,null,null,null,null,null,null,null,null,null,null,null,null,null,null,null,null,null,null,null,null,null,null,null,null,null,null,null,null,null,null,null,null,null,null,null,null,null,null,null,null,null,null,null,null,null,null,null,null,null,null,null,null,null,null,null,null,null,null,"تمييز انواع الخطوط","تعرف تصنيف الخطوط وحركتها واتجاهاتها في الطبيعة","استخدام الخطوط في رسم نماذج زخرفية بسيطة","رسم تعبيرات حرة مستوحاة من الطبيعة وتلوينها","التعبير بالرسم عن موضوعات حرة مستوحاة من الطبيعة والخيال وتلوينها","تعرف صفات الالوان الدافئة والباردة والمحايدة ودلالاتها","التعرف الى دور الخط في الكتابة العربية والزخرفة الاسلامية وامكاناته في الفنون التعبيرية","توظيف الانسجام والتباين في تنفيذ اعمال فنية","ادراك القيمة اللونية وعلاقتها بالضوء عن طريق تنفيذ الاعمال الفنية","توظيف عناصر الزخرفة الاسلامية في تنفيذ اعمال فنية مبتكرة"]
[null,null,null,null,null,null,null,null,null,null,null,null,null,null,null,null,null,null,null,null,null,null,null,null,null,null,null,null,null,null,null,null,null,null,null,null,null,null,null,null,null,null,null,null,null,null,null,null,null,null,null,null,null,null,null,null,null,null,null,null,null,null,null,null,null,null,null,null,null,null,null,null,null,null,null,null,null,null,null,null,"فن","تعرف الالوان المحيطة به في البيئة المحلية","ادراك اهمية الالوان والملامس وعلاقتها بالطبيعة","استخدام اللون في التعبير بحرية تامة عن اشكال وموضوعات مختلفة","استخدام الالوان والخطوط لاحداث ملامس مختلفة","التوصل الى تنوع الملامس والمقارنة بينها","توظيف الخط في تحديد معالم الاشكال","التعرف الى الوان الطيف المرئي وتوظيفها في انتاج اعمال فنية","تعرف قواعد المنظور الخطي وتطبيقها عمليا","التعبير بحرية عن موضوعات من التراث العربي والاسلامي ومن القضايا التي تحيط به","توظيف قواعد المنظور اللوني في موضوعاته الفنية"]
[null,null,null,null,null,null,null,null,null,null,null,null,null,null,null,null,null,null,null,null,null,null,null,null,null,null,null,null,null,null,null,null,null,null,null,null,null,null,null,null,null,null,null,null,null,null,null,null,null,null,null,null,null,null,null,null,null,null,null,null,null,null,null,null,null,null,null,null,null,null,null,null,null,null,null,null,null,null,null,null,null,"التعبير عن الاشكال الواقعية والخيالية بما يتناسب وقدراته الخاصة","رسم تكوينات وتلوينها بما يتناسب وقدراته الجسمية والعقلية","ادراك معنى اللون الحقيقي وعلاقته بالبيئة الخارجية","تدريج اللون من الغامق الى الفاتح","تعرف عناصر الزخارف(نباتية,هندسية,كائنات حية,كتابية)","استخدام خامات متنوعة للحصول على ملامس حقيقية مختلفة","الموازنة بين الاشكال والمساحات في العمل الفني الواحد","البحث والاطلاع على كل ما هو جديد ونافع في الانتاج الفني","تطبيق قواعد المنظور الهندسي عمليا","تعرف بعض خصائص الالوان ( الشفافية والكثافة اللونية ) وتطبيقها عمليا"]
[null,null,null,null,null,null,null,null,null,null,null,null,null,null,null,null,null,null,null,null,null,null,null,null,null,null,null,null,null,null,null,null,null,null,null,null,null,null,null,null,null,null,null,null,null,null,null,null,null,null,null,null,null,null,null,null,null,null,null,null,null,null,null,null,null,null,null,null,null,null,null,null,null,null,null,null,null,null,null,null,null,"ممارسة العاب رياضية وعادات صحية تحقق له جسما سليما","ممارسة  عادات صحية وحركات سليمة تحقق له جسم سليم","تعرف الطرق الصحية لحمل الاشياء ورفعها للمحافظة على سلامة العمود الفقري","ادراك معنى الروح الرياضية والتحلي بالاخلاق الرياضية في حالات الفوز والخسارة","اداء تمرينات بدنية حرة والعاب صغيرة ومحلية بأدوات وبدون أدوات","اداء تمرينات بدنية حرة والعاب صغيرة ومحلية تنمي صفات التحمل والقوة والسرعة ","اداء تمرينات لتطوير صفات المرونة والقوة والتحمل والتوازن والسرعة والرشاقة بأدوات وبدون أدوات","تنمية القدرات البدنية والمهارية من خلال اداء حركات ارضية وعلى الاجهزة","تحقيق المستوى المطلوب في عناصر اللياقة البدنية (القوة,السرعة,التحمل,المرونة)","معرفة اعراض بعض الاصابات وخطوات اسعافها"]
[null,null,null,null,null,null,null,null,null,null,null,null,null,null,null,null,null,null,null,null,null,null,null,null,null,null,null,null,null,null,null,null,null,null,null,null,null,null,null,null,null,null,null,null,null,null,null,null,null,null,null,null,null,null,null,null,null,null,null,null,null,null,null,null,null,null,null,null,null,null,null,null,null,null,null,null,null,null,null,null,null,"ممارسة أدوار تمثيلية وتمرينات على شكل العاب بأدوات وبدون ادوات","اداء حركات انتقالية وغير انتقالية بأدوات وبدون ادوات","ممارسة تمرينات والعاب بأدوات وبدون أدوات لتنمية عناصر اللياقة البدنية","ممارة تمرينات بدنية وألعاب صغيرة لتنمية عناصر اللياقة البدنية المختلفة","اداء حركات الدحرجة الامامية والخلفية والميزان في رياضة الجمباز","اداء حركات الدحرجة  والميزان والقفز من فوق المهر","اداء مهارات الوقوف على اليدين والقفز فتحا من فوق المهر في رياضة الجمباز","تحقيق مستوى مناسب من الاداء المهاري في مسابقات الميدان والمضمار المقررة","تنمية القدرات البدنية والمهارية من خلال اداء حركات ارضية وعلى الاجهزة","اداء تمرينات بدنية وجمل حركية بأدوات وبدون أدوات تنمي عناصر اللياقة البدنية"]
[null,null,null,null,null,null,null,null,null,null,null,null,null,null,null,null,null,null,null,null,null,null,null,null,null,null,null,null,null,null,null,null,null,null,null,null,null,null,null,null,null,null,null,null,null,null,null,null,null,null,null,null,null,null,null,null,null,null,null,null,null,null,null,null,null,null,null,null,null,null,null,null,null,null,null,null,null,null,null,null,"رياضه","ممارسة الحركات الانتقالية وغير الانتقالية أثناء ممارسة الألعاب الصفيرة","ممارسة مجموعة الالعاب الصغيرة والمحلية لخدمة بعض المهارات الاساسية في المباحث الرياضية","ممارسة بعض الحركات باستخدام الادوات والأجهزة الخاصة بجمباز الالعاب والمواقع","اكتساب عناصر اللياقة البدنية من خلال اداء حركات ارضية متسلسلة","اداء المهارات الاساسية لألعاب القوى في مسابقات المضمار والميدان","تطبيق الخطوات الاساسية لمسابقات العاب القوى المقررة","اداء مهارات العدو لمسافات قصيرة, ومهارات الوثب والرمي في رياضة العاب القوى","اداء الارسال القصير بظهر المضرب وضربات التخليص الامامية والخلفية في لعبة ريشة الطائرة","اداء مسابقات المسافات المتوسطة والوثب الطويل والعالي والتتابع ورمي الرمح في لعبة العاب القوى","تنمية القدرات البدنية والمهارية من خلال اداء حركات ارضية وعلى الاجهزة"]
[null,null,null,null,null,null,null,null,null,null,null,null,null,null,null,null,null,null,null,null,null,null,null,null,null,null,null,null,null,null,null,null,null,null,null,null,null,null,null,null,null,null,null,null,null,null,null,null,null,null,null,null,null,null,null,null,null,null,null,null,null,null,null,null,null,null,null,null,null,null,null,null,null,null,null,null,null,null,null,null,null,"اداء حركات الوثب والدحرجة والزحف على الفرشات","تطبيق بعض حركات الجمباز باستخدام الادوات والاجهزة","تحقيق مستوى مناسب لعنصري الرشاقة والمرونة","ممارسة بعض مهارات الوثب والعدو والرمي","ممارسة مهارات الاستعداد والارسال الامامي وضرب الريشة بوجهي المضرب","تطبيق الضربات المدفوعة الامامية والخلفية والتحرك بشكل صحيح لضرب الريشة واستقبالها","ممارسة ضربات الصد والدفع الامامية والخلفية والارسال بوجه المضرب في لعبة الريشة الطائرة","اداء مهارات الامتصاص والتمويه والخداع والتصويب بالكرة في لعبة كرة القدم","اداء الارسال الفردي المرتفع والضربات المسقطة الامامية في لعبة ريشة الطائرة","ممارسة مسابقات العاب القوى وفق الشروط الفنية والقانونية للمسابقات"]
[null,null,null,null,null,null,null,null,null,null,null,null,null,null,null,null,null,null,null,null,null,null,null,null,null,null,null,null,null,null,null,null,null,null,null,null,null,null,null,null,null,null,null,null,null,null,null,null,null,null,null,null,null,null,null,null,null,null,null,null,null,null,null,null,null,null,null,null,null,null,null,null,null,null,null,null,null,null,null,null,null,null,null,null,"مسك مضرب الريشة الطائرة بشكل صحيح وتداول الريشة في الهواء من اوضاع مختلفة","ممارسة مهارات الركل والسيطرة والتصويب بالكرة في لعبة كرة القدم","أداء مهارة استقبال الكرة والجري بها والتصويب بالرأس في لعبة كرة القدم","تطبيق مهارات المراوغة والتمويه,وضرب الكرة بالرأس,والجري بالكرة وتصويبها في مواقف لعب مختلفة في لعبة كرة القدم","اداء مهارات المحاورة بالكرة والتمريرة المرتدة في لعبة كرة اليد","ممارسة مهارات المراوغة والخداع والتمويه والربط بين مهارات المراوغة والتصويب في لعبة كرة القدم","الالمام بالنواحي الفنية للضربات الساحقة والمقوسة والارسال في لعبة الريشة الطائرة"]
[null,null,null,null,null,null,null,null,null,null,null,null,null,null,null,null,null,null,null,null,null,null,null,null,null,null,null,null,null,null,null,null,null,null,null,null,null,null,null,null,null,null,null,null,null,null,null,null,null,null,null,null,null,null,null,null,null,null,null,null,null,null,null,null,null,null,null,null,null,null,null,null,null,null,null,null,null,null,null,null,null,null,null,null,"أداء مهارات الاحساس وركل الكرة بالقدم والسيطرة عليها في لعبة كرة القدم","تطبيق مهارات التمرير والاستلام والتنطيط بشكل سليم وفق قواعد اللعبة في كرة اليد","تنفيذ مهارات استلام الكرة وتنطيطها باتجاهات مختلفة في لعبة كرة اليد","ممارسة مهارات التمرير والاستلام والتصويب والتنطيط والربط بينهما في لعبة كرة اليد","تطبيق مهارات التصويب والتمرير والخداع في لعبة كرة السلة","ممارسة المهارات الاساسية وتوظيفها في مواقف لعب حقيقية في لعبة كرة اليد","أداء مهارات المهاجمة وحارس المرمى في مواقف لعب مختلفة في لعبة كرة القدم"]
[null,null,null,null,null,null,null,null,null,null,null,null,null,null,null,null,null,null,null,null,null,null,null,null,null,null,null,null,null,null,null,null,null,null,null,null,null,null,null,null,null,null,null,null,null,null,null,null,null,null,null,null,null,null,null,null,null,null,null,null,null,null,null,null,null,null,null,null,null,null,null,null,null,null,null,null,null,null,null,null,null,null,null,null,"تطبيق مهارات مسك الكرة وتنطيطها واستلامها وتمريرها في لعبتي كرة اليد والسلة","تطبيق مهارات مسك الكرة وتنطيطها واستلامها والتمرير وحركات القدمين في لعبة كرة السلة","تطبيق مهارات التنطيط والتمرير والاستلام وحركات القدمين في لعبة كرة السلة","تطبيق مهارات التصويب والتمرير وحركات القدمين والربط بينهما في لعبة كرة السلة","اداء مهارات الدفاع عن الملعب والارسال ضمن الفريق في لعبة كرة الطائرة","أداء مهارات التمرير والارسال والضربة الساحقة زحائط الصد في لعبة كرة الطائرة","أداء مهارات التصويب بالسقوط الامامي والتصويبة الحرة المباشرة في لعبة كرة اليد"]
[null,null,null,null,null,null,null,null,null,null,null,null,null,null,null,null,null,null,null,null,null,null,null,null,null,null,null,null,null,null,null,null,null,null,null,null,null,null,null,null,null,null,null,null,null,null,null,null,null,null,null,null,null,null,null,null,null,null,null,null,null,null,null,null,null,null,null,null,null,null,null,null,null,null,null,null,null,null,null,null,null,null,null,null,"اداء مهارات الاحساس والارسال والمرير ووقفة الاستعداد في لعبة كرة الطائرة","تطبيق مهارات الاستقبال والتمرير والارسال وفق قانون اللعبة في لعبة كرة الطائرة","أداء مهارات التمرير والارسال في لعبة كرة الطائرة","أداء مهارات الاستقبال والارسال والربط بينهما في لعبة كرة الطائرة",null,"تطبيق مهارات الاستلام والتمرير والخداع في مواقف لعب مختلفة في لعبة كرة السلة","تطبيق مهارات التمرير والمتابعة والتصويب من خلال منافسات في لعبة كرة السلة"]
[null,null,null,null,null,null,null,null,null,null,null,null,null,null,null,null,null,null,null,null,null,null,null,null,null,null,null,null,null,null,null,null,null,null,null,null,null,null,null,null,null,null,null,null,null,null,null,null,null,null,null,null,null,null,null,null,null,null,null,null,null,null,null,null,null,null,null,null,null,null,null,null,null,null,null,null,null,null,null,null,null,null,null,null,null,null,null,null,null,null,"أداء مهارات الارسال والتمرير وحائط الصد ضمن طرق اللعب في لعبة كرة الطائرة"]
[null,null,null,null,null,null,null,null,null,null,null,null,null,null,null,null,null,null,null,null,null,null,null,null,null,null,null,null,null,null,null,null,null,null,null,null,null,null,null,null,null,null,null,null,null,null,null,null,null,null,null,null,null,null,null,null,null,null,null,null,null,null,null,null,null,null,null,null,null,null,null,null,null,null,null,null,null,null,null,null,null,"استخدام الاصوات بالحركات الجسدية المناسبة","مراعات مهارات الانشاد و ترديد النشيد بصوت منغم ","مراعاة مهارات الانشاد و ترديد النشيد بصوت منغم","اتقان القراءة الموسيقية","اتقان القراءة الموسيقية","اتقان القراءة الموسيقية","اتقان القراءة الموسيقية","اتقان القراءة الموسيقية","اتقان القراءة الموسيقية","اتقان القراءة الموسيقية"]
[null,null,null,null,null,null,null,null,null,null,null,null,null,null,null,null,null,null,null,null,null,null,null,null,null,null,null,null,null,null,null,null,null,null,null,null,null,null,null,null,null,null,null,null,null,null,null,null,null,null,null,null,null,null,null,null,null,null,null,null,null,null,null,null,null,null,null,null,null,null,null,null,null,null,null,null,null,null,null,null,"موسيقا","تمييز الاصوات","ربط الاصوات بالحركات الجسدية المناسبة","ربط الاصوات بالحركات الجسدية المناسبة","الانشاد بإتقان","الانشاد بإتقان","الانشاد بإتقان","الانشاد بإتقان","الانشاد بإتقان","الانشاد بإتقان","الانشاد بإتقان"]
[null,null,null,null,null,null,null,null,null,null,null,null,null,null,null,null,null,null,null,null,null,null,null,null,null,null,null,null,null,null,null,null,null,null,null,null,null,null,null,null,null,null,null,null,null,null,null,null,null,null,null,null,null,null,null,null,null,null,null,null,null,null,null,null,null,null,null,null,null,null,null,null,null,null,null,null,null,null,null,null,null,"الانشاد بمصاحبة الايقاع","التوفيق بين أدائه والمجوعة","التوفيق بين أدائه وأداء المجوعة","العزف بإتقان","العزف بإتقان","العزف بإتقان","العزف بإتقان","العزف بإتقان","العزف بإتقان","العزف بإتقان"]
[null,null,null,null,null,null,null,null,null,null,null,null,null,null,null,null,null,null,null,null,null,null,null,null,null,null,null,null,null,null,null,null,null,null,null,null,null,null,null,null,null,null,null,null,null,null,null,null,null,null,null,null,null,null,null,null,null,null,null,null,null,null,null,null,null,null,null,null,null,null,null,null,null,null,null,null,null,null,null,null,null,null,"تعرف النوتات الموسيقية","تعرف النوتات الموسيقية"]
[null,null,null,null,null,null,null,null,null,null,null,null,null,null,null,null,null,null,null,null,null,null,null,null,null,null,null,null,null,null,null,null,null,null,null,null,null,null,null,null,null,null,null,null,null,null,null,null,null,null,null,null,null,null,null,null,null,null,null,null,null,null,null,null,null,null,null,null,null,null,null,null,null,null,null,null,null,null,null,null,null,null,null,null,"تطبيق مبادئ الصحة والسلامة العامة والتوعية المرورية","استخدام الاجهزة والأدوات بشكل مناسب في مجالات مهنية خمسةهي (الزراعة,الصناعة,التجارة,العلوم المنزلية,الصحة العامة)","استخدام الاجهزة والأدوات بشكل مناسب في مجالات مهنية خمسةهي (الزراعة,الصناعة,التجارة,العلوم المنزلية,الصحة العامة)","استخدام الاجهزة والأدوات بشكل مناسب في مجالات مهنية خمسةهي (الزراعة,الصناعة,التجارة,العلوم المنزلية,الصحة العامة)","استخدام الاجهزة والأدوات بشكل مناسب حسب الوحدات التدريبية الواردة في المنهاج وعددها سبعون وحدة تدريبية","استخدام الاجهزة والأدوات بشكل مناسب حسب الوحدات التدريبية الواردة في المنهاج وعددها سبعون وحدة تدريبية","استخدام الاجهزة والأدوات بشكل مناسب حسب الوحدات التدريبية الواردة في المنهاج وعددها سبعون وحدة تدريبية"]
[null,null,null,null,null,null,null,null,null,null,null,null,null,null,null,null,null,null,null,null,null,null,null,null,null,null,null,null,null,null,null,null,null,null,null,null,null,null,null,null,null,null,null,null,null,null,null,null,null,null,null,null,null,null,null,null,null,null,null,null,null,null,null,null,null,null,null,null,null,null,null,null,null,null,null,null,null,null,null,null,"مهني",null,null,null,"اعداد منتجات بسيطة متنوعة والقيام بأنشطة تطبيقية وتجريبية","اعداد منتجات حسب المواصفات المطلوبة","اعداد منتجات حسب المواصفات المطلوبة","اعداد منتجات حسب المواصفات المطلوبة","اعداد منتجات حسب المواصفات المطلوبة","اعداد منتجات حسب المواصفات المطلوبة","اعداد منتجات حسب المواصفات المطلوبة"]
[null,null,null,null,null,null,null,null,null,null,null,null,null,null,null,null,null,null,null,null,null,null,null,null,null,null,null,null,null,null,null,null,null,null,null,null,null,null,null,null,null,null,null,null,null,null,null,null,null,null,null,null,null,null,null,null,null,null,null,null,null,null,null,null,null,null,null,null,null,null,null,null,null,null,null,null,null,null,null,null,null,null,null,null,"تطبيق مهارات حياتية تكون حسا مهنيا لدى الطالب","الالتزام بقواعد الامن والسلامة العامة","الالتزام بقواعد الامن والسلامة العامة","الالتزام بقواعد الامن والسلامة العامة","الالتزام بقواعد الامن والسلامة العامة في كل مجال من المجالات المهنية الخمس(الزراعة والصناعة والادارة المعلوماتية والعلوم المنزلية والصحة والسلامة المهنية)","الالتزام بقواعد الامن والسلامة العامة في كل مجال من المجالات المهنية الخمس(الزراعة والصناعة والادارة المعلوماتية والعلوم المنزلية والصحة والسلامة المهنية)","الالتزام بقواعد الامن والسلامة العامة في كل مجال من المجالات المهنية الخمس(الزراعة والصناعة والادارة المعلوماتية والعلوم المنزلية والصحة والسلامة المهنية)"]
[null,null,null,null,null,null,null,null,null,null,null,null,null,null,null,null,null,null,null,null,null,null,null,null,null,null,null,null,null,null,null,null,null,null,null,null,null,null,null,null,null,null,null,null,null,null,null,null,null,null,null,null,null,null,null,null,null,null,null,null,null,null,null,null,null,null,null,null,null,null,null,null,null,null,null,null,null,null,null,null,null,null,null,null,null,null,null,"التعامل مع الملفات والمجلدات المختلفة","توضيح طبيعة عمل الاجزاء الداخلية للحاسوب","تمييز العوامل الاساسية التي تؤثر في اداء جهاز الحاسوب","وعي دور الذكاء الاصطناعي في المجالات المختلفة"]
[null,null,null,null,null,null,null,null,null,null,null,null,null,null,null,null,null,null,null,null,null,null,null,null,null,null,null,null,null,null,null,null,null,null,null,null,null,null,null,null,null,null,null,null,null,null,null,null,null,null,null,null,null,null,null,null,null,null,null,null,null,null,null,null,null,null,null,null,null,null,null,null,null,null,null,null,null,null,null,null,null,null,null,null,null,null,null,"تحرير وثيقة نص وتنسيقها","اجراء العمليات الحسابية البسيطة على Excle","التعامل مع البيانات","انشاء قاعدة بيانات"]
[null,null,null,null,null,null,null,null,null,null,null,null,null,null,null,null,null,null,null,null,null,null,null,null,null,null,null,null,null,null,null,null,null,null,null,null,null,null,null,null,null,null,null,null,null,null,null,null,null,null,null,null,null,null,null,null,null,null,null,null,null,null,null," ",null,null,null,null,null,null,null,null,null,null,null,null,null,null,null,null,null,null,null,null,null,null,null,"استعراض مواقع الانترنت المختلفة","عرض مواقع الكتروني باستخدام برمجية الناشر","استخدام محركات البحث","تصميم موقع الكتروني"]
[null,null,null,null,null,null,null,null,null,null,null,null,null,null,null,null,null,null,null,null,null,null,null,null,null,null,null,null,null,null,null,null,null,null,null,null,null,null,null,null,null,null,null,null,null,null,null,null,null,null,null,null,null,null,null,null,null,null,null,null,null,null,null,null,null,null,null,null,null,null,null,null,null,null,null,null,null,null,null,null,"حاسوب",null,null,null,null,null,null,null,null,null,"كتابة برامج"]
[]
[null,null,null,null,null,null,null,null,null,null,null,null,null,null,null,null,null,null,null,null,null,null,null,null,null,null,null,null,null,null,null,null,null,null,null,null,null,null,null,null,null,null,null,null,null,null,null,null,null,null,null,null,null,null,null,null,null,null,null,null,null,null,null,null,null,null,null,null,null,null,null,null,null,null,null,null,null,null,null,null,"مالية"]

{"sheet":"Sheet1","index":4,"n_rows":112,"n_cols":57,"rows_kept":112,"cut":false,"hidden":true,"merged":[]}
[]
[]
[]
[]
[null,null,null,null,null,null,null,null,null,null,"جدول العلامات المدرسية  للعام الدراسي   2020-2021    \n   المنطقة التعليمية :    شمال عمان                           المدرسة  :  ذكور البقعة الاعدادية الرابعة                  الصف  :   (  الصف السادس )                 الشعبة :    ( 1 )"]
[]
[]
[null,"تعبأ المعلومات المطلوبة الواردة في هذه الحقول في نهاية العام الدراسي",null,null,null,null,null,null,null,null,null,null,null,"الصفوف التي اعادها الطالب","عدد ايام الغياب  من 200","احترام النظام","التربية المهنية",null,null,"موسيقى واناشيد",null,null,"التربية الرياضية",null,null,"التربية الفنية",null,null,null,null,"العلوم",null,null,"التربية الاجتماعية والوطنية",null,null,"الرياضيات",null,null,"اللغة الإنجليزية",null,null,"اللغة العربية",null,null,"التربية الإسلامية",null,null,"سنة الولادة","شهر الولادة",null,"يوم الولادة","مكان الولادة","الجنسية","اسم الطــالب\n\nمن أربع مقاطع\n\nحسب شهادة الميلاد",null,"الرقم المتسلسل"]
[null,"النتيجة السنوية",null,"المعدل العام المئوي","المجموع العام",null,"النتيجة بعد تأدية اختبارات الاكمال",null,null,null,null,null,null,null,null,null,"النتيجة النهائية","نتيجة الفصل الثاني","نتيجة الفصل الأول","النتيجة النهائية","نتيجة الفصل الثاني","نتيجة الفصل الأول","النتيجة النهائية","نتيجة الفصل الثاني","نتيجة الفصل الأول","النتيجة النهائية",null,"نتيجة الفصل الثاني","نتيجة الفصل الأول",null,"النتيجة النهائية","نتيجة الفصل الثاني","نتيجة الفصل الأول","النتيجة النهائية","نتيجة الفصل الثاني","نتيجة الفصل الأول","النتيجة النهائية","نتيجة الفصل الثاني","نتيجة الفصل الأول","النتيجة النهائية","نتيجة الفصل الثاني","نتيجة الفصل الأول","النتيجة النهائية","نتيجة الفصل الثاني","نتيجة الفصل الأول","النتيجة النهائية","نتيجة الفصل الثاني","نتيجة الفصل الأول"]
[null,null,null,null,null,null,"العلامة","المادة الدراسية","العلامة","المادة الدراسية",null,"العلامة","المادة الدراسية"]
[null,null,null,null,null,null,null,null,null,null,null,null,null,null,null,null,100,100,100,100,100,100,100,100,100,100,null,100,100,null,100,100,100,100,100,100,100,100,100,100,100,100,100,100,100,100,100,100]
[null,"ناجح و يرفع  لـ الصف السابع",null,60.139999389648438,421,null,null,null,null,null,null,null,null,null,0,"ممتاز","91","92","90","-","-","-","87","87","87","89",null,"88","90",null,"56","61","50","72","60","84","50","57","42","52","58","45","50","58","42","50","65","35",2008,5,null,8,"عمان","الأردنية"," ابراهيم انور ابراهيم حميدان",null,1]
[null,"ناجح و يرفع  لـ الصف السابع",null,97.290000915527344,681,null,null,null,null,null,null,null,null,null,0,"ممتاز","96","95","97","-","-","-","96","95","96","97",null,"96","97",null,"96","95","97","95","95","95","98","100","96","98","98","98","99","98","99","99","99","98",2009,5,null,22,"السلط","الأردنية"," احمد باسل فيصل العاصي"]
[null,"ناجح و يرفع  لـ الصف السابع",null,89.709999084472656,628,null,null,null,null,null,null,null,null,null,0,"ممتاز","93","92","93","-","-","-","90","89","90","88",null,"84","92",null,"89","91","86","90","86","94","99","99","99","89","91","86","87","85","89","81","77","85",2009,2,null,19,"عمان","الأردنية"," احمد جمال محمود عثمان",null,2]
[null,"ناجح و يرفع  لـ الصف السابع",null,74.709999084472656,523,null,null,null,null,null,null,null,null,null,0,"ممتاز","90","90","90","-","-","-","88","89","87","88",null,"86","89",null,"81","79","82","84","75","92","66","70","61","68","70","65","59","69","48","75","70","80",2009,6,null,6,"السلط","الأردنية"," احمد حسين عبد الفتاح عكاشه"]
[null,"ناجح و يرفع  لـ الصف السابع",null,75.139999389648438,526,null,null,null,null,null,null,null,null,null,0,"ممتاز","90","92","88","-","-","-","88","88","87","89",null,"88","89",null,"81","80","81","81","76","86","68","72","63","82","83","80","57","65","48","67","83","50",2009,1,null,18,"عمان","الأردنية"," احمد خالد سعيد شعبان ابوشعيب",null,3]
[null,"ناجح و يرفع  لـ الصف السابع",null,65,455,null,null,null,null,null,null,null,null,null,0,"ممتاز","93","95","91","-","-","-","88","87","88","89",null,"89","88",null,"68","83","53","80","76","84","50","50","50","51","54","48","59","59","58","54","55","53",2009,9,null,13,"السلط","الأردنية"," احمد رشيد محمد الطموني"]
[null,"ناجح و يرفع  لـ الصف السابع",null,85.430000305175781,598,null,null,null,null,null,null,null,null,null,0,"ممتاز","94","96","92","-","-","-","88","89","87","91",null,"91","90",null,"84","83","85","88","85","91","73","70","76","93","94","92","78","83","73","88","83","92",2009,9,null,9,"السلط","الأردنية"," احمد عبد العزيز محمد عويضه",null,4]
[null,"ناجح و يرفع  لـ الصف السابع",null,63.290000915527344,443,null,null,null,null,null,null,null,null,null,0,"ممتاز","93","96","89","-","-","-","88","87","88","88",null,"88","87",null,"59","67","50","77","68","85","55","67","42","52","58","45","54","64","43","53","70","35",2009,12,null,5,"السلط","الأردنية"," احمد علاء مصطفى غرايبه"]
[null,"ناجح و يرفع  لـ الصف السابع",null,83.430000305175781,584,null,null,null,null,null,null,null,null,null,0,"ممتاز","92","91","92","-","-","-","88","88","87","89",null,"86","91",null,"83","80","85","87","79","95","82","81","82","88","89","86","84","83","84","68","63","73",2009,10,null,16,"السلط","الأردنية"," احمد فوزي محمود حميدان",null,5]
[null,"ناجح و يرفع  لـ الصف السابع",null,96.290000915527344,674,null,null,null,null,null,null,null,null,null,0,"ممتاز","98","98","97","-","-","-","94","94","93","96",null,"94","97",null,"94","93","94","94","93","94","96","97","94","96","97","95","98","98","98","98","99","96",2009,6,null,28,"السلط","الأردنية"," احمد محمد احمد الخوره"]
[null,"ناجح و يرفع  لـ الصف السابع",null,85.290000915527344,597,null,null,null,null,null,null,null,null,null,0,"ممتاز","97","97","96","-","-","-","88","88","88","91",null,"86","96",null,"84","87","80","89","88","90","85","95","74","81","83","79","81","88","74","80","89","71",2009,3,null,28,"السلط","الأردنية"," المعتز بالله ابراهيم سليمان ابو رياش",null,6]
[null,"ناجح و يرفع  لـ الصف السابع",null,96,672,null,null,null,null,null,null,null,null,null,0,"ممتاز","95","92","97","-","-","-","94","94","93","92",null,"87","97",null,"92","94","90","97","98","95","98","99","97","98","98","97","94","96","92","98","99","96",2009,8,null,29,"عمان","الأردنية"," امير محمد عبد الكريم رضوان"]
[null,"ناجح و يرفع  لـ الصف السابع",null,79.290000915527344,555,null,null,null,null,null,null,null,null,null,0,"ممتاز","92","90","93","-","-","-","86","85","86","92",null,"90","93",null,"85","87","83","79","77","80","69","88","50","72","74","70","76","76","75","82","84","80",2009,9,null,12,"السلط","الأردنية"," بهاء الدين محمد خليل رمضان",null,7]
[null,"ناجح و يرفع  لـ الصف السابع",null,76.430000305175781,535,null,null,null,null,null,null,null,null,null,0,"ممتاز","91","90","92","-","-","-","89","89","88","90",null,"88","92",null,"71","68","73","83","78","87","58","62","53","79","80","77","72","81","63","81","79","82",2009,1,null,17,"السلط","الأردنية"," حسين زياد حسين احمد"]
[null,"ناجح و يرفع  لـ الصف السابع",null,92.709999084472656,649,null,null,null,null,null,null,null,null,null,0,"ممتاز","93","90","96","-","-","-","95","95","95","93",null,"94","91",null,"97","97","96","91","93","88","94","92","96","98","98","98","88","96","80","88","95","81",2009,9,null,30,"السلط","الأردنية"," حمزه عزات حسين يامين",null,8]
[null,"ناجح و يرفع  لـ الصف السابع",null,90.709999084472656,635,null,null,null,null,null,null,null,null,null,0,"ممتاز","94","91","96","-","-","-","90","91","89","93",null,"92","94",null,"89","88","89","89","87","90","92","98","86","96","96","95","87","89","84","88","89","86",2009,12,null,21,"سحاب","الأردنية"," خالد توفيق خليل ياسوري"]
[null,"ناجح و يرفع  لـ الصف السابع",null,86,602,null,null,null,null,null,null,null,null,null,0,"ممتاز","92","92","92","-","-","-","88","87","88","88",null,"87","88",null,"86","94","78","93","93","92","79","83","75","86","88","84","76","84","68","90","98","81",2009,2,null,6,"عمان","الأردنية"," خليل احمد موسى الرحايله",null,9]
[null,"ناجح و يرفع  لـ الصف السابع",null,89,623,null,null,null,null,null,null,null,null,null,0,"ممتاز","94","95","92","-","-","-","92","91","92","91",null,"91","91",null,"93","94","92","94","92","95","84","91","77","81","83","79","85","92","77","92","97","86",2009,8,null,23,"عمان","الأردنية"," راشد وائل عواد عامر"]
[null,"ناجح و يرفع  لـ الصف السابع",null,60,420,null,null,null,null,null,null,null,null,null,0,"ممتاز","90","92","88","-","-","-","88","88","88","88",null,"88","87",null,"57","63","50","72","62","82","50","58","42","51","57","45","50","57","43","50","65","35",2009,3,null,29,"عمان","الأردنية"," ريان داود حسين العواجنه",null,10]
[null,"ناجح و يرفع  لـ الصف السابع",null,81.569999694824219,571,null,null,null,null,null,null,null,null,null,0,"ممتاز","92","91","92","-","-","-","88","87","88","89",null,"87","91",null,"84","85","83","90","87","93","69","55","83","86","88","84","76","86","65","74","85","62",2009,9,null,19,"فلسطين","الأردنية"," زيد محمود احمد علي"]
[null,"ناجح و يرفع  لـ الصف السابع",null,84,588,null,null,null,null,null,null,null,null,null,0,"ممتاز","94","96","92","-","-","-","87","87","86","92",null,"90","93",null,"88","87","88","87","89","84","75","86","64","81","82","79","79","78","79","84","87","81",2009,6,null,17,"عمان","الأردنية"," سيف الدين سفيان سمير الدكروك",null,11]
[null,"ناجح و يرفع  لـ الصف السابع",null,86.290000915527344,604,null,null,null,null,null,null,null,null,null,0,"ممتاز","92","91","92","-","-","-","88","89","87","91",null,"88","93",null,"92","97","86","94","94","93","80","98","62","81","83","79","83","88","78","82","95","69",2009,8,null,1,"عمان","الأردنية"," صالح رأفت صالح منتصر"]
[null,"ناجح و يرفع  لـ الصف السابع",null,84,588,null,null,null,null,null,null,null,null,null,0,"ممتاز","93","92","93","-","-","-","93","94","91","94",null,"94","93",null,"86","81","90","94","91","97","82","80","84","91","92","89","73","71","75","69","64","73",2009,12,null,2,"عمان","الأردنية"," عاصم عماد عبد الرحمن غانم",null,12]
[null,"ناجح و يرفع  لـ الصف السابع",null,82.709999084472656,579,null,null,null,null,null,null,null,null,null,0,"ممتاز","92","91","92","-","-","-","88","88","87","90",null,"88","91",null,"87","90","84","90","89","91","71","73","69","82","84","80","73","73","73","84","75","92",2009,8,null,6,"عمان","الأردنية"," عبد الكريم اكرم محمود الناطور"]
[null,"ناجح و يرفع  لـ الصف السابع",null,64.290000915527344,450,null,null,null,null,null,null,null,null,null,0,"ممتاز","90","91","88","-","-","-","88","88","87","88",null,"88","88",null,"56","62","50","72","61","83","52","49","55","56","57","55","61","63","58","63","65","60",2009,2,null,16,"السلط","الأردنية"," عبد الله الشيخ علي احمد الحويطات",null,13]
[null,"ناجح و يرفع  لـ الصف السابع",null,82.709999084472656,579,null,null,null,null,null,null,null,null,null,0,"ممتاز","92","92","92","-","-","-","87","84","90","91",null,"90","92",null,"85","89","80","92","93","90","71","80","61","84","81","87","79","76","82","76","75","76",2009,7,null,14,"عمان","الأردنية"," عبدالله ابراهيم محمد الضويمر"]
[null,"ناجح و يرفع  لـ الصف السابع",null,83.290000915527344,583,null,null,null,null,null,null,null,null,null,0,"ممتاز","93","90","96","-","-","-","88","88","88","90",null,"88","92",null,"85","84","85","86","85","87","78","81","74","85","87","83","75","67","83","81","76","86",2009,6,null,22,"عمان","الأردنية"," عدي عاطف عوض الله حناوي",null,14]
[null,"ناجح و يرفع  لـ الصف السابع",null,75,525,null,null,null,null,null,null,null,null,null,0,"ممتاز","93","92","93","-","-","-","86","87","85","90",null,"88","92",null,"72","72","71","89","90","88","78","73","82","68","70","66","65","63","67","60","60","59",2009,3,null,19,"عمان","الأردنية"," عز الدين خالد مصطفى عبد القادر"]
[null,"ناجح و يرفع  لـ الصف السابع",null,81.139999389648438,568,null,null,null,null,null,null,null,null,null,0,"ممتاز","93","91","94","-","-","-","90","89","90","92",null,"91","93",null,"78","80","76","86","80","92","78","84","71","88","89","86","71","70","71","74","70","78",2009,5,null,26,"السلط","الأردنية"," عمار ابراهيم احمد سريوه",null,15]
[null,"ناجح و يرفع  لـ الصف السابع",null,78.709999084472656,551,null,null,null,null,null,null,null,null,null,0,"ممتاز","92","92","92","-","-","-","87","88","86","90",null,"88","91",null,"71","80","61","86","81","91","62","73","50","89","91","87","73","77","69","78","82","74",2009,3,null,1,"السلط","الأردنية"," عمار عبد الرحمن شحاده طعمه"]
[null,"ناجح و يرفع  لـ الصف السابع",null,94.290000915527344,660,null,null,null,null,null,null,null,null,null,0,"ممتاز","95","96","93","-","-","-","88","89","87","89",null,"87","91",null,"93","96","89","93","92","93","97","100","93","95","95","94","94","94","94","93","95","91",2009,10,null,25,"عمان","الأردنية"," عمار عماد ابراهيم بنات",null,16]
[null,"ناجح و يرفع  لـ الصف السابع",null,59.860000610351563,419,null,null,null,null,null,null,null,null,null,0,"ممتاز","91","90","91","-","-","-","89","89","89","89",null,"89","88",null,"55","59","50","72","60","83","50","57","42","51","57","44","50","57","43","50","65","35",2008,10,null,20,"السلط","الأردنية"," عمر محمد عصري دعوش"]
[null,"ناجح و يرفع  لـ الصف السابع",null,71.860000610351563,503,null,null,null,null,null,null,null,null,null,0,"ممتاز","94","96","91","-","-","-","87","87","86","89",null,"89","88",null,"75","81","68","83","79","86","63","66","59","70","74","66","62","77","47","56","77","35",2009,4,null,26,"السلط","الأردنية"," عمر محمود يعقوب يعقوب",null,17]
[null,"ناجح و يرفع  لـ الصف السابع",null,95.709999084472656,670,null,null,null,null,null,null,null,null,null,0,"ممتاز","97","96","97","-","-","-","93","94","91","96",null,"95","96",null,"93","92","93","97","96","98","98","98","98","97","97","96","90","85","94","98","99","97",2009,7,null,12,"عمان","الأردنية"," ماجد طارق ماجد جبر"]
[null,"ناجح و يرفع  لـ الصف السابع",null,93.139999389648438,652,null,null,null,null,null,null,null,null,null,0,"ممتاز","94","91","97","-","-","-","91","90","91","93",null,"89","97",null,"94","92","96","94","95","93","94","99","88","87","88","85","95","95","94","94","96","91",2009,5,null,28,"عمان","الأردنية"," مالك ايهاب شفيق ابو زينه",null,18]
[null,"ناجح و يرفع  لـ الصف السابع",null,96.139999389648438,673,null,null,null,null,null,null,null,null,null,0,"ممتاز","97","97","97","-","-","-","94","93","94","93",null,"90","96",null,"93","90","96","95","96","93","99","100","98","94","95","93","96","97","94","99","99","98",2009,9,null,11,"السلط","الأردنية"," مالك حسام صبحي عبده"]
[null,"ناجح و يرفع  لـ الصف السابع",null,91.139999389648437,638,null,null,null,null,null,null,null,null,null,0,"ممتاز","95","93","97","-","-","-","90","89","90","92",null,"89","95",null,"95","98","92","93","97","89","86","96","75","88","89","86","87","91","83","94","97","90",2009,4,null,14,"السلط","الأردنية"," محمد احمد سليمان العمايرة",null,19]
[null,"ناجح و يرفع  لـ الصف السابع",null,91.709999084472656,642,null,null,null,null,null,null,null,null,null,0,"ممتاز","94","90","97","-","-","-","88","87","88","92",null,"89","95",null,"94","94","93","95","96","94","89","93","84","90","91","88","89","91","86","91","97","84",2009,5,null,6,"عمان","الأردنية"," محمد احمد محمد عطا الله"]
[null,"ناجح و يرفع  لـ الصف السابع",null,64,448,null,null,null,null,null,null,null,null,null,0,"ممتاز","93","91","95","-","-","-","88","87","89","91",null,"89","92",null,"63","61","65","81","79","83","54","49","59","50","57","43","57","68","45","50","50","50",2009,8,null,23,"عمان","الأردنية"," محمد سائد صقر صالحيه",null,20]
[null,"ناجح و يرفع  لـ الصف السابع",null,60.290000915527344,422,null,null,null,null,null,null,null,null,null,0,"ممتاز","92","91","92","-","-","-","89","90","87","88",null,"87","88",null,"57","63","50","73","63","82","50","57","42","50","57","43","50","59","41","50","65","35",2009,6,null,11,"عمان","الفلسطينية"," محمد علي عيسى الحارثي"]
[null,"ناجح و يرفع  لـ الصف السابع",null,80.139999389648438,561,null,null,null,null,null,null,null,null,null,0,"ممتاز","95","97","92","-","-","-","91","90","91","90",null,"91","89",null,"89","85","92","89","87","91","64","66","61","86","88","84","76","96","55","62","50","74",2009,5,null,27,"عمان","الأردنية"," محمد مالك سعيد شبراوي",null,21]
[null,"ناجح و يرفع  لـ الصف السابع",null,80.430000305175781,563,null,null,null,null,null,null,null,null,null,0,"ممتاز","93","92","94","-","-","-","93","92","93","91",null,"91","90",null,"85","80","89","89","91","86","63","66","59","82","83","80","68","72","64","83","83","82",2008,8,null,16,"السلط","الأردنية"," محمد مصطفى عبد الرحيم العظم"]
[null,"ناجح و يرفع  لـ الصف السابع",null,95.709999084472656,670,null,null,null,null,null,null,null,null,null,0,"ممتاز","93","92","94","-","-","-","91","91","90","93",null,"93","92",null,"96","96","96","94","96","92","94","89","98","98","98","98","98","97","98","97","98","96",2009,11,null,13,"السلط","الأردنية"," محمد يوسف محمد لافي",null,22]
[null,"ناجح و يرفع  لـ الصف السابع",null,87.430000305175781,612,null,null,null,null,null,null,null,null,null,0,"ممتاز","92","89","94","-","-","-","94","94","93","93",null,"95","91",null,"93","90","96","88","89","87","88","91","85","93","94","92","84","82","85","74","73","75",2009,9,null,13,"السلط","الأردنية"," محمود نعمان يوسف غانم"]
[null,"ناجح و يرفع  لـ الصف السابع",null,80.569999694824219,564,null,null,null,null,null,null,null,null,null,0,"ممتاز","93","92","94","-","-","-","89","89","89","90",null,"87","92",null,"78","73","82","82","74","89","68","56","80","84","85","82","81","92","70","78","81","75",2009,6,null,26,"عمان","الأردنية"," مروان قاسم محمد ناصر",null,23]
[null,"ناجح و يرفع  لـ الصف السابع",null,67,469,null,null,null,null,null,null,null,null,null,0,"ممتاز","92","92","91","-","-","-","88","87","89","88",null,"88","88",null,"72","94","50","88","93","83","52","61","42","51","58","44","60","75","45","54","72","35",2009,1,null,4,"السلط","الأردنية"," مصطفى خالد مصطفى غرايبه"]
[null,"ناجح و يرفع  لـ الصف السابع",null,83.569999694824219,585,null,null,null,null,null,null,null,null,null,0,"ممتاز","92","91","93","-","-","-","88","88","88","93",null,"91","94",null,"80","78","81","85","77","93","78","71","84","91","93","89","75","63","86","84","79","89",2009,11,null,15,"ام الدنانير","الأردنية"," مصعب مؤمن عبد الحليم قطيشات",null,24]
[null,"ناجح و يرفع  لـ الصف السابع",null,87.860000610351563,615,null,null,null,null,null,null,null,null,null,0,"ممتاز","93","91","94","-","-","-","88","91","85","88",null,"87","89",null,"88","93","82","95","98","91","90","91","89","80","82","78","82","85","78","87","95","79",2009,8,null,2,"السلط","الأردنية"," معاذ فادي ابراهيم الاسمر"]
[null,"ناجح و يرفع  لـ الصف السابع",null,96,672,null,null,null,null,null,null,null,null,null,0,"ممتاز","94","91","97","-","-","-","92","91","92","95",null,"92","98",null,"97","96","98","95","95","95","96","100","92","95","95","95","98","99","97","97","96","97",2009,9,null,29,"عمان","الأردنية"," معتز محمد محمود خليل",null,25]
[null,"ناجح و يرفع  لـ الصف السابع",null,77.709999084472656,544,null,null,null,null,null,null,null,null,null,0,"ممتاز","93","91","94","-","-","-","87","89","85","90",null,"87","92",null,"76","69","82","88","79","96","68","69","67","78","69","86","70","63","77","71","77","64",2009,6,null,2,"عمان","الأردنية"," وسيم علاء موسى ابو رياش"]
[null,null,null,null,null,null,null,null,null,null,null,null,null,null,null,null,null,null,null,null,null,null,null,null,null,null,null,null,null,null,null,null,null,null,null,null,null,null,null,null,null,null,null,null,null,null,null,null,null,null,null,null,null,null,null,null,26]
[]
[null,null,null,null,null,null,null,null,null,null,null,null,null,null,null,null,null,null,null,null,null,null,null,null,null,null,null,null,null,null,null,null,null,null,null,null,null,null,null,null,null,null,null,null,null,null,null,null,null,null,null,null,null,null,null,null,27]
[]
[null,null,null,null,null,null,null,null,null,null,null,null,null,null,null,null,null,null,null,null,null,null,null,null,null,null,null,null,null,null,null,null,null,null,null,null,null,null,null,null,null,null,null,null,null,null,null,null,null,null,null,null,null,null,null,null,28]
[]
[null,null,null,null,null,null,null,null,null,null,null,null,null,null,null,null,null,null,null,null,null,null,null,null,null,null,null,null,null,null,null,null,null,null,null,null,null,null,null,null,null,null,null,null,null,null,null,null,null,null,null,null,null,null,null,null,29]
[]
[null,null,null,null,null,null,null,null,null,null,null,null,null,null,null,null,null,null,null,null,null,null,null,null,null,null,null,null,null,null,null,null,null,null,null,null,null,null,null,null,null,null,null,null,null,null,null,null,null,null,null,null,null,null,null,null,30]
[]
[null,null,null,null,null,null,null,null,null,null,null,null,null,null,null,null,null,null,null,null,null,null,null,null,null,null,null,null,null,null,null,null,null,null,null,null,null,null,null,null,null,null,null,null,null,null,null,null,null,null,null,null,null,null,null,null,31]
[]
[null,null,null,null,null,null,null,null,null,null,null,null,null,null,null,null,null,null,null,null,null,null,null,null,null,null,null,null,null,null,null,null,null,null,null,null,null,null,null,null,null,null,null,null,null,null,null,null,null,null,null,null,null,null,null,null,32]
[]
[null,null,null,null,null,null,null,null,null,null,null,null,null,null,null,null,null,null,null,null,null,null,null,null,null,null,null,null,null,null,null,null,null,null,null,null,null,null,null,null,null,null,null,null,null,null,null,null,null,null,null,null,null,null,null,null,33]
[]
[null,null,null,null,null,null,null,null,null,null,null,null,null,null,null,null,null,null,null,null,null,null,null,null,null,null,null,null,null,null,null,null,null,null,null,null,null,null,null,null,null,null,null,null,null,null,null,null,null,null,null,null,null,null,null,null,34]
[]
[null,null,null,null,null,null,null,null,null,null,null,null,null,null,null,null,null,null,null,null,null,null,null,null,null,null,null,null,null,null,null,null,null,null,null,null,null,null,null,null,null,null,null,null,null,null,null,null,null,null,null,null,null,null,null,null,35]
[]
[null,null,null,null,null,null,null,null,null,null,null,null,null,null,null,null,null,null,null,null,null,null,null,null,null,null,null,null,null,null,null,null,null,null,null,null,null,null,null,null,null,null,null,null,null,null,null,null,null,null,null,null,null,null,null,null,36]
[]
[null,null,null,null,null,null,null,null,null,null,null,null,null,null,null,null,null,null,null,null,null,null,null,null,null,null,null,null,null,null,null,null,null,null,null,null,null,null,null,null,null,null,null,null,null,null,null,null,null,null,null,null,null,null,null,null,37]
[]
[null,null,null,null,null,null,null,null,null,null,null,null,null,null,null,null,null,null,null,null,null,null,null,null,null,null,null,null,null,null,null,null,null,null,null,null,null,null,null,null,null,null,null,null,null,null,null,null,null,null,null,null,null,null,null,null,38]
[]
[null,null,null,null,null,null,null,null,null,null,null,null,null,null,null,null,null,null,null,null,null,null,null,null,null,null,null,null,null,null,null,null,null,null,null,null,null,null,null,null,null,null,null,null,null,null,null,null,null,null,null,null,null,null,null,null,39]
[]
[null,null,null,null,null,null,null,null,null,null,null,null,null,null,null,null,null,null,null,null,null,null,null,null,null,null,null,null,null,null,null,null,null,null,null,null,null,null,null,null,null,null,null,null,null,null,null,null,null,null,null,null,null,null,null,null,40]
[]
[null,null,null,null,null,null,null,null,null,null,null,null,null,null,null,null,null,null,null,null,null,null,null,null,null,null,null,null,null,null,null,null,null,null,null,null,null,null,null,null,null,null,null,null,null,null,null,null,null,null,null,null,null,null,null,null,41]
[]
[null,null,null,null,null,null,null,null,null,null,null,null,null,null,null,null,null,null,null,null,null,null,null,null,null,null,null,null,null,null,null,null,null,null,null,null,null,null,null,null,null,null,null,null,null,null,null,null,null,null,null,null,null,null,null,null,42]
[]
[null,null,null,null,null,null,null,null,null,null,null,null,null,null,null,null,null,null,null,null,null,null,null,null,null,null,null,null,null,null,null,null,null,null,null,null,null,null,null,null,null,null,null,null,null,null,null,null,null,null,null,null,null,null,null,null,43]
[]
[null,null,null,null,null,null,null,null,null,null,null,null,null,null,null,null,null,null,null,null,null,null,null,null,null,null,null,null,null,null,null,null,null,null,null,null,null,null,null,null,null,null,null,null,null,null,null,null,null,null,null,null,null,null,null,null,44]
[]
[null,null,null,null,null,null,null,null,null,null,null,null,null,null,null,null,null,null,null,null,null,null,null,null,null,null,null,null,null,null,null,null,null,null,null,null,null,null,null,null,null,null,null,null,null,null,null,null,null,null,null,null,null,null,null,null,45]
[]
[null,null,null,null,null,null,null,null,null,null,null,null,null,null,null,null,null,null,null,null,null,null,null,null,null,null,null,null,null,null,null,null,null,null,null,null,null,null,null,null,null,null,null,null,null,null,null,null,null,null,null,null,null,null,null,null,46]
[]
[null,null,null,null,null,null,null,null,null,null,null,null,null,null,null,null,null,null,null,null,null,null,null,null,null,null,null,null,null,null,null,null,null,null,null,null,null,null,null,null,null,null,null,null,null,null,null,null,null,null,null,null,null,null,null,null,47]
[]
[null,null,null,null,null,null,null,null,null,null,null,null,null,null,null,null,null,null,null,null,null,null,null,null,null,null,null,null,null,null,null,null,null,null,null,null,null,null,null,null,null,null,null,null,null,null,null,null,null,null,null,null,null,null,null,null,48]
[]
[null,null,null,null,null,null,null,null,null,null,null,null,null,null,null,null,null,null,null,null,null,null,null,null,null,null,null,null,null,null,null,null,null,null,null,null,null,null,null,null,null,null,null,null,null,null,null,null,null,null,null,null,null,null,null,null,49]
[]
[null,null,null,null,null,null,null,null,null,null,null,null,null,null,null,null,null,null,null,null,null,null,null,null,null,null,null,null,null,null,null,null,null,null,null,null,null,null,null,null,null,null,null,null,null,null,null,null,null,null,null,null,null,null,null,null,50]
[]
[null,"\n  أسماء و تواقيع لجنة التدقيق و مقابلة\n  الجداول في المنطقة التعليمية :   ",null,null,null,null,null,null,null,null,null,null,null,null,null,null,null,null,null,null,null,null,null,null,null,null,null,null,null,null,null,null,null,null,null,null,null,null,null,null,null,null,null,null,null,null,null,null,"توقيع معلم المادة"]